Workbook

Sheet Sheet1
A1: Heiti | B1: Ljósár | C1: Ljósár (US) | D1: Birtustig | E1: Birtustig (US) | F1: Hliðrun (mas) | I1: Númer í Hipparcos skránni - oft táknað t.d. „HIP 32349“ á netinu og í stjörnufræðiforritum
B2: =1/(F2/1000)*3.26 -> 8.307849134 | C2: 8.3078 | D2: =REPLACE(E2,FIND(".",E2),1,",") -> 7,49 | E2: =TRIM(M2) -> 7.49 | F2: =REPLACE(G2,FIND(".",G2),1,",") -> 392,40 | G2: =TRIM(S2) -> 392.40 | H2: H | I2: 54035 | K2: 11 03 20.61 | L2: +35 58 53.3 | M2: 7.49 | O2: G | P2: 16583588409 | Q2: 3598146424 | S2: 392.40 | T2: -580.20 | U2: -4767.09 | V2: 0.67 | W2: 0.59 | X2: 0.91 | Y2: 0.77 | Z2: 0.77 | AA2: -0.36 | AB2: 0.14 | AC2: -0.18 | AD2: 0.14 | AE2: -0.03 | AF2: -0.17 | AG2: -0.03 | AH2: 0.05 | AI2: 0.23 | AJ2: -0.53 | AK2: 0 | AL2: 1.59 | AM2: 54035 | AS2: 1502 | AT2: 0.014 | AU2: G | AV2: 2014-07-02 | AW2: 0.02 | AX2: G | AZ2: 75062 | BA2: 0.0013 | BB2: 0.014 | BC2: 111 | BE2: 7.49 | BF2: 7.54 | BK2: 11033+3558 | BL2: I | BM2: 1 | BN2: 1 | BX2: S | CA2: 95735 | CB2: B+36 2147 | CE2: 2014-07-02 | CF2: M2V | CG2: X
A3: Síríus | B3: 8.596819704 | C3: 8.5968 | D3: -1,44 | E3: -1.44 | F3: 379,21 | G3: 379.21 | H3: H | I3: 32349 | K3: 06 45 09.25 | L3: -16 42 47.3 | M3: -1.44 | N3: 2 | O3: G | P3: 10128854105 | Q3: -1671314306 | R3: + | S3: 379.21 | T3: -546.01 | U3: -1223.08 | V3: 1.21 | W3: 1.04 | X3: 1.58 | Y3: 1.33 | Z3: 1.24 | AA3: 0.05 | AB3: 0.22 | AC3: -0.30 | AD3: -0.50 | AE3: 0.13 | AF3: -0.31 | AG3: 0.12 | AH3: -0.54 | AI3: 0.32 | AJ3: -0.05 | AK3: 0 | AM3: 32349 | AS3: 0.009 | AT3: 0.007 | AU3: G | AV3: -.02 | AW3: 0.00 | AX3: A | AZ3: -10876 | BA3: 0.0024 | BB3: 0.040 | BC3: 159 | BE3: -1.17 | BF3: -0.98 | BH3: U | BK3: 06451-1643 | BL3: I | BM3: 1 | BN3: 1 | BO3: O | BX3: S | BZ3: X | CA3: 48915 | CB3: B-16 1591 | CE3: -.02 | CF3: A0m... | CG3: 4
B4: 12.38319532 | C4: 12.383 | D4: 9,84 | E4: 9.84 | F4: 263,26 | G4: 263.26 | H4: H | I4: 36208 | K4: 07 27 24.16 | L4: +05 14 05.2 | M4: 9.84 | O4: G | P4: 11185068549 | Q4: 523476432 | S4: 263.26 | T4: 571.27 | U4: -3694.25 | V4: 1.31 | W4: 0.79 | X4: 1.43 | Y4: 1.41 | Z4: 0.90 | AA4: 0.06 | AB4: 0.27 | AC4: 0.06 | AD4: -0.39 | AE4: -0.04 | AF4: -0.13 | AG4: -0.05 | AH4: -0.46 | AI4: 0.07 | AJ4: -0.21 | AK4: 0 | AL4: 1.38 | AM4: 36208 | AS4: 1573 | AT4: 0.043 | AU4: G | AV4: 1971-02-01 | AW4: 0.02 | AX4: A | AZ4: 98128 | BA4: 0.0021 | BB4: 0.021 | BC4: 119 | BE4: 9.77 | BF4: 9.85 | BH4: C | BN4: 1 | BY4: G | CB4: B+05 1668 | CE4: 1971-02-01 | CF4: M5 | CG4: S
A5: Prókýon | B5: 11.40139195 | C5: 11.401 | D5: 0,40 | E5: 0.40 | F5: 285,93 | G5: 285.93 | H5: H | I5: 37279 | K5: 07 39 18.54 | L5: +05 13 39.0 | M5: 0.40 | O5: G | P5: 11482724194 | Q5: 522750767 | R5: + | S5: 285.93 | T5: -716.57 | U5: -1034.58 | V5: 0.82 | W5: 0.50 | X5: 0.88 | Y5: 0.88 | Z5: 0.38 | AA5: 0.03 | AB5: 0.21 | AC5: -0.30 | AD5: -0.19 | AE5: -0.06 | AF5: -0.22 | AG5: -0.07 | AH5: -0.55 | AI5: 0.14 | AJ5: 0.09 | AK5: 0 | AL5: 1.94 | AM5: 37279 | AS5: 0.432 | AT5: 0.015 | AU5: G | AV5: 0.49 | AW5: 0.02 | AX5: A | AZ5: 0.4607 | BA5: 0.0017 | BB5: 0.007 | BC5: 20 | BE5: 0.45 | BF5: 0.52 | BK5: 07393+0514 | BL5: I | BM5: 1 | BN5: 1 | BO5: O | BX5: S | BZ5: D | CA5: 61421 | CB5: B+05 1739 | CE5: 0.49 | CF5: F5IV-V | CG5: X
B6: 10.49074819 | C6: 10.490 | D6: 3,72 | E6: 3.72 | F6: 310,75 | G6: 310.75 | H6: H | I6: 16537 | K6: 03 32 56.42 | L6: -09 27 29.9 | M6: 3.72 | N6: 1 | O6: H | P6: 5323509009 | Q6: -945830584 | S6: 310.75 | T6: -976.44 | U6: 17.97 | V6: 0.77 | W6: 0.60 | X6: 0.85 | Y6: 0.98 | Z6: 0.91 | AA6: 0.18 | AB6: 0.14 | AC6: -0.22 | AD6: 0.10 | AE6: -0.20 | AF6: 0.03 | AG6: -0.16 | AH6: -0.33 | AI6: 0.00 | AJ6: 0.33 | AK6: 0 | AL6: 0.88 | AM6: 16537 | AN6: 4859 | AO6: 0.004 | AP6: 3827 | AQ6: 0.003 | AS6: 0.881 | AT6: 0.007 | AU6: G | AV6: 0.94 | AW6: 0.02 | AX6: A | AZ6: 38652 | BA6: 0.0014 | BB6: 0.007 | BC6: 71 | BE6: 3.86 | BF6: 3.88 | BH6: M | BK6: 03329-0927 | BL6: I | BM6: 1 | BN6: 1 | BX6: S | BZ6: P | CA6: 22049 | CB6: B-09 697 | CE6: 0.94 | CF6: K2V | CG6: X
B7: 11.63164092 | C7: 11.631 | D7: 8,09 | E7: 8.09 | F7: 280,27 | G7: 280.27 | H7: H | I7: 1475 | K7: 00 18 20.54 | L7: +44 01 19.0 | M7: 8.09 | N7: 1 | O7: G | P7: 458559067 | Q7: 4402195597 | S7: 280.27 | T7: 2888.92 | U7: 410.58 | V7: 0.67 | W7: 0.55 | X7: 1.05 | Y7: 0.75 | Z7: 0.63 | AA7: -0.02 | AB7: 0.00 | AC7: 0.08 | AD7: -0.28 | AE7: 0.14 | AF7: -0.10 | AG7: 0.12 | AH7: 0.18 | AI7: 0.00 | AJ7: 0.06 | AK7: 0 | AL7: 0.93 | AM7: 1475 | AN7: 10120 | AO7: 0.047 | AP7: 8284 | AQ7: 0.020 | AS7: 1560 | AT7: 0.040 | AU7: G | AV7: 1948-02-01 | AW7: 0.17 | AX7: I | AZ7: 81451 | BA7: 0.0013 | BB7: 0.018 | BC7: 144 | BE7: 8.12 | BF7: 8.18 | BH7: U | BK7: 00184+4401 | BL7: I | BM7: 1 | BN7: 1 | BQ7: S | CA7: 1326 | CB7: B+43 44 | CE7: 1948-02-01 | CF7: M1V | CG7: X
B8: 12.77129202 | C8: 12.771 | D8: 8,86 | E8: 8.86 | F8: 255,26 | G8: 255.26 | H8: H | I8: 24186 | K8: 05 11 35.21 | L8: -45 00 16.2 | M8: 8.86 | N8: 2 | O8: G | P8: 7789672045 | Q8: -4500448677 | S8: 255.26 | T8: 6506.05 | U8: -5731.39 | V8: 0.74 | W8: 0.77 | X8: 0.86 | Y8: 0.95 | Z8: 0.90 | AA8: -0.10 | AB8: 0.17 | AC8: -0.06 | AD8: -0.10 | AE8: -0.09 | AF8: 0.00 | AG8: -0.05 | AH8: -0.02 | AI8: 0.07 | AJ8: -0.23 | AK8: 0 | AL8: 0.54 | AM8: 24186 | AS8: 1543 | AT8: 0.020 | AU8: G | AV8: 1996-01-01 | AW8: 0.00 | AX8: A | AZ8: 89320 | BA8: 0.0025 | BB8: 0.028 | BC8: 94 | BE8: 8.90 | BF8: 9.22 | BH8: U | BI8: 2 | BN8: 1 | CA8: 33793 | CC8: C-45 1841 | CD8: P-44 612 | CE8: 1996-01-01 | CF8: M0V | CG8: X
B9: 11.89043294 | C9: 11.890 | D9: 3,49 | E9: 3.49 | F9: 274,17 | G9: 274.17 | H9: H | I9: 8102 | K9: 01 44 05.13 | L9: -15 56 22.4 | M9: 3.49 | O9: G | P9: 2602136441 | Q9: -1593955597 | S9: 274.17 | T9: -1721.82 | U9: 854.07 | V9: 0.64 | W9: 0.62 | X9: 0.80 | Y9: 0.83 | Z9: 0.80 | AA9: 0.28 | AB9: -0.09 | AC9: -0.20 | AD9: 0.18 | AE9: 0.07 | AF9: 0.00 | AG9: 0.09 | AH9: 0.30 | AI9: -0.13 | AJ9: 0.24 | AK9: 0 | AL9: 1.67 | AM9: 8102 | AS9: 0.727 | AT9: 0.007 | AU9: G | AV9: 0.82 | AW9: 0.02 | AX9: A | AZ9: 36295 | BA9: 0.0005 | BB9: 0.004 | BC9: 73 | BE9: 3.62 | BF9: 3.64 | BK9: 01441-1557 | BL9: I | BM9: 1 | BN9: 1 | BX9: S | CA9: 10700 | CB9: B-16 295 | CE9: 0.82 | CF9: G8V | CG9: 4
B10: 28.01168586 | C10: 28.011 | D10: 4,23 | E10: 4.23 | F10: 116,38 | G10: 116.38 | H10: H | I10: 1599 | K10: 00 20 01.91 | L10: -64 52 39.4 | M10: 4.23 | O10: G | P10: 500797581 | Q10: -6487762320 | S10: 116.38 | T10: 1707.56 | U10: 1165.36 | V10: 0.46 | W10: 0.51 | X10: 0.64 | Y10: 0.52 | Z10: 0.58 | AA10: 0.04 | AB10: -0.05 | AC10: -0.39 | AD10: -0.10 | AE10: -0.06 | AF10: 0.14 | AG10: 0.00 | AH10: 0.07 | AI10: -0.04 | AJ10: 0.01 | AK10: 0 | AL10: -0.73 | AM10: 1599 | AS10: 0.576 | AT10: 0.010 | AU10: G | AV10: 0.65 | AW10: 0.02 | AX10: A | AZ10: 43443 | BA10: 0.0006 | BB10: 0.005 | BC10: 134 | BE10: 4.34 | BF10: 4.35 | BN10: 1 | BX10: S | CA10: 1581 | CD10: P-65 13 | CE10: 0.65 | CF10: F9V | CG10: X
B11: 31.1039023 | C11: 31.103 | D11: 5,31 | E11: 5.31 | F11: 104,81 | G11: 104.81 | H11: H | I11: 56997 | K11: 11 41 03.03 | L11: +34 12 09.2 | M11: 5.31 | N11: 1 | O11: H | P11: 17526260484 | Q11: 3420256022 | S11: 104.81 | T11: -13.95 | U11: -380.46 | V11: 0.64 | W11: 0.52 | X11: 0.72 | Y11: 0.70 | Z11: 0.55 | AA11: -0.17 | AB11: -0.03 | AC11: -0.16 | AD11: -0.26 | AE11: -0.19 | AF11: -0.08 | AG11: -0.25 | AH11: 0.14 | AI11: -0.12 | AJ11: -0.02 | AK11: 0 | AL11: 0.72 | AM11: 56997 | AN11: 6226 | AO11: 0.004 | AP11: 5388 | AQ11: 0.003 | AS11: 0.723 | AT11: 0.014 | AU11: G | AV11: 0.78 | AW11: 0.04 | AX11: G | AZ11: 54478 | BA11: 0.0012 | BB11: 0.009 | BC11: 86 | BE11: 5.43 | BF11: 5.46 | BH11: U | BI11: 2 | BK11: 11411+3412 | BL11: I | BM11: 1 | BN11: 1 | BX11: S | CA11: 101501 | CB11: B+35 2270 | CE11: 0.78 | CF11: G8Vvar | CG11: X
B12: 30.12103853 | C12: 30.121 | D12: 4,89 | E12: 4.89 | F12: 108,23 | G12: 108.23 | H12: H | I12: 57443 | K12: 11 46 32.25 | L12: -40 30 04.8 | M12: 4.89 | O12: G | P12: 17663436255 | Q12: -4050133452 | S12: 108.23 | T12: -1531.69 | U12: 403.41 | V12: 0.47 | W12: 0.50 | X12: 0.70 | Y12: 0.50 | Z12: 0.52 | AA12: -0.15 | AB12: -0.14 | AC12: 0.01 | AD12: 0.33 | AE12: 0.16 | AF12: -0.03 | AG12: 0.14 | AH12: -0.03 | AI12: -0.09 | AJ12: -0.20 | AK12: 0 | AL12: -1.56 | AM12: 57443 | AS12: 0.664 | AT12: 0.004 | AU12: G | AV12: 0.73 | AW12: 0.02 | AX12: A | AZ12: 50211 | BA12: 0.0006 | BB12: 0.004 | BC12: 112 | BE12: 5.01 | BF12: 5.03 | BN12: 1 | BX12: S | CA12: 102365 | CC12: C-39 7301 | CD12: P-39 5265 | CE12: 0.73 | CF12: G3/G5V | CG12: 3
B13: 100.0613874 | C13: 100.06 | D13: 9,63 | E13: 9.63 | F13: 32,58 | G13: 32.58 | H13: H | I13: 20359 | K13: 04 21 35.92 | L13: +48 20 13.1 | M13: 9.63 | O13: G | P13: 6539964854 | Q13: 4833696228 | S13: 32.58 | T13: -34.84 | U13: 11.09 | V13: 1.41 | W13: 1.01 | X13: 1.95 | Y13: 1.75 | Z13: 1.53 | AA13: -0.03 | AB13: 0.26 | AC13: -0.28 | AD13: 0.00 | AE13: 0.19 | AF13: 0.14 | AG13: 0.09 | AH13: 0.59 | AI13: -0.44 | AJ13: 0.01 | AK13: 0 | AL13: 0.11 | AM13: 20359 | AN13: 11135 | AO13: 0.066 | AP13: 9748 | AQ13: 0.031 | AS13: 1166 | AT13: 0.002 | AU13: G | AV13: 2013-01-01 | AW13: 0.00 | AX13: I | AZ13: 97589 | BA13: 0.0023 | BB13: 0.022 | BC13: 81 | BE13: 9.73 | BF13: 9.79 | BH13: C | BN13: 1 | BY13: G | CB13: B+47 977 | CE13: 2013-01-01 | CF13: K8 | CG13: S
B14: 100.1536098 | C14: 100.15 | D14: 6,14 | E14: 6.14 | F14: 32,55 | G14: 32.55 | H14: H | I14: 49769 | K14: 10 09 32.09 | L14: -35 51 24.5 | M14: 6.14 | O14: G | P14: 15238369551 | Q14: -3585681022 | S14: 32.55 | T14: -442.84 | U14: 16.26 | V14: 0.43 | W14: 0.50 | X14: 0.65 | Y14: 0.50 | Z14: 0.62 | AA14: -0.04 | AB14: -0.03 | AC14: -0.19 | AD14: 0.18 | AE14: -0.01 | AF14: 0.14 | AG14: 0.00 | AH14: -0.13 | AI14: 0.17 | AJ14: -0.05 | AK14: 0 | AL14: 1.18 | AM14: 49769 | AN14: 6889 | AO14: 0.005 | AP14: 6226 | AQ14: 0.004 | AS14: 0.615 | AT14: 0.009 | AU14: G | AV14: 0.69 | AW14: 0.02 | AX14: A | AZ14: 62707 | BA14: 0.0008 | BB14: 0.008 | BC14: 123 | BE14: 6.26 | BF14: 6.29 | BH14: C | BK14: 10095-3551 | BL14: I | BM14: 1 | BN14: 1 | BX14: S | CA14: 88218 | CC14: C-35 6194 | CD14: P-35 3974 | CE14: 0.69 | CF14: G1V | CG14: 3
B15: 100.2768379 | C15: 100.27 | D15: 6,95 | E15: 6.95 | F15: 32,51 | G15: 32.51 | H15: H | I15: 22349 | K15: 04 48 42.02 | L15: +18 42 37.3 | M15: 6.95 | O15: H | P15: 7217509246 | Q15: 1871036592 | S15: 32.51 | T15: 190.15 | U15: -384.90 | V15: 0.90 | W15: 0.80 | X15: 0.99 | Y15: 1.28 | Z15: 1.17 | AA15: 0.50 | AB15: 0.14 | AC15: -0.34 | AD15: 0.33 | AE15: 0.55 | AF15: -0.25 | AG15: 0.30 | AH15: 0.74 | AI15: -0.34 | AJ15: 0.79 | AK15: 0 | AL15: 1.25 | AM15: 22349 | AN15: 7715 | AO15: 0.008 | AP15: 7022 | AQ15: 0.006 | AS15: 0.618 | AT15: 0.002 | AU15: G | AV15: 0.69 | AW15: 0.00 | AX15: H | AZ15: 70855 | BA15: 0.0008 | BB15: 0.007 | BC15: 71 | BE15: 7.07 | BF15: 7.10 | BH15: C | BN15: 1 | BX15: S | CA15: 30455 | CB15: B+18 734 | CE15: 0.69 | CF15: G2V... | CG15: X
B16: 100.3694581 | C16: 100.36 | D16: 5,89 | E16: 5.89 | F16: 32,48 | G16: 32.48 | H16: H | I16: 11548 | K16: 02 28 48.54 | L16: +29 55 53.7 | M16: 5.89 | O16: H | P16: 3720224439 | Q16: 2993158402 | S16: 32.48 | T16: -65.37 | U16: 72.52 | V16: 0.84 | W16: 0.50 | X16: 0.84 | Y16: 1.16 | Z16: 0.68 | AA16: 0.05 | AB16: -0.04 | AC16: 0.00 | AD16: -0.14 | AE16: 0.23 | AF16: 0.02 | AG16: 0.22 | AH16: -0.20 | AI16: -0.08 | AJ16: -0.05 | AK16: 0 | AL16: 2.38 | AM16: 11548 | AN16: 6614 | AO16: 0.005 | AP16: 5968 | AQ16: 0.004 | AS16: 0.591 | AT16: 0.014 | AU16: G | AV16: 0.69 | AW16: 0.07 | AX16: F | AZ16: 60211 | BA16: 0.0008 | BB16: 0.005 | BC16: 77 | BE16: 6.02 | BF16: 6.03 | BN16: 1 | BX16: S | CA16: 15335 | CB16: B+29 423 | CE16: 0.69 | CF16: G0V | CG16: S
B17: 100.3076923 | C17: 100.30 | D17: 8,82 | E17: 8.82 | F17: 32,50 | G17: 32.50 | H17: H | I17: 10977 | K17: 02 21 23.62 | L17: -30 56 02.1 | M17: 8.82 | O17: G | P17: 3534841642 | Q17: -3093390739 | S17: 32.50 | T17: 550.79 | U17: 108.80 | V17: 0.84 | W17: 0.88 | X17: 1.13 | Y17: 1.11 | Z17: 0.92 | AA17: 0.21 | AB17: -0.15 | AC17: -0.07 | AD17: 0.17 | AE17: 0.11 | AF17: 0.07 | AG17: 0.14 | AH17: -0.04 | AI17: -0.03 | AJ17: 0.37 | AK17: 0 | AL17: -1.95 | AM17: 10977 | AN17: 9990 | AO17: 0.025 | AP17: 8899 | AQ17: 0.017 | AS17: 0.918 | AT17: 0.013 | AU17: G | AV17: 0.96 | AW17: 0.01 | AX17: I | AZ17: 89632 | BA17: 0.0027 | BB17: 0.021 | BC17: 100 | BE17: 8.93 | BF17: 9.00 | BN17: 1 | CA17: 14680 | CC17: C-31 943 | CD17: P-31 273 | CE17: 0.96 | CF17: K2/K3V | CG17: 3
B18: 100.3076923 | C18: 100.30 | D18: 9,76 | E18: 9.76 | F18: 32,50 | G18: 32.50 | H18: H | I18: 51127 | K18: 10 26 41.28 | L18: -06 31 29.3 | M18: 9.76 | O18: G | P18: 15667198589 | Q18: -652480328 | S18: 32.50 | T18: 2.80 | U18: -643.71 | V18: 1.47 | W18: 1.14 | X18: 1.62 | Y18: 1.47 | Z18: 1.18 | AA18: -0.26 | AB18: 0.12 | AC18: 0.08 | AD18: -0.18 | AE18: 0.07 | AF18: 0.02 | AG18: 0.07 | AH18: -0.42 | AI18: -0.16 | AJ18: -0.19 | AK18: 5 | AL18: 1.24 | AM18: 51127 | AN18: 11043 | AO18: 0.067 | AP18: 9826 | AQ18: 0.038 | AS18: 0.948 | AT18: 0.012 | AU18: G | AV18: 1.00 | AW18: 0.01 | AX18: I | AZ18: 98897 | BA18: 0.0033 | BB18: 0.021 | BC18: 61 | BE18: 9.85 | BF18: 9.92 | BH18: C | BN18: 1 | CB18: B-05 3063 | CE18: 1.00 | CF18: K0V | CG18: X
B19: 100.4622496 | C19: 100.46 | D19: 6,64 | E19: 6.64 | F19: 32,45 | G19: 32.45 | H19: H | I19: 37718 | K19: 07 44 12.62 | L19: -50 27 25.5 | M19: 6.64 | O19: H | P19: 11605256920 | Q19: -5045707517 | S19: 32.45 | T19: -113.83 | U19: 143.25 | V19: 0.49 | W19: 0.47 | X19: 0.55 | Y19: 0.58 | Z19: 0.55 | AA19: 0.04 | AB19: 0.23 | AC19: 0.09 | AD19: 0.00 | AE19: -0.04 | AF19: -0.08 | AG19: -0.02 | AH19: 0.00 | AI19: 0.03 | AJ19: -0.19 | AK19: 0 | AL19: -0.20 | AM19: 37718 | AN19: 7248 | AO19: 0.006 | AP19: 6691 | AQ19: 0.005 | AS19: 0.527 | AT19: 0.005 | AU19: G | AV19: 0.60 | AW19: 0.01 | AX19: H | AZ19: 67514 | BA19: 0.0011 | BB19: 0.009 | BC19: 129 | BE19: 6.73 | BF19: 6.77 | BK19: 07442-5028 | BL19: I | BM19: 2 | BN19: 1 | BX19: S | CA19: 63008 | CC19: C-50 2947 | CD19: P-50 1356 | CE19: 0.60 | CF19: F8V | CG19: 2
B20: 100.524206 | C20: 100.52 | D20: 5,18 | E20: 5.18 | F20: 32,43 | G20: 32.43 | H20: H | I20: 25918 | K20: 05 31 52.66 | L20: -76 20 30.0 | M20: 5.18 | O20: G | P20: 8296942437 | Q20: -7634166340 | S20: 32.43 | T20: 143.20 | U20: 287.75 | V20: 1.25 | W20: 1.02 | X20: 1.29 | Y20: 1.24 | Z20: 1.37 | AA20: -0.12 | AB20: 0.24 | AC20: 0.02 | AD20: -0.26 | AE20: -0.01 | AF20: -0.05 | AG20: -0.05 | AH20: -0.12 | AI20: -0.04 | AJ20: -0.06 | AK20: 1 | AM20: 25918 | AN20: 6647 | AO20: 0.003 | AP20: 5303 | AQ20: 0.002 | AS20: 1130 | AT20: 0.015 | AU20: G | AV20: 2014-11-01 | AW20: 0.01 | AX20: G | AZ20: 53394 | BA20: 0.0006 | BB20: 0.006 | BC20: 125 | BE20: 5.33 | BF20: 5.35 | BK20: 05319-7620 | BL20: I | BM20: 1 | BN20: 1 | BO20: X | BX20: S | CA20: 37763 | CD20: P-76 333 | CE20: 2014-11-01 | CF20: K4III | CG20: X
B21: 100.524206 | C21: 100.52 | D21: 6,54 | E21: 6.54 | F21: 32,43 | G21: 32.43 | H21: H | I21: 36152 | K21: 07 26 50.45 | L21: +21 32 08.6 | M21: 6.54 | O21: H | P21: 11171020387 | Q21: 2153571074 | S21: 32.43 | T21: -312.96 | U21: -27.00 | V21: 0.82 | W21: 0.54 | X21: 0.91 | Y21: 0.84 | Z21: 0.53 | AA21: -0.20 | AB21: 0.47 | AC21: -0.30 | AD21: 0.04 | AE21: -0.06 | AF21: -0.10 | AG21: -0.07 | AH21: -0.13 | AI21: 0.01 | AJ21: -0.04 | AK21: 0 | AL21: 0.94 | AM21: 36152 | AN21: 7089 | AO21: 0.008 | AP21: 6586 | AQ21: 0.007 | AS21: 0.464 | AT21: 0.015 | AU21: G | AV21: 0.53 | AW21: 0.02 | AX21: H | AZ21: 66411 | BA21: 0.0010 | BB21: 0.006 | BC21: 58 | BE21: 6.63 | BF21: 6.65 | BH21: C | BN21: 1 | BX21: S | CA21: 58551 | CB21: B+21 1596 | CE21: 0.53 | CF21: F6V | CG21: X
B22: 100.6794317 | C22: 100.67 | D22: 6,11 | E22: 6.11 | F22: 32,38 | G22: 32.38 | H22: H | I22: 22844 | K22: 04 54 52.92 | L22: -58 32 52.1 | M22: 6.11 | O22: G | P22: 7372051578 | Q22: -5854781783 | S22: 32.38 | T22: 100.99 | U22: 68.25 | V22: 0.49 | W22: 0.47 | X22: 0.52 | Y22: 0.61 | Z22: 0.62 | AA22: -0.06 | AB22: 0.02 | AC22: -0.17 | AD22: 0.21 | AE22: 0.13 | AF22: -0.16 | AG22: 0.10 | AH22: 0.10 | AI22: -0.24 | AJ22: -0.05 | AK22: 0 | AL22: -0.69 | AM22: 22844 | AN22: 6624 | AO22: 0.004 | AP22: 6164 | AQ22: 0.004 | AS22: 0.442 | AT22: 0.008 | AU22: G | AV22: 0.51 | AW22: 0.01 | AX22: H | AZ22: 62113 | BA22: 0.0008 | BB22: 0.006 | BC22: 98 | BE22: 6.20 | BF22: 6.22 | BH22: C | BN22: 1 | BX22: S | CA22: 31746 | CD22: P-58 437 | CE22: 0.51 | CF22: F3V | CG22: X
B23: 100.6794317 | C23: 100.67 | D23: 7,02 | E23: 7.02 | F23: 32,38 | G23: 32.38 | H23: H | I23: 50473 | K23: 10 18 21.45 | L23: +12 37 16.3 | M23: 7.02 | O23: H | P23: 15458937836 | Q23: 1262120337 | S23: 32.38 | T23: -272.82 | U23: -39.10 | V23: 0.85 | W23: 0.65 | X23: 0.99 | Y23: 0.87 | Z23: 0.69 | AA23: -0.46 | AB23: 0.14 | AC23: -0.26 | AD23: -0.30 | AE23: 0.10 | AF23: -0.16 | AG23: 0.09 | AH23: -0.42 | AI23: 0.31 | AJ23: -0.53 | AK23: 0 | AL23: -0.10 | AM23: 50473 | AN23: 7719 | AO23: 0.010 | AP23: 7083 | AQ23: 0.006 | AS23: 0.594 | AT23: 0.003 | AU23: G | AV23: 0.66 | AW23: 0.00 | AX23: H | AZ23: 71471 | BA23: 0.0007 | BB23: 0.006 | BC23: 104 | BE23: 7.13 | BF23: 7.16 | BH23: D | BN23: 1 | BX23: S | CA23: 89307 | CB23: B+13 2237 | CE23: 0.66 | CF23: G0V | CG23: X
B24: 100.6483483 | C24: 100.64 | D24: 8,28 | E24: 8.28 | F24: 32,39 | G24: 32.39 | H24: H | I24: 57992 | K24: 11 53 41.79 | L24: +86 13 47.2 | M24: 8.28 | O24: G | P24: 17842412743 | Q24: 8622977450 | S24: 32.39 | T24: -222.72 | U24: 241.25 | V24: 0.53 | W24: 0.58 | X24: 0.69 | Y24: 0.72 | Z24: 0.59 | AA24: -0.12 | AB24: 0.03 | AC24: -0.13 | AD24: -0.08 | AE24: -0.08 | AF24: -0.02 | AG24: -0.06 | AH24: -0.01 | AI24: 0.02 | AJ24: -0.11 | AK24: 0 | AL24: -0.07 | AM24: 57992 | AN24: 9219 | AO24: 0.013 | AP24: 8384 | AQ24: 0.011 | AS24: 0.720 | AT24: 0.020 | AU24: G | AV24: 0.77 | AW24: 0.02 | AX24: H | AZ24: 84262 | BA24: 0.0015 | BB24: 0.014 | BC24: 122 | BE24: 8.40 | BF24: 8.45 | BN24: 1 | BX24: S | CA24: 103126 | CB24: B+87 99 | CE24: 0.77 | CF24: G5 | CG24: S
B25: 100.6794317 | C25: 100.67 | D25: 8,95 | E25: 8.95 | F25: 32,38 | G25: 32.38 | H25: H | I25: 8701 | K25: 01 51 57.61 | L25: -81 01 10.0 | M25: 8.95 | O25: H | P25: 2799004932 | Q25: -8101945276 | S25: 32.38 | T25: 84.12 | U25: 16.95 | V25: 0.74 | W25: 0.79 | X25: 0.87 | Y25: 0.82 | Z25: 1.09 | AA25: 0.16 | AB25: -0.16 | AC25: -0.27 | AD25: 0.00 | AE25: 0.00 | AF25: 0.01 | AG25: 0.00 | AH25: 0.00 | AI25: 0.01 | AJ25: 0.24 | AK25: 0 | AL25: 0.51 | AM25: 8701 | AN25: 10093 | AO25: 0.024 | AP25: 9061 | AQ25: 0.017 | AS25: 0.888 | AT25: 0.023 | AU25: T | AV25: 0.93 | AW25: 0.02 | AX25: L | AZ25: 90940 | BA25: 0.0021 | BB25: 0.020 | BC25: 109 | BE25: 9.06 | BF25: 9.14 | BN25: 1 | CA25: 12110 | CD25: P-81 37 | CE25: 0.91 | CF25: K1V | CG25: 1
B26: 100.8351376 | C26: 100.83 | D26: 6,70 | E26: 6.70 | F26: 32,33 | G26: 32.33 | H26: H | I26: 58106 | J26: H | K26: 11 55 01.12 | L26: -56 05 43.8 | M26: 6.70 | N26: 1 | O26: G | P26: 17875467546 | Q26: -5609550622 | R26: A | S26: 32.33 | T26: 209.05 | U26: -197.49 | V26: 1.13 | W26: 1.17 | X26: 1.44 | Y26: 1.10 | Z26: 0.97 | AA26: 0.19 | AB26: -0.15 | AC26: 0.09 | AD26: -0.03 | AE26: -0.10 | AF26: -0.29 | AG26: -0.05 | AH26: -0.19 | AI26: -0.03 | AJ26: 0.07 | AK26: 4 | AL26: 2.07 | AM26: 58106 | AN26: 7943 | AO26: 0.012 | AP26: 7276 | AQ26: 0.010 | AR26: A | AS26: 0.646 | AT26: 0.010 | AU26: G | AV26: 0.72 | AW26: 0.02 | AX26: A | AY26: * | AZ26: 68323 | BA26: 0.0012 | BB26: 0.014 | BC26: 137 | BD26: * | BE26: 6.81 | BF26: 6.86 | BH26: U | BI26: 2 | BK26: 11550-5606 | BL26: I | BM26: 1 | BN26: 2 | BO26: C | BQ26: A | BR26: AB | BS26: 173 | BT26: 3624 | BU26: 0.004 | BV26: 0.49 | BW26: 0.01 | BX26: S | CA26: 103493 | CC26: C-55 4298 | CD26: P-55 4711 | CE26: 0.72 | CF26: G5V | CG26: X
B27: 100.8663366 | C27: 100.86 | D27: 8,66 | E27: 8.66 | F27: 32,32 | G27: 32.32 | H27: H | I27: 9692 | K27: 02 04 40.49 | L27: -16 17 15.5 | M27: 8.66 | O27: H | P27: 3116869560 | Q27: -1628762846 | S27: 32.32 | T27: 19.78 | U27: 22.72 | V27: 7.01 | W27: 6.06 | X27: 9.52 | Y27: 8.20 | Z27: 6.55 | AA27: 0.28 | AB27: -0.08 | AC27: -0.35 | AD27: -0.03 | AE27: 0.03 | AF27: 0.08 | AG27: 0.05 | AH27: 0.13 | AI27: -0.12 | AJ27: 0.40 | AK27: 0 | AM27: 9692 | AN27: 9352 | AO27: 0.018 | AP27: 8742 | AQ27: 0.016 | AS27: 0.566 | AT27: 0.018 | AU27: T | AV27: 0.64 | AW27: 0.02 | AX27: L | AZ27: 87800 | BA27: 0.0021 | BB27: 0.014 | BC27: 92 | BE27: 8.76 | BF27: 8.81 | BH27: C | BN27: 1 | BO27: X | BX27: S | BZ27: G | CA27: 12754 | CB27: B-16 364 | CE27: 0.67 | CF27: G0/G1V | CG27: 4
B28: 100.9287926 | C28: 100.92 | D28: 6,53 | E28: 6.53 | F28: 32,30 | G28: 32.30 | H28: H | I28: 21756 | J28: H | K28: 04 40 17.72 | L28: -58 56 39.6 | M28: 6.53 | O28: G | P28: 7007383679 | Q28: -5894433445 | R28: A | S28: 32.30 | T28: 30.97 | U28: 174.81 | V28: 1.14 | W28: 1.09 | X28: 0.98 | Y28: 1.03 | Z28: 1.03 | AA28: 0.03 | AB28: 0.19 | AC28: -0.14 | AD28: 0.18 | AE28: -0.06 | AF28: 0.02 | AG28: -0.14 | AH28: -0.20 | AI28: 0.11 | AJ28: -0.21 | AK28: 5 | AL28: 1.58 | AM28: 21756 | AN28: 8175 | AO28: 0.016 | AP28: 7402 | AQ28: 0.014 | AR28: B | AS28: 0.677 | AT28: 0.007 | AU28: G | AV28: 0.72 | AW28: 0.02 | AX28: A | AY28: * | AZ28: 66698 | BA28: 0.0009 | BB28: 0.007 | BC28: 99 | BD28: * | BE28: 6.66 | BF28: 6.69 | BH28: D | BK28: 04403-5857 | BL28: I | BM28: 1 | BN28: 2 | BO28: C | BQ28: A | BR28: AB | BS28: 90 | BT28: 3217 | BU28: 0.002 | BV28: 0.21 | BW28: 0.01 | BX28: S | CA28: 30003 | CC28: C-59 893 | CD28: P-59 370 | CE28: 0.72 | CF28: G5V | CG28: X
B29: 100.9287926 | C29: 100.92 | D29: 7,92 | E29: 7.92 | F29: 32,30 | G29: 32.30 | H29: H | I29: 59572 | K29: 12 12 57.41 | L29: +10 02 18.9 | M29: 7.92 | O29: G | P29: 18323919543 | Q29: 1003858627 | S29: 32.30 | T29: 209.60 | U29: -357.90 | V29: 1.03 | W29: 0.57 | X29: 1.02 | Y29: 1.29 | Z29: 0.56 | AA29: -0.15 | AB29: -0.07 | AC29: 0.12 | AD29: -0.05 | AE29: -0.09 | AF29: -0.18 | AG29: -0.05 | AH29: -0.11 | AI29: 0.04 | AJ29: 0.04 | AK29: 0 | AL29: 0.67 | AM29: 59572 | AN29: 8938 | AO29: 0.013 | AP29: 8001 | AQ29: 0.010 | AS29: 0.792 | AT29: 0.001 | AU29: G | AV29: 0.83 | AW29: 0.00 | AX29: H | AZ29: 80603 | BA29: 0.0012 | BB29: 0.011 | BC29: 90 | BE29: 8.05 | BF29: 8.08 | BH29: C | BN29: 1 | BX29: S | CA29: 106156 | CB29: B+10 2391 | CE29: 0.82 | CF29: G8V | CG29: X
B30: 100.9600496 | C30: 100.96 | D30: 9,34 | E30: 9.34 | F30: 32,29 | G30: 32.29 | H30: H | I30: 42567 | K30: 08 40 36.77 | L30: +43 06 52.0 | M30: 9.34 | O30: G | P30: 13015319831 | Q30: 4311445696 | S30: 32.29 | T30: -168.71 | U30: -297.22 | V30: 1.18 | W30: 0.84 | X30: 1.34 | Y30: 1.43 | Z30: 1.24 | AA30: -0.20 | AB30: 0.25 | AC30: -0.08 | AD30: -0.07 | AE30: -0.15 | AF30: -0.19 | AG30: -0.18 | AH30: 0.27 | AI30: 0.00 | AJ30: -0.22 | AK30: 0 | AL30: 0.54 | AM30: 42567 | AN30: 10786 | AO30: 0.055 | AP30: 9469 | AQ30: 0.028 | AS30: 1083 | AT30: 0.002 | AU30: G | AV30: 2015-01-01 | AW30: 0.00 | AX30: I | AZ30: 94424 | BA30: 0.0018 | BB30: 0.018 | BC30: 88 | BE30: 9.42 | BF30: 9.48 | BH30: C | BN30: 1 | CA30: 73554 | CB30: B+43 1844 | CE30: 2015-01-01 | CF30: K2V | CG30: X
B31: 100.9287926 | C31: 100.92 | D31: 9,89 | E31: 9.89 | F31: 32,30 | G31: 32.30 | H31: H | I31: 29958 | K31: 06 18 22.08 | L31: -13 52 10.8 | M31: 9.89 | O31: H | P31: 9459201416 | Q31: -1386965600 | S31: 32.30 | T31: 66.60 | U31: 341.18 | V31: 1.11 | W31: 1.09 | X31: 2.10 | Y31: 1.91 | Z31: 1.64 | AA31: 0.22 | AB31: 0.22 | AC31: -0.08 | AD31: -0.15 | AE31: -0.40 | AF31: 0.27 | AG31: -0.32 | AH31: -0.46 | AI31: 0.00 | AJ31: 0.39 | AK31: 1 | AL31: 1.78 | AM31: 29958 | AN31: 11535 | AO31: 0.079 | AP31: 10024 | AQ31: 0.031 | AS31: 1197 | AT31: 0.014 | AU31: G | AV31: 1937-01-01 | AW31: 0.02 | AX31: A | AZ31: 100306 | BA31: 0.0026 | BB31: 0.026 | BC31: 132 | BE31: 9.98 | BF31: 2014-07-10 | BN31: 1 | BY31: G | CB31: B-13 1434 | CE31: 1937-01-01 | CF31: M0IV | CG31: X
B32: 1003.076923 | C32: 1003.0 | D32: 6,11 | E32: 6.11 | F32: 3,25 | G32: 3.25 | H32: H | I32: 61404 | K32: 12 34 54.46 | L32: -67 45 24.8 | M32: 6.11 | N32: 2 | O32: H | P32: 18872693180 | Q32: -6775688853 | S32: 3.25 | T32: -11.89 | U32: -2.40 | V32: 0.46 | W32: 0.47 | X32: 0.61 | Y32: 0.58 | Z32: 0.52 | AA32: 0.06 | AB32: -0.16 | AC32: 0.21 | AD32: 0.15 | AE32: 0.08 | AF32: 0.01 | AG32: 0.08 | AH32: -0.14 | AI32: 0.03 | AJ32: 0.14 | AK32: 0 | AL32: 0.67 | AM32: 61404 | AN32: 8176 | AO32: 0.016 | AP32: 6395 | AQ32: 0.017 | AS32: 1514 | AT32: 0.019 | AU32: T | AV32: 1948-03-01 | AW32: 0.05 | AX32: O | AZ32: 58299 | BA32: 0.0125 | BB32: 0.151 | BC32: 128 | BE32: 5.59 | BF32: 6.02 | BH32: U | BI32: 2 | BN32: 1 | BQ32: S | BX32: S | CA32: 109372 | CC32: C-67 1258 | CD32: P-67 2005 | CE32: 1937-04-01 | CF32: M6II/III | CG32: 1
B33: 1003.076923 | C33: 1003.0 | D33: 6,18 | E33: 6.18 | F33: 3,25 | G33: 3.25 | H33: H | I33: 664 | K33: 00 08 12.09 | L33: -02 26 51.7 | M33: 6.18 | N33: 2 | O33: H | P33: 205038298 | Q33: -244769895 | S33: 3.25 | T33: 7.25 | U33: -4.87 | V33: 0.80 | W33: 0.50 | X33: 0.96 | Y33: 1.28 | Z33: 0.60 | AA33: 0.24 | AB33: -0.10 | AC33: -0.34 | AD33: -0.08 | AE33: -0.20 | AF33: 0.42 | AG33: -0.10 | AH33: -0.21 | AI33: 0.28 | AJ33: 0.17 | AK33: 0 | AL33: -1.30 | AM33: 664 | AN33: 7967 | AO33: 0.014 | AP33: 6362 | AQ33: 0.008 | AS33: 1366 | AT33: 0.001 | AU33: G | AV33: 1933-01-01 | AW33: 0.00 | AX33: H | AZ33: 63245 | BA33: 0.0130 | BB33: 0.075 | BC33: 69 | BE33: 6.26 | BF33: 6.44 | BG33: 48.34 | BH33: P | BI33: 1 | BJ33: A | BN33: 1 | BX33: S | CA33: 352 | CB33: B-03 3 | CE33: 1933-01-01 | CF33: K2III | CG33: S
B34: 1003.076923 | C34: 1003.0 | D34: 6,36 | E34: 6.36 | F34: 3,25 | G34: 3.25 | H34: H | I34: 38667 | K34: 07 55 00.44 | L34: -52 35 00.1 | M34: 6.36 | O34: H | P34: 11875182427 | Q34: -5258335768 | S34: 3.25 | T34: -13.58 | U34: 11.49 | V34: 0.45 | W34: 0.49 | X34: 0.51 | Y34: 0.51 | Z34: 0.52 | AA34: 0.16 | AB34: 0.02 | AC34: 0.02 | AD34: -0.22 | AE34: -0.14 | AF34: 0.01 | AG34: -0.13 | AH34: -0.18 | AI34: 0.17 | AJ34: 0.04 | AK34: 1 | AL34: 2.25 | AM34: 38667 | AN34: 6345 | AO34: 0.004 | AP34: 6358 | AQ34: 0.005 | AS34: -0.007 | AT34: 0.006 | AU34: T | AV34: 0.01 | AW34: 0.01 | AX34: L | AZ34: 63620 | BA34: 0.0010 | BB34: 0.007 | BC34: 110 | BE34: 6.35 | BF34: 6.37 | BN34: 1 | BX34: S | CA34: 65189 | CD34: P-52 1333 | CE34: 0.00 | CF34: B8III | CG34: 2
B35: 1003.076923 | C35: 1003.0 | D35: 6,50 | E35: 6.50 | F35: 3,25 | G35: 3.25 | H35: H | I35: 27164 | K35: 05 45 29.59 | L35: +31 19 29.5 | M35: 6.50 | O35: H | P35: 8637330119 | Q35: 3132486889 | S35: 3.25 | T35: 6.18 | U35: -18.05 | V35: 0.78 | W35: 0.50 | X35: 0.83 | Y35: 0.91 | Z35: 0.55 | AA35: 0.02 | AB35: 0.30 | AC35: -0.04 | AD35: 0.29 | AE35: 0.05 | AF35: 0.07 | AG35: 0.05 | AH35: 0.40 | AI35: 0.05 | AJ35: 0.10 | AK35: 0 | AL35: 0.27 | AM35: 27164 | AN35: 7930 | AO35: 0.009 | AP35: 6637 | AQ35: 0.006 | AS35: 1100 | AT35: 0.008 | AU35: T | AV35: 2014-06-01 | AW35: 0.01 | AX35: L | AZ35: 66683 | BA35: 0.0007 | BB35: 0.007 | BC35: 66 | BE35: 6.66 | BF35: 6.68 | BH35: C | BN35: 1 | BX35: S | CA35: 38200 | CB35: B+31 1080 | CE35: 2014-08-01 | CF35: K0 | CG35: S
B36: 1003.076923 | C36: 1003.0 | D36: 7,02 | E36: 7.02 | F36: 3,25 | G36: 3.25 | H36: H | I36: 29713 | K36: 06 15 30.25 | L36: +03 57 29.5 | M36: 7.02 | O36: H | P36: 9387602423 | Q36: 395820413 | S36: 3.25 | T36: -5.92 | U36: -4.00 | V36: 0.75 | W36: 0.53 | X36: 0.84 | Y36: 0.74 | Z36: 0.57 | AA36: 0.13 | AB36: 0.26 | AC36: -0.15 | AD36: -0.27 | AE36: -0.06 | AF36: -0.14 | AG36: -0.04 | AH36: -0.45 | AI36: -0.01 | AJ36: 0.31 | AK36: 0 | AL36: 0.96 | AM36: 29713 | AN36: 6848 | AO36: 0.005 | AP36: 6993 | AQ36: 0.006 | AS36: -0.130 | AT36: 0.015 | AU36: G | AV36: -.12 | AW36: 0.02 | AX36: H | AZ36: 69801 | BA36: 0.0009 | BB36: 0.008 | BC36: 101 | BE36: 6.97 | BF36: 6.99 | BH36: C | BK36: 06155+0357 | BL36: I | BM36: 1 | BN36: 1 | BX36: S | CA36: 43286 | CB36: B+03 1180 | CE36: -.12 | CF36: B5 | CG36: S
B37: 1003.076923 | C37: 1003.0 | D37: 7,20 | E37: 7.20 | F37: 3,25 | G37: 3.25 | H37: H | I37: 27956 | K37: 05 54 54.00 | L37: +22 31 11.7 | M37: 7.20 | O37: H | P37: 8872500353 | Q37: 2251992455 | S37: 3.25 | T37: 12.55 | U37: 8.29 | V37: 0.97 | W37: 0.50 | X37: 1.10 | Y37: 0.79 | Z37: 0.48 | AA37: -0.08 | AB37: 0.58 | AC37: -0.19 | AD37: -0.09 | AE37: -0.20 | AF37: 0.21 | AG37: -0.02 | AH37: -0.59 | AI37: 0.08 | AJ37: 0.28 | AK37: 0 | AL37: -0.30 | AM37: 27956 | AN37: 8819 | AO37: 0.011 | AP37: 7336 | AQ37: 0.006 | AS37: 1249 | AT37: 0.010 | AU37: T | AV37: 2021-01-01 | AW37: 0.01 | AX37: L | AZ37: 73639 | BA37: 0.0010 | BB37: 0.011 | BC37: 132 | BE37: 7.35 | BF37: 7.38 | BH37: C | BN37: 1 | BX37: S | CA37: 39645 | CB37: B+22 1096 | CE37: 2019-01-01 | CF37: G7III | CG37: X
B38: 1003.076923 | C38: 1003.0 | D38: 7,22 | E38: 7.22 | F38: 3,25 | G38: 3.25 | H38: H | I38: 13502 | K38: 02 53 52.65 | L38: -49 53 23.0 | M38: 7.22 | N38: 3 | O38: T | P38: 4346939208 | Q38: -4988973319 | R38: * | S38: 3.25 | T38: 131.21 | U38: 35.74 | V38: 0.80 | W38: 0.76 | X38: 1.08 | Y38: 0.98 | Z38: 0.84 | AA38: -0.17 | AB38: 0.23 | AC38: -0.41 | AD38: -0.22 | AE38: 0.19 | AF38: -0.27 | AG38: -0.02 | AH38: 0.15 | AI38: -0.40 | AJ38: 0.06 | AK38: 2 | AL38: 1.99 | AM38: 13502 | AN38: 8560 | AO38: 0.012 | AP38: 7338 | AQ38: 0.007 | AS38: 1044 | AT38: 0.011 | AU38: T | AV38: 2014-01-01 | AW38: 0.01 | AX38: L | AZ38: 71381 | BA38: 0.3196 | BB38: 1851 | BC38: 115 | BE38: 5.48 | BF38: 9.74 | BG38: 415.00 | BH38: P | BI38: 1 | BJ38: B | BN38: 1 | BO38: V | BZ38: P | CA38: 18242 | CC38: C-50 860 | CE38: 1963-04-01 | CF38: M7e | CG38: 2
B39: 1003.076923 | C39: 1003.0 | D39: 7,22 | E39: 7.22 | F39: 3,25 | G39: 3.25 | H39: H | I39: 29657 | K39: 06 14 54.69 | L39: -08 48 15.2 | M39: 7.22 | O39: H | P39: 9372786507 | Q39: -880422405 | S39: 3.25 | T39: -5.56 | U39: 0.83 | V39: 0.67 | W39: 0.55 | X39: 0.92 | Y39: 0.88 | Z39: 0.79 | AA39: -0.24 | AB39: 0.36 | AC39: -0.21 | AD39: -0.40 | AE39: 0.07 | AF39: -0.23 | AG39: 0.01 | AH39: -0.33 | AI39: -0.02 | AJ39: -0.10 | AK39: 0 | AL39: -0.27 | AM39: 29657 | AN39: 7093 | AO39: 0.004 | AP39: 7188 | AQ39: 0.006 | AS39: -0.094 | AT39: 0.009 | AU39: G | AV39: -.08 | AW39: 0.01 | AX39: H | AZ39: 71892 | BA39: 0.0012 | BB39: 0.011 | BC39: 130 | BE39: 7.17 | BF39: 7.21 | BN39: 1 | BX39: S | CA39: 43251 | CB39: B-08 1361 | CE39: -.08 | CF39: B8 | CG39: S
B40: 1003.076923 | C40: 1003.0 | D40: 7,43 | E40: 7.43 | F40: 3,25 | G40: 3.25 | H40: H | I40: 22644 | K40: 04 52 19.66 | L40: -07 53 44.3 | M40: 7.43 | O40: G | P40: 7308192690 | Q40: -789564572 | S40: 3.25 | T40: -3.85 | U40: -24.05 | V40: 0.71 | W40: 0.58 | X40: 0.81 | Y40: 0.85 | Z40: 0.75 | AA40: 0.08 | AB40: 0.19 | AC40: -0.05 | AD40: 0.39 | AE40: 0.13 | AF40: -0.03 | AG40: 0.11 | AH40: 0.48 | AI40: -0.11 | AJ40: 0.12 | AK40: 0 | AL40: 0.26 | AM40: 22644 | AN40: 7392 | AO40: 0.008 | AP40: 7398 | AQ40: 0.010 | AS40: -0.028 | AT40: 0.002 | AU40: G | AV40: -.01 | AW40: 0.00 | AX40: H | AZ40: 74269 | BA40: 0.0012 | BB40: 0.009 | BC40: 76 | BE40: 7.41 | BF40: 7.45 | BN40: 1 | BX40: S | CA40: 31057 | CB40: B-08 963 | CE40: -.01 | CF40: A0 | CG40: S
B41: 1003.076923 | C41: 1003.0 | D41: 7,43 | E41: 7.43 | F41: 3,25 | G41: 3.25 | H41: H | I41: 56129 | K41: 11 30 19.61 | L41: +47 14 40.7 | M41: 7.43 | O41: H | P41: 17258172000 | Q41: 4724462545 | S41: 3.25 | T41: 13.43 | U41: -7.86 | V41: 0.62 | W41: 0.45 | X41: 0.83 | Y41: 0.68 | Z41: 0.46 | AA41: 0.19 | AB41: 0.13 | AC41: -0.14 | AD41: 0.14 | AE41: 0.09 | AF41: -0.02 | AG41: 0.15 | AH41: -0.28 | AI41: 0.28 | AJ41: 0.31 | AK41: 1 | AL41: 0.34 | AM41: 56129 | AN41: 8673 | AO41: 0.008 | AP41: 7541 | AQ41: 0.005 | AS41: 0.960 | AT41: 0.015 | AU41: G | AV41: 0.95 | AW41: 0.01 | AX41: H | AZ41: 75983 | BA41: 0.0007 | BB41: 0.009 | BC41: 154 | BE41: 7.58 | BF41: 7.62 | BN41: 1 | BX41: S | CA41: 99954 | CB41: B+48 1949 | CE41: 0.95 | CF41: K0III-IV | CG41: X
B42: 1003.076923 | C42: 1003.0 | D42: 7,50 | E42: 7.50 | F42: 3,25 | G42: 3.25 | H42: H | I42: 38387 | J42: H | K42: 07 51 48.55 | L42: -55 42 09.2 | M42: 7.50 | O42: H | P42: 11795227196 | Q42: -5570254660 | R42: * | S42: 3.25 | T42: -12.29 | U42: 14.09 | V42: 1.98 | W42: 1.04 | X42: 0.79 | Y42: 0.92 | Z42: 0.78 | AA42: -0.06 | AB42: 0.04 | AC42: -0.06 | AD42: 0.12 | AE42: 0.05 | AF42: 0.25 | AG42: 0.06 | AH42: -0.17 | AI42: 0.07 | AJ42: -0.05 | AK42: 1 | AL42: -0.28 | AM42: 38387 | AN42: 8717 | AO42: 0.011 | AP42: 7619 | AQ42: 0.008 | AR42: * | AS42: 0.948 | AT42: 0.011 | AU42: T | AV42: 0.94 | AW42: 0.01 | AX42: L | AY42: * | AZ42: 76624 | BA42: 0.0010 | BB42: 0.010 | BC42: 93 | BD42: * | BE42: 7.64 | BF42: 7.68 | BH42: D | BK42: 07518-5542 | BL42: H | BM42: 1 | BN42: 2 | BO42: C | BQ42: A | BR42: AB | BS42: 173 | BT42: 0.233 | BU42: 0.007 | BV42: 1.47 | BW42: 0.12 | BX42: S | CA42: 64624 | CD42: P-55 1372 | CE42: 0.93 | CF42: G8/K0III+.. | CG42: 1
B43: 1003.076923 | C43: 1003.0 | D43: 7,53 | E43: 7.53 | F43: 3,25 | G43: 3.25 | H43: H | I43: 15043 | K43: 03 13 53.40 | L43: -32 49 46.1 | M43: 7.53 | O43: H | P43: 4847248344 | Q43: -3282947218 | S43: 3.25 | T43: 16.16 | U43: 12.85 | V43: 0.44 | W43: 0.55 | X43: 0.81 | Y43: 0.49 | Z43: 0.61 | AA43: -0.10 | AB43: -0.03 | AC43: -0.08 | AD43: 0.02 | AE43: -0.01 | AF43: 0.08 | AG43: -0.02 | AH43: 0.19 | AI43: -0.02 | AJ43: 0.03 | AK43: 0 | AL43: -0.49 | AM43: 15043 | AN43: 9068 | AO43: 0.009 | AP43: 7660 | AQ43: 0.006 | AS43: 1190 | AT43: 0.008 | AU43: T | AV43: 2015-01-01 | AW43: 0.01 | AX43: L | AZ43: 76982 | BA43: 0.0013 | BB43: 0.016 | BC43: 201 | BE43: 7.68 | BF43: 7.73 | BN43: 1 | BX43: S | CA43: 20216 | CC43: C-33 1132 | CD43: P-33 332 | CE43: 2014-12-01 | CF43: K1III | CG43: 3
B44: 1003.076923 | C44: 1003.0 | D44: 7,54 | E44: 7.54 | F44: 3,25 | G44: 3.25 | H44: H | I44: 38493 | K44: 07 53 00.06 | L44: -14 03 28.6 | M44: 7.54 | O44: H | P44: 11825026570 | Q44: -1405794986 | S44: 3.25 | T44: -13.28 | U44: -9.86 | V44: 0.98 | W44: 0.64 | X44: 1.10 | Y44: 1.06 | Z44: 0.80 | AA44: -0.11 | AB44: 0.35 | AC44: -0.14 | AD44: 0.32 | AE44: 0.05 | AF44: -0.11 | AG44: -0.09 | AH44: 0.03 | AI44: -0.17 | AJ44: -0.06 | AK44: 0 | AL44: 1.88 | AM44: 38493 | AN44: 9021 | AO44: 0.018 | AP44: 7659 | AQ44: 0.011 | AS44: 1154 | AT44: 0.017 | AU44: T | AV44: 2014-12-01 | AW44: 0.01 | AX44: L | AZ44: 77087 | BA44: 0.0014 | BB44: 0.011 | BC44: 78 | BE44: 7.70 | BF44: 7.73 | BH44: C | BK44: 07530-1404 | BL44: I | BM44: 1 | BN44: 1 | BO44: G | CA44: 64356 | CB44: B-13 2277 | CE44: 2014-11-01 | CF44: K0III | CG44: 4
B45: 1003.076923 | C45: 1003.0 | D45: 7,54 | E45: 7.54 | F45: 3,25 | G45: 3.25 | H45: H | I45: 40808 | K45: 08 19 44.08 | L45: -60 06 11.3 | M45: 7.54 | O45: H | P45: 12493367532 | Q45: -6010314059 | S45: 3.25 | T45: -9.26 | U45: 3.71 | V45: 0.52 | W45: 0.47 | X45: 0.54 | Y45: 0.58 | Z45: 0.46 | AA45: 0.03 | AB45: -0.10 | AC45: -0.01 | AD45: 0.13 | AE45: -0.02 | AF45: -0.04 | AG45: -0.04 | AH45: -0.14 | AI45: 0.18 | AJ45: 0.02 | AK45: 0 | AL45: 1.74 | AM45: 40808 | AN45: 7474 | AO45: 0.006 | AP45: 7523 | AQ45: 0.008 | AS45: -0.051 | AT45: 0.008 | AU45: G | AV45: -.03 | AW45: 0.01 | AX45: H | AZ45: 75264 | BA45: 0.0012 | BB45: 0.010 | BC45: 116 | BE45: 7.51 | BF45: 7.55 | BH45: C | BN45: 1 | BX45: S | CA45: 70622 | CD45: P-59 1023 | CE45: -.03 | CF45: B9.5IV | CG45: 1
B46: 1003.076923 | C46: 1003.0 | D46: 7,55 | E46: 7.55 | F46: 3,25 | G46: 3.25 | H46: H | I46: 59719 | K46: 12 14 51.82 | L46: -44 06 42.1 | M46: 7.55 | O46: G | P46: 18371591221 | Q46: -4411169270 | S46: 3.25 | T46: -26.72 | U46: 3.12 | V46: 0.61 | W46: 0.47 | X46: 0.87 | Y46: 0.63 | Z46: 0.54 | AA46: 0.07 | AB46: -0.15 | AC46: 0.03 | AD46: 0.13 | AE46: -0.09 | AF46: 0.10 | AG46: -0.06 | AH46: 0.54 | AI46: 0.00 | AJ46: -0.02 | AK46: 1 | AL46: 2.53 | AM46: 59719 | AN46: 8976 | AO46: 0.010 | AP46: 7682 | AQ46: 0.006 | AS46: 1082 | AT46: 0.056 | AU46: G | AV46: 2014-05-01 | AW46: 0.02 | AX46: A | AZ46: 77164 | BA46: 0.0009 | BB46: 0.011 | BC46: 175 | BE46: 7.70 | BF46: 7.73 | BH46: C | BN46: 1 | BX46: S | CA46: 106456 | CC46: C-43 7560 | CD46: P-43 5725 | CE46: 2014-05-01 | CF46: K0II/III | CG46: 2
B47: 1003.076923 | C47: 1003.0 | D47: 7,58 | E47: 7.58 | F47: 3,25 | G47: 3.25 | H47: H | I47: 7064 | K47: 01 31 02.47 | L47: +39 29 40.7 | M47: 7.58 | O47: G | P47: 2276029147 | Q47: 3949462514 | S47: 3.25 | T47: 6.92 | U47: -4.88 | V47: 0.72 | W47: 0.53 | X47: 0.93 | Y47: 0.82 | Z47: 0.55 | AA47: 0.13 | AB47: 0.24 | AC47: 0.27 | AD47: 0.26 | AE47: 0.01 | AF47: -0.22 | AG47: 0.10 | AH47: 0.18 | AI47: 0.33 | AJ47: -0.18 | AK47: 0 | AL47: 1.48 | AM47: 7064 | AN47: 7505 | AO47: 0.008 | AP47: 7541 | AQ47: 0.009 | AS47: -0.057 | AT47: 0.010 | AU47: G | AV47: -.04 | AW47: 0.01 | AX47: H | AZ47: 75697 | BA47: 0.0014 | BB47: 0.009 | BC47: 92 | BE47: 7.55 | BF47: 7.59 | BH47: C | BN47: 1 | BX47: S | CA47: 9177 | CB47: B+38 275 | CE47: -.04 | CF47: B9 | CG47: S
B48: 1003.076923 | C48: 1003.0 | D48: 7,59 | E48: 7.59 | F48: 3,25 | G48: 3.25 | H48: H | I48: 45143 | K48: 09 11 51.31 | L48: -06 58 46.4 | M48: 7.59 | N48: 1 | O48: H | P48: 13796381067 | Q48: -697956469 | S48: 3.25 | T48: -2.55 | U48: -0.89 | V48: 0.88 | W48: 0.87 | X48: 1.01 | Y48: 1.12 | Z48: 0.89 | AA48: -0.35 | AB48: 0.31 | AC48: -0.22 | AD48: -0.28 | AE48: 0.30 | AF48: -0.22 | AG48: 0.29 | AH48: -0.71 | AI48: 0.23 | AJ48: -0.40 | AK48: 0 | AL48: 2.71 | AM48: 45143 | AN48: 9681 | AO48: 0.026 | AP48: 7793 | AQ48: 0.011 | AS48: 1628 | AT48: 0.015 | AU48: G | AV48: 2014-09-02 | AW48: 0.02 | AX48: A | AZ48: 76651 | BA48: 0.0024 | BB48: 0.018 | BC48: 70 | BE48: 7.64 | BF48: 7.70 | BH48: U | BN48: 1 | BX48: S | CA48: 79097 | CB48: B-06 2839 | CE48: 2014-09-02 | CF48: M... | CG48: S
B49: 1003.076923 | C49: 1003.0 | D49: 7,76 | E49: 7.76 | F49: 3,25 | G49: 3.25 | H49: H | I49: 49384 | K49: 10 04 55.65 | L49: -35 09 03.6 | M49: 7.76 | O49: H | P49: 15123186628 | Q49: -3515101181 | S49: 3.25 | T49: 0.78 | U49: -3.41 | V49: 0.51 | W49: 0.66 | X49: 0.80 | Y49: 0.62 | Z49: 0.75 | AA49: -0.11 | AB49: 0.00 | AC49: -0.09 | AD49: 0.15 | AE49: 0.00 | AF49: 0.06 | AG49: -0.05 | AH49: -0.31 | AI49: 0.11 | AJ49: -0.24 | AK49: 0 | AL49: -0.17 | AM49: 49384 | AN49: 9839 | AO49: 0.017 | AP49: 7926 | AQ49: 0.008 | AS49: 1588 | AT49: 0.015 | AU49: T | AV49: 1961-01-01 | AW49: 0.01 | AX49: L | AZ49: 78758 | BA49: 0.0015 | BB49: 0.014 | BC49: 143 | BE49: 7.86 | BF49: 7.91 | BN49: 1 | CA49: 87559 | CC49: C-34 6393 | CD49: P-34 3895 | CE49: 1954-01-01 | CF49: K3III | CG49: 3
B50: 1003.076923 | C50: 1003.0 | D50: 7,82 | E50: 7.82 | F50: 3,25 | G50: 3.25 | H50: H | I50: 17937 | K50: 03 50 09.96 | L50: +29 38 39.5 | M50: 7.82 | O50: H | P50: 5754148171 | Q50: 2964431801 | S50: 3.25 | T50: -2.66 | U50: -15.77 | V50: 0.85 | W50: 0.61 | X50: 1.03 | Y50: 0.93 | Z50: 0.81 | AA50: 0.17 | AB50: 0.30 | AC50: -0.31 | AD50: -0.12 | AE50: -0.15 | AF50: 0.04 | AG50: -0.13 | AH50: -0.15 | AI50: 0.10 | AJ50: 0.43 | AK50: 0 | AL50: -1.84 | AM50: 17937 | AN50: 7937 | AO50: 0.009 | AP50: 7814 | AQ50: 0.010 | AS50: 0.119 | AT50: 0.013 | AU50: T | AV50: 0.13 | AW50: 0.01 | AX50: L | AZ50: 78594 | BA50: 0.0015 | BB50: 0.011 | BC50: 95 | BE50: 7.84 | BF50: 7.88 | BK50: 03502+2939 | BL50: I | BM50: 1 | BN50: 1 | BX50: S | CA50: 23946 | CB50: B+29 632 | CE50: 0.21 | CF50: A0 | CG50: S
B51: 1003.076923 | C51: 1003.0 | D51: 7,83 | E51: 7.83 | F51: 3,25 | G51: 3.25 | H51: H | I51: 63908 | K51: 13 05 47.17 | L51: -35 06 42.7 | M51: 7.83 | O51: H | P51: 19644653043 | Q51: -3511185345 | S51: 3.25 | T51: -1.47 | U51: -5.40 | V51: 0.99 | W51: 0.68 | X51: 0.98 | Y51: 1.07 | Z51: 0.74 | AA51: 0.03 | AB51: -0.23 | AC51: -0.15 | AD51: 0.49 | AE51: 0.17 | AF51: -0.04 | AG51: 0.14 | AH51: 0.14 | AI51: 0.05 | AJ51: -0.04 | AK51: 0 | AL51: 1.02 | AM51: 63908 | AN51: 9189 | AO51: 0.018 | AP51: 7941 | AQ51: 0.012 | AS51: 1064 | AT51: 0.017 | AU51: T | AV51: 2014-03-01 | AW51: 0.01 | AX51: L | AZ51: 79999 | BA51: 0.0013 | BB51: 0.011 | BC51: 74 | BE51: 7.98 | BF51: 8.02 | BH51: C | BN51: 1 | BX51: S | CA51: 113678 | CC51: C-34 8638 | CD51: P-34 5505 | CE51: 2014-01-01 | CF51: K0III | CG51: 3
B52: 1003.076923 | C52: 1003.0 | D52: 7,85 | E52: 7.85 | F52: 3,25 | G52: 3.25 | H52: H | I52: 25196 | K52: 05 23 26.76 | L52: -49 22 29.8 | M52: 7.85 | O52: H | P52: 8086149304 | Q52: -4937493527 | S52: 3.25 | T52: 9.45 | U52: -2.78 | V52: 0.59 | W52: 0.68 | X52: 0.67 | Y52: 0.68 | Z52: 0.80 | AA52: -0.11 | AB52: 0.06 | AC52: -0.04 | AD52: 0.26 | AE52: -0.12 | AF52: -0.02 | AG52: -0.12 | AH52: -0.02 | AI52: -0.01 | AJ52: -0.12 | AK52: 0 | AL52: -0.91 | AM52: 25196 | AN52: 9343 | AO52: 0.016 | AP52: 7963 | AQ52: 0.009 | AS52: 1168 | AT52: 0.014 | AU52: T | AV52: 2013-01-01 | AW52: 0.01 | AX52: L | AZ52: 80128 | BA52: 0.0012 | BB52: 0.013 | BC52: 109 | BE52: 7.99 | BF52: 8.04 | BN52: 1 | BX52: S | CA52: 35604 | CC52: C-49 1701 | CD52: P-49 709 | CE52: 2014-11-01 | CF52: K0III | CG52: 2
B53: 1003.076923 | C53: 1003.0 | D53: 7,86 | E53: 7.86 | F53: 3,25 | G53: 3.25 | H53: H | I53: 32517 | K53: 06 47 09.65 | L53: -30 57 27.8 | M53: 7.86 | N53: 1 | O53: H | P53: 10179022834 | Q53: -3095771291 | S53: 3.25 | T53: -9.09 | U53: 12.27 | V53: 0.54 | W53: 0.61 | X53: 0.80 | Y53: 0.60 | Z53: 0.72 | AA53: -0.04 | AB53: 0.06 | AC53: -0.03 | AD53: 0.20 | AE53: -0.10 | AF53: 0.16 | AG53: -0.10 | AH53: 0.06 | AI53: 0.01 | AJ53: -0.05 | AK53: 2 | AL53: 0.43 | AM53: 32517 | AN53: 8473 | AO53: 0.010 | AP53: 7931 | AQ53: 0.009 | AS53: 0.508 | AT53: 0.012 | AU53: T | AV53: 0.58 | AW53: 0.01 | AX53: L | AZ53: 79756 | BA53: 0.0021 | BB53: 0.021 | BC53: 159 | BE53: 7.95 | BF53: 8.02 | BH53: U | BK53: 06472-3057 | BL53: I | BM53: 1 | BN53: 1 | BX53: S | CA53: 49468 | CC53: C-30 3534 | CD53: P-30 1415 | CE53: 0.58 | CF53: F5III | CG53: 3
B54: 1003.076923 | C54: 1003.0 | D54: 7,91 | E54: 7.91 | F54: 3,25 | G54: 3.25 | H54: H | I54: 55331 | K54: 11 19 50.51 | L54: +19 04 56.5 | M54: 7.91 | O54: H | P54: 16996047218 | Q54: 1908234930 | S54: 3.25 | T54: -0.21 | U54: -13.60 | V54: 0.88 | W54: 0.79 | X54: 1.15 | Y54: 0.96 | Z54: 0.81 | AA54: -0.17 | AB54: 0.09 | AC54: -0.56 | AD54: -0.04 | AE54: 0.17 | AF54: -0.18 | AG54: 0.11 | AH54: -0.18 | AI54: 0.24 | AJ54: -0.27 | AK54: 0 | AL54: 1.97 | AM54: 55331 | AN54: 9328 | AO54: 0.021 | AP54: 8028 | AQ54: 0.013 | AS54: 1105 | AT54: 0.019 | AU54: T | AV54: 2014-07-01 | AW54: 0.02 | AX54: L | AZ54: 80741 | BA54: 0.0013 | BB54: 0.009 | BC54: 56 | BE54: 8.06 | BF54: 8.09 | BH54: C | BN54: 1 | BX54: S | CA54: 98469 | CB54: B+19 2438 | CE54: 2014-05-01 | CF54: K0 | CG54: S
B55: 1003.076923 | C55: 1003.0 | D55: 7,95 | E55: 7.95 | F55: 3,25 | G55: 3.25 | H55: H | I55: 18296 | K55: 03 54 44.58 | L55: +23 12 05.8 | M55: 7.95 | O55: H | P55: 5868574858 | Q55: 2320161008 | S55: 3.25 | T55: 1.35 | U55: -9.14 | V55: 0.97 | W55: 0.56 | X55: 1.13 | Y55: 1.02 | Z55: 0.85 | AA55: 0.24 | AB55: 0.44 | AC55: 0.04 | AD55: 0.07 | AE55: 0.04 | AF55: -0.24 | AG55: -0.08 | AH55: 0.27 | AI55: -0.23 | AJ55: 0.35 | AK55: 0 | AL55: -0.73 | AM55: 18296 | AN55: 8000 | AO55: 0.010 | AP55: 7953 | AQ55: 0.011 | AS55: 0.048 | AT55: 0.014 | AU55: T | AV55: 0.06 | AW55: 0.01 | AX55: L | AZ55: 79647 | BA55: 0.0016 | BB55: 0.011 | BC55: 77 | BE55: 7.95 | BF55: 7.98 | BN55: 1 | CA55: 24518 | CB55: B+22 594 | CE55: 0.31 | CF55: B9 | CG55: S
B56: 1003.076923 | C56: 1003.0 | D56: 7,95 | E56: 7.95 | F56: 3,25 | G56: 3.25 | H56: H | I56: 25688 | K56: 05 29 08.33 | L56: -17 19 15.8 | M56: 7.95 | O56: H | P56: 8228471022 | Q56: -1732104880 | S56: 3.25 | T56: 4.67 | U56: 0.33 | V56: 0.63 | W56: 0.77 | X56: 1.03 | Y56: 0.74 | Z56: 0.92 | AA56: 0.24 | AB56: 0.17 | AC56: 0.04 | AD56: -0.01 | AE56: -0.07 | AF56: -0.13 | AG56: -0.08 | AH56: 0.04 | AI56: -0.14 | AJ56: 0.07 | AK56: 0 | AL56: 0.58 | AM56: 25688 | AN56: 9714 | AO56: 0.020 | AP56: 8089 | AQ56: 0.010 | AS56: 1360 | AT56: 0.018 | AU56: T | AV56: 1933-01-01 | AW56: 0.02 | AX56: L | AZ56: 80978 | BA56: 0.0014 | BB56: 0.013 | BC56: 109 | BE56: 8.07 | BF56: 8.12 | BH56: C | BN56: 1 | CA56: 36168 | CB56: B-17 1148 | CE56: 1934-01-01 | CF56: K1III | CG56: 4
B57: 1003.076923 | C57: 1003.0 | D57: 7,96 | E57: 7.96 | F57: 3,25 | G57: 3.25 | H57: H | I57: 15105 | K57: 03 14 50.64 | L57: +47 09 18.2 | M57: 7.96 | O57: H | P57: 4871100501 | Q57: 4715506018 | S57: 3.25 | T57: -2.15 | U57: -7.26 | V57: 0.73 | W57: 0.62 | X57: 0.90 | Y57: 0.75 | Z57: 0.73 | AA57: 0.15 | AB57: 0.23 | AC57: -0.01 | AD57: 0.12 | AE57: -0.12 | AF57: 0.11 | AG57: -0.13 | AH57: 0.13 | AI57: 0.02 | AJ57: 0.11 | AK57: 0 | AL57: 0.20 | AM57: 15105 | AN57: 7971 | AO57: 0.010 | AP57: 7948 | AQ57: 0.012 | AS57: 0.026 | AT57: 0.014 | AU57: T | AV57: 0.04 | AW57: 0.01 | AX57: L | AZ57: 79806 | BA57: 0.0008 | BB57: 0.010 | BC57: 74 | BE57: 7.96 | BF57: 8.00 | BH57: D | BN57: 1 | BX57: S | CA57: 20023 | CB57: B+46 713 | CE57: 0.02 | CF57: B9III | CG57: S
B58: 1003.076923 | C58: 1003.0 | D58: 7,96 | E58: 7.96 | F58: 3,25 | G58: 3.25 | H58: H | I58: 27200 | J58: H | K58: 05 45 56.59 | L58: +24 13 29.8 | M58: 7.96 | O58: G | P58: 8648579501 | Q58: 2422494414 | R58: * | S58: 3.25 | T58: -5.09 | U58: -9.03 | V58: 1.05 | W58: 0.69 | X58: 1.18 | Y58: 1.34 | Z58: 0.90 | AA58: 0.02 | AB58: 0.38 | AC58: -0.26 | AD58: 0.09 | AE58: 0.16 | AF58: 0.06 | AG58: 0.12 | AH58: 0.15 | AI58: -0.07 | AJ58: 0.38 | AK58: 0 | AL58: 0.68 | AM58: 27200 | AN58: 8203 | AO58: 0.013 | AP58: 7968 | AQ58: 0.015 | AR58: * | AS58: 0.220 | AT58: 0.015 | AU58: G | AV58: 0.24 | AW58: 0.02 | AX58: H | AY58: * | AZ58: 79934 | BA58: 0.0024 | BB58: 0.014 | BC58: 55 | BD58: * | BE58: 7.97 | BF58: 8.02 | BK58: 05459+2413 | BL58: H | BM58: 1 | BN58: 2 | BO58: C | BP58: S | BQ58: B | BR58: AB | BS58: 158 | BT58: 0.117 | BU58: 0.025 | BV58: 0.67 | BW58: 1.00 | CA58: 38334 | CB58: B+24 950 | CE58: 0.24 | CF58: A3 | CG58: S
B59: 1003.076923 | C59: 1003.0 | D59: 7,99 | E59: 7.99 | F59: 3,25 | G59: 3.25 | H59: H | I59: 22146 | K59: 04 45 56.26 | L59: +04 21 36.0 | M59: 7.99 | O59: H | P59: 7148441100 | Q59: 436001145 | S59: 3.25 | T59: -17.41 | U59: 5.81 | V59: 0.96 | W59: 0.67 | X59: 1.06 | Y59: 1.21 | Z59: 0.84 | AA59: 0.13 | AB59: 0.27 | AC59: -0.12 | AD59: 0.21 | AE59: -0.08 | AF59: 0.07 | AG59: -0.08 | AH59: 0.15 | AI59: -0.05 | AJ59: 0.25 | AK59: 0 | AL59: 0.69 | AM59: 22146 | AN59: 8274 | AO59: 0.012 | AP59: 8012 | AQ59: 0.013 | AS59: 0.249 | AT59: 0.017 | AU59: T | AV59: 0.28 | AW59: 0.02 | AX59: L | AZ59: 80557 | BA59: 0.0025 | BB59: 0.019 | BC59: 68 | BE59: 8.03 | BF59: 8.09 | BN59: 1 | BX59: S | CA59: 30234 | CB59: B+04 749 | CE59: 0.25 | CF59: B9 | CG59: S
B60: 1003.076923 | C60: 1003.0 | D60: 7,99 | E60: 7.99 | F60: 3,25 | G60: 3.25 | H60: H | I60: 32595 | K60: 06 48 00.02 | L60: +11 28 58.5 | M60: 7.99 | O60: H | P60: 10200008434 | Q60: 1148291693 | S60: 3.25 | T60: -1.07 | U60: -5.97 | V60: 0.85 | W60: 0.51 | X60: 0.93 | Y60: 1.02 | Z60: 0.71 | AA60: -0.11 | AB60: 0.40 | AC60: -0.21 | AD60: 0.08 | AE60: -0.06 | AF60: -0.05 | AG60: 0.14 | AH60: -0.43 | AI60: 0.08 | AJ60: 0.32 | AK60: 0 | AL60: -0.39 | AM60: 32595 | AN60: 7962 | AO60: 0.010 | AP60: 7987 | AQ60: 0.013 | AS60: -0.018 | AT60: 0.015 | AU60: T | AV60: 0.00 | AW60: 0.01 | AX60: L | AZ60: 79946 | BA60: 0.0013 | BB60: 0.011 | BC60: 89 | BE60: 7.98 | BF60: 8.02 | BN60: 1 | BX60: S | CA60: 49243 | CB60: B+11 1307 | CE60: 0.02 | CF60: A0 | CG60: S
B61: 1003.076923 | C61: 1003.0 | D61: 7,99 | E61: 7.99 | F61: 3,25 | G61: 3.25 | H61: H | I61: 62845 | J61: H | K61: 12 52 46.94 | L61: -39 18 43.7 | M61: 7.99 | O61: H | P61: 19319558005 | Q61: -3931214036 | R61: * | S61: 3.25 | T61: 1.12 | U61: -22.07 | V61: 1.18 | W61: 1.36 | X61: 1.25 | Y61: 1.27 | Z61: 0.89 | AA61: -0.15 | AB61: -0.01 | AC61: 0.10 | AD61: -0.60 | AE61: 0.00 | AF61: 0.02 | AG61: 0.10 | AH61: -0.65 | AI61: 0.04 | AJ61: -0.14 | AK61: 1 | AL61: 0.69 | AM61: 62845 | AN61: 9785 | AO61: 0.018 | AP61: 8144 | AQ61: 0.009 | AR61: * | AS61: 1373 | AT61: 0.016 | AU61: T | AV61: 1934-01-01 | AW61: 0.02 | AX61: L | AY61: * | AZ61: 81383 | BA61: 0.0022 | BB61: 0.026 | BC61: 150 | BD61: * | BE61: 8.10 | BF61: 8.20 | BH61: R | BK61: 12528-3919 | BL61: I | BM61: 1 | BN61: 2 | BO61: C | BQ61: A | BR61: AB | BS61: 297 | BT61: 0.265 | BU61: 0.007 | BV61: 1.09 | BW61: 0.11 | CA61: 111882 | CC61: C-38 8056 | CD61: P-38 5330 | CE61: 0.67 | CF61: K2III/IV | CG61: 3
B62: 1003.076923 | C62: 1003.0 | D62: 8,06 | E62: 8.06 | F62: 3,25 | G62: 3.25 | H62: H | I62: 3017 | K62: 00 38 24.35 | L62: +08 36 16.9 | M62: 8.06 | O62: H | P62: 960147645 | Q62: 860469969 | S62: 3.25 | T62: 8.11 | U62: -5.44 | V62: 0.86 | W62: 0.72 | X62: 1.00 | Y62: 0.95 | Z62: 0.74 | AA62: 0.37 | AB62: 0.11 | AC62: 0.02 | AD62: -0.17 | AE62: -0.07 | AF62: 0.04 | AG62: -0.07 | AH62: -0.25 | AI62: -0.02 | AJ62: 0.56 | AK62: 2 | AL62: 2.11 | AM62: 3017 | AN62: 9325 | AO62: 0.021 | AP62: 8154 | AQ62: 0.014 | AS62: 1004 | AT62: 0.020 | AU62: T | AV62: 0.98 | AW62: 0.02 | AX62: L | AZ62: 82331 | BA62: 0.0024 | BB62: 0.011 | BC62: 66 | BE62: 8.21 | BF62: 8.26 | BN62: 1 | BX62: S | CA62: 3533 | CB62: B+07 83 | CE62: 0.77 | CF62: G5 | CG62: S
B63: 1003.076923 | C63: 1003.0 | D63: 8,08 | E63: 8.08 | F63: 3,25 | G63: 3.25 | H63: H | I63: 31087 | J63: H | K63: 06 31 24.03 | L63: -12 13 36.2 | M63: 8.08 | N63: 1 | O63: H | P63: 9785013045 | Q63: -1222671567 | R63: A | S63: 3.25 | T63: -7.36 | U63: 1.13 | V63: 1.40 | W63: 1.09 | X63: 1.45 | Y63: 1.46 | Z63: 1.18 | AA63: -0.04 | AB63: 0.16 | AC63: -0.10 | AD63: -0.38 | AE63: -0.03 | AF63: 0.01 | AG63: 0.00 | AH63: -0.47 | AI63: 0.28 | AJ63: 0.11 | AK63: 2 | AL63: -0.17 | AM63: 31087 | AN63: 9320 | AO63: 0.012 | AP63: 8199 | AQ63: 0.008 | AR63: * | AS63: 0.965 | AT63: 0.011 | AU63: T | AV63: 0.95 | AW63: 0.01 | AX63: L | AY63: * | AZ63: 82471 | BA63: 0.0018 | BB63: 0.021 | BC63: 140 | BD63: * | BE63: 8.22 | BF63: 8.28 | BH63: U | BK63: 06314-1214 | BL63: H | BM63: 1 | BN63: 2 | BO63: C | BQ63: D | BR63: AB | BS63: 126 | BT63: 0.464 | BU63: 0.046 | BV63: 3.71 | BW63: 0.20 | BZ63: D | CA63: 46183 | CB63: B-12 1519 | CE63: 0.91 | CF63: G8III | CG63: 4
B64: 1003.076923 | C64: 1003.0 | D64: 8,09 | E64: 8.09 | F64: 3,25 | G64: 3.25 | H64: H | I64: 48091 | K64: 09 48 17.59 | L64: -25 12 29.7 | M64: 8.09 | O64: H | P64: 14707327728 | Q64: -2520824824 | S64: 3.25 | T64: -10.47 | U64: 6.88 | V64: 0.77 | W64: 0.73 | X64: 0.92 | Y64: 0.97 | Z64: 0.87 | AA64: -0.17 | AB64: 0.11 | AC64: -0.22 | AD64: -0.31 | AE64: -0.03 | AF64: -0.12 | AG64: -0.05 | AH64: -0.08 | AI64: -0.17 | AJ64: -0.23 | AK64: 0 | AL64: 2.47 | AM64: 48091 | AN64: 8318 | AO64: 0.011 | AP64: 8108 | AQ64: 0.012 | AS64: 0.201 | AT64: 0.015 | AU64: T | AV64: 0.22 | AW64: 0.02 | AX64: L | AZ64: 81581 | BA64: 0.0017 | BB64: 0.016 | BC64: 81 | BE64: 8.13 | BF64: 8.19 | BK64: 09483-2512 | BL64: I | BM64: 1 | BN64: 1 | BX64: S | CA64: 84974 | CC64: C-24 8471 | CE64: 0.22 | CF64: A5III | CG64: 4
B65: 1003.076923 | C65: 1003.0 | D65: 8,17 | E65: 8.17 | F65: 3,25 | G65: 3.25 | H65: H | I65: 45078 | K65: 09 10 57.10 | L65: -12 39 19.0 | M65: 8.17 | O65: H | P65: 13773792702 | Q65: -1265528596 | S65: 3.25 | T65: -10.07 | U65: -0.71 | V65: 0.82 | W65: 0.70 | X65: 1.14 | Y65: 1.03 | Z65: 0.69 | AA65: -0.49 | AB65: 0.36 | AC65: -0.41 | AD65: -0.16 | AE65: 0.43 | AF65: -0.40 | AG65: 0.25 | AH65: -0.16 | AI65: 0.07 | AJ65: -0.59 | AK65: 0 | AL65: 0.11 | AM65: 45078 | AN65: 9277 | AO65: 0.017 | AP65: 8274 | AQ65: 0.012 | AS65: 0.876 | AT65: 0.016 | AU65: T | AV65: 0.89 | AW65: 0.01 | AX65: L | AZ65: 83297 | BA65: 0.0014 | BB65: 0.012 | BC65: 101 | BE65: 8.31 | BF65: 8.36 | BH65: C | BN65: 1 | CA65: 78996 | CB65: B-12 2818 | CE65: 0.88 | CF65: G6/G8III | CG65: 4
B66: =1/(F66/1000)*3.26 -> 1003.076923 | C66: 1003.0 | D66: =REPLACE(E66,FIND(".",E66),1,",") -> 8,22 | E66: =TRIM(M66) -> 8.22 | F66: =REPLACE(G66,FIND(".",G66),1,",") -> 3,25 | G66: =TRIM(S66) -> 3.25 | H66: H | I66: 17935 | K66: 03 50 07.89 | L66: +09 55 28.5 | M66: 8.22 | O66: H | P66: 5753287199 | Q66: 992457364 | S66: 3.25 | T66: -9.48 | U66: -12.01 | V66: 1.20 | W66: 0.66 | X66: 1.32 | Y66: 1.26 | Z66: 0.97 | AA66: 0.12 | AB66: 0.52 | AC66: -0.02 | AD66: 0.16 | AE66: -0.05 | AF66: -0.01 | AG66: -0.14 | AH66: 0.11 | AI66: -0.16 | AJ66: 0.09 | AK66: 0 | AL66: 0.90 | AM66: 17935 | AN66: 8840 | AO66: 0.013 | AP66: 8269 | AQ66: 0.012 | AS66: 0.526 | AT66: 0.015 | AU66: G | AV66: 0.60 | AW66: 0.02 | AX66: H | AZ66: 83368 | BA66: 0.0021 | BB66: 0.014 | BC66: 70 | BE66: 8.31 | BF66: 8.36 | BH66: C | BN66: 1 | BX66: S | CA66: 24041 | CB66: B+09 499 | CE66: 0.60 | CF66: F0 | CG66: S
B67: 1003.076923 | C67: 1003.0 | D67: 8,22 | E67: 8.22 | F67: 3,25 | G67: 3.25 | H67: H | I67: 30101 | K67: 06 20 04.50 | L67: +27 23 06.0 | M67: 8.22 | O67: H | P67: 9501874264 | Q67: 2738501304 | S67: 3.25 | T67: -1.39 | U67: -2.56 | V67: 1.16 | W67: 0.88 | X67: 1.10 | Y67: 1.60 | Z67: 1.11 | AA67: 0.43 | AB67: 0.08 | AC67: -0.23 | AD67: -0.32 | AE67: -0.59 | AF67: 0.26 | AG67: -0.51 | AH67: -0.67 | AI67: 0.27 | AJ67: 0.48 | AK67: 0 | AL67: 0.76 | AM67: 30101 | AN67: 8324 | AO67: 0.023 | AP67: 8250 | AQ67: 0.028 | AS67: 0.073 | AT67: 0.034 | AU67: T | AV67: 0.08 | AW67: 0.04 | AX67: L | AZ67: 82525 | BA67: 0.0013 | BB67: 0.014 | BC67: 69 | BE67: 8.22 | BF67: 8.28 | BH67: C | BN67: 1 | CA67: 43927 | CB67: B+27 1066 | CE67: 0.09 | CF67: A0 | CG67: S
B68: 1003.076923 | C68: 1003.0 | D68: 8,26 | E68: 8.26 | F68: 3,25 | G68: 3.25 | H68: H | I68: 2163 | K68: 00 27 16.57 | L68: +65 40 49.0 | M68: 8.26 | O68: H | P68: 681902889 | Q68: 6568027658 | S68: 3.25 | T68: 42.18 | U68: -14.11 | V68: 0.72 | W68: 0.71 | X68: 0.94 | Y68: 0.93 | Z68: 0.80 | AA68: -0.22 | AB68: 0.04 | AC68: 0.16 | AD68: -0.20 | AE68: 0.30 | AF68: 0.09 | AG68: 0.27 | AH68: -0.22 | AI68: 0.02 | AJ68: -0.05 | AK68: 0 | AL68: -0.82 | AM68: 2163 | AN68: 9704 | AO68: 0.017 | AP68: 8398 | AQ68: 0.010 | AS68: 1110 | AT68: 0.015 | AU68: T | AV68: 2014-07-01 | AW68: 0.02 | AX68: L | AZ68: 84315 | BA68: 0.0018 | BB68: 0.020 | BC68: 137 | BE68: 8.40 | BF68: 8.47 | BN68: 1 | CA68: 2283 | CB68: B+64 47 | CE68: 1.00 | CF68: K0 | CG68: S
B69: 1003.076923 | C69: 1003.0 | D69: 8,26 | E69: 8.26 | F69: 3,25 | G69: 3.25 | H69: H | I69: 17462 | K69: 03 44 32.72 | L69: -08 35 12.5 | M69: 8.26 | O69: H | P69: 5613632739 | Q69: -858679845 | S69: 3.25 | T69: 11.07 | U69: -0.62 | V69: 0.90 | W69: 0.74 | X69: 1.08 | Y69: 1.41 | Z69: 1.07 | AA69: 0.25 | AB69: 0.12 | AC69: -0.18 | AD69: -0.16 | AE69: -0.13 | AF69: 0.24 | AG69: -0.09 | AH69: -0.18 | AI69: 0.05 | AJ69: 0.30 | AK69: 2 | AL69: -1.98 | AM69: 17462 | AN69: 8291 | AO69: 0.012 | AP69: 8254 | AQ69: 0.014 | AS69: 0.020 | AT69: 0.005 | AU69: G | AV69: 0.04 | AW69: 0.01 | AX69: H | AZ69: 82749 | BA69: 0.0017 | BB69: 0.015 | BC69: 70 | BE69: 8.25 | BF69: 8.31 | BH69: C | BN69: 1 | BX69: S | CA69: 23392 | CB69: B-09 738 | CE69: 0.04 | CF69: B9 | CG69: S
B70: 1003.076923 | C70: 1003.0 | D70: 8,27 | E70: 8.27 | F70: 3,25 | G70: 3.25 | H70: H | I70: 7070 | K70: 01 31 08.33 | L70: -05 32 35.9 | M70: 8.27 | O70: H | P70: 2278469315 | Q70: -554329744 | S70: 3.25 | T70: 22.70 | U70: 13.06 | V70: 0.90 | W70: 0.82 | X70: 1.28 | Y70: 1.01 | Z70: 0.90 | AA70: 0.48 | AB70: 0.12 | AC70: -0.18 | AD70: 0.14 | AE70: 0.11 | AF70: -0.11 | AG70: 0.05 | AH70: 0.32 | AI70: -0.39 | AJ70: 0.52 | AK70: 0 | AL70: 2.93 | AM70: 7070 | AN70: 10291 | AO70: 0.033 | AP70: 8434 | AQ70: 0.014 | AS70: 1544 | AT70: 0.028 | AU70: T | AV70: 1960-01-01 | AW70: 0.06 | AX70: L | AZ70: 83828 | BA70: 0.0024 | BB70: 0.015 | BC70: 88 | BE70: 8.36 | BF70: 8.41 | BN70: 1 | BX70: S | CA70: 9271 | CB70: B-06 284 | CE70: 1957-01-01 | CF70: K5 | CG70: S
B71: 1003.076923 | C71: 1003.0 | D71: 8,32 | E71: 8.32 | F71: 3,25 | G71: 3.25 | H71: H | I71: 6504 | K71: 01 23 32.04 | L71: -53 58 02.4 | M71: 8.32 | O71: H | P71: 2088350217 | Q71: -5396734562 | S71: 3.25 | T71: 25.76 | U71: 33.34 | V71: 0.65 | W71: 0.71 | X71: 0.86 | Y71: 0.87 | Z71: 0.75 | AA71: 0.03 | AB71: -0.05 | AC71: -0.27 | AD71: 0.35 | AE71: 0.20 | AF71: -0.02 | AG71: 0.23 | AH71: 0.04 | AI71: -0.11 | AJ71: 0.21 | AK71: 0 | AL71: -0.02 | AM71: 6504 | AN71: 9505 | AO71: 0.016 | AP71: 8423 | AQ71: 0.011 | AS71: 0.936 | AT71: 0.015 | AU71: T | AV71: 0.93 | AW71: 0.01 | AX71: L | AZ71: 84799 | BA71: 0.0015 | BB71: 0.017 | BC71: 136 | BE71: 8.45 | BF71: 8.51 | BH71: C | BN71: 1 | CA71: 8567 | CD71: P-54 319 | CE71: 0.92 | CF71: G6III | CG71: 1
B72: 1003.076923 | C72: 1003.0 | D72: 8,34 | E72: 8.34 | F72: 3,25 | G72: 3.25 | H72: H | I72: 6764 | K72: 01 27 01.59 | L72: +11 22 02.4 | M72: 8.34 | O72: H | P72: 2175662312 | Q72: 1136733301 | S72: 3.25 | T72: 51.74 | U72: -32.65 | V72: 1.10 | W72: 0.85 | X72: 1.33 | Y72: 1.81 | Z72: 1.14 | AA72: 0.52 | AB72: -0.15 | AC72: -0.27 | AD72: -0.15 | AE72: -0.17 | AF72: 0.23 | AG72: -0.15 | AH72: -0.09 | AI72: 0.21 | AJ72: 0.73 | AK72: 0 | AL72: 0.07 | AM72: 6764 | AN72: 9872 | AO72: 0.027 | AP72: 8459 | AQ72: 0.015 | AS72: 1194 | AT72: 0.024 | AU72: T | AV72: 2015-01-01 | AW72: 0.02 | AX72: L | AZ72: 85001 | BA72: 0.0022 | BB72: 0.013 | BC72: 72 | BE72: 8.48 | BF72: 8.52 | BH72: C | BN72: 1 | CA72: 8816 | CB72: B+10 185 | CE72: 2014-10-01 | CF72: K0 | CG72: S
B73: 1003.076923 | C73: 1003.0 | D73: 8,37 | E73: 8.37 | F73: 3,25 | G73: 3.25 | H73: H | I73: 782 | K73: 00 09 39.30 | L73: -56 11 30.4 | M73: 8.37 | O73: H | P73: 241376549 | Q73: -5619178561 | R73: A | S73: 3.25 | T73: 64.24 | U73: -15.35 | V73: 1.08 | W73: 1.21 | X73: 1.50 | Y73: 1.10 | Z73: 1.29 | AA73: -0.23 | AB73: 0.26 | AC73: -0.12 | AD73: -0.09 | AE73: 0.13 | AF73: 0.01 | AG73: 0.11 | AH73: 0.02 | AI73: -0.07 | AJ73: -0.12 | AK73: 1 | AL73: 0.79 | AM73: 782 | AN73: 9573 | AO73: 0.014 | AP73: 8469 | AQ73: 0.010 | AR73: A | AS73: 0.952 | AT73: 0.013 | AU73: T | AV73: 0.94 | AW73: 0.01 | AX73: L | AZ73: 85327 | BA73: 0.0071 | BB73: 0.022 | BC73: 167 | BD73: A | BE73: 8.50 | BF73: 8.57 | BH73: C | BK73: 00097-5612 | BL73: I | BM73: 1 | BN73: 2 | BO73: C | BQ73: A | BR73: AB | BS73: 11 | BT73: 10685 | BU73: 0.025 | BV73: 2.93 | BW73: 0.11 | BX73: S | CA73: 537 | CD73: P-56 20 | CE73: 0.91 | CF73: G8III | CG73: 1
B74: 1003.076923 | C74: 1003.0 | D74: 8,38 | E74: 8.38 | F74: 3,25 | G74: 3.25 | H74: H | I74: 5561 | K74: 01 11 18.73 | L74: -59 12 00.3 | M74: 8.38 | O74: H | P74: 1782803266 | Q74: -5920009120 | S74: 3.25 | T74: 20.61 | U74: 7.45 | V74: 0.67 | W74: 0.71 | X74: 0.85 | Y74: 0.74 | Z74: 0.78 | AA74: -0.15 | AB74: -0.01 | AC74: 0.03 | AD74: -0.01 | AE74: 0.13 | AF74: 0.05 | AG74: 0.13 | AH74: 0.01 | AI74: -0.14 | AJ74: -0.12 | AK74: 0 | AL74: -0.76 | AM74: 5561 | AN74: 9551 | AO74: 0.018 | AP74: 8496 | AQ74: 0.012 | AS74: 0.915 | AT74: 0.016 | AU74: T | AV74: 0.91 | AW74: 0.01 | AX74: L | AZ74: 85446 | BA74: 0.0017 | BB74: 0.018 | BC74: 122 | BE74: 8.51 | BF74: 8.57 | BH74: C | BN74: 1 | CA74: 7212 | CD74: P-59 83 | CE74: 0.90 | CF74: G6III/IV | CG74: 1
B75: 1003.076923 | C75: 1003.0 | D75: 8,38 | E75: 8.38 | F75: 3,25 | G75: 3.25 | H75: H | I75: 15853 | K75: 03 24 14.18 | L75: +61 32 18.9 | M75: 8.38 | O75: H | P75: 5105910227 | Q75: 6153857928 | S75: 3.25 | T75: 1.87 | U75: -3.88 | V75: 0.75 | W75: 0.73 | X75: 1.11 | Y75: 0.84 | Z75: 0.96 | AA75: -0.17 | AB75: 0.25 | AC75: -0.05 | AD75: 0.59 | AE75: -0.42 | AF75: 0.29 | AG75: -0.46 | AH75: 0.16 | AI75: 0.00 | AJ75: -0.16 | AK75: 0 | AL75: 0.22 | AM75: 15853 | AN75: 8631 | AO75: 0.009 | AP75: 8412 | AQ75: 0.010 | AS75: 0.209 | AT75: 0.013 | AU75: T | AV75: 0.23 | AW75: 0.01 | AX75: L | AZ75: 84442 | BA75: 0.0014 | BB75: 0.016 | BC75: 143 | BE75: 8.42 | BF75: 8.47 | BH75: C | BK75: 03242+6132 | BL75: I | BM75: 1 | BN75: 1 | CA75: 20798 | CB75: B+61 570 | CE75: 0.17 | CF75: B2III-IV | CG75: X
B76: 1003.076923 | C76: 1003.0 | D76: 8,41 | E76: 8.41 | F76: 3,25 | G76: 3.25 | H76: H | I76: 18929 | K76: 04 03 27.98 | L76: -52 30 20.4 | M76: 8.41 | N76: 1 | O76: G | P76: 6086659997 | Q76: -5250567742 | S76: 3.25 | T76: -0.52 | U76: 3.27 | V76: 0.64 | W76: 0.66 | X76: 0.73 | Y76: 0.70 | Z76: 0.76 | AA76: -0.07 | AB76: 0.12 | AC76: -0.12 | AD76: -0.11 | AE76: 0.00 | AF76: 0.01 | AG76: 0.02 | AH76: -0.08 | AI76: 0.10 | AJ76: -0.16 | AK76: 0 | AL76: -0.29 | AM76: 18929 | AN76: 8792 | AO76: 0.011 | AP76: 8424 | AQ76: 0.011 | AS76: 0.344 | AT76: 0.002 | AU76: G | AV76: 0.40 | AW76: 0.00 | AX76: H | AZ76: 84868 | BA76: 0.0029 | BB76: 0.023 | BC76: 113 | BE76: 8.45 | BF76: 8.53 | BH76: U | BN76: 1 | BX76: S | CA76: 25873 | CD76: P-52 491 | CE76: 0.40 | CF76: F0III | CG76: 2
B77: 1003.076923 | C77: 1003.0 | D77: 8,43 | E77: 8.43 | F77: 3,25 | G77: 3.25 | H77: H | I77: 9445 | J77: H | K77: 02 01 23.05 | L77: +50 10 15.1 | M77: 8.43 | O77: G | P77: 3034602873 | Q77: 5017085422 | R77: * | S77: 3.25 | T77: 5.65 | U77: 1.02 | V77: 1.06 | W77: 1.09 | X77: 1.17 | Y77: 1.15 | Z77: 0.72 | AA77: -0.22 | AB77: 0.22 | AC77: 0.04 | AD77: 0.19 | AE77: 0.14 | AF77: 0.20 | AG77: 0.14 | AH77: 0.05 | AI77: 0.04 | AJ77: -0.16 | AK77: 0 | AL77: 2.84 | AM77: 9445 | AN77: 10753 | AO77: 0.045 | AP77: 8601 | AQ77: 0.013 | AR77: * | AS77: 1410 | AT77: 0.020 | AU77: G | AV77: 1939-01-01 | AW77: 0.02 | AX77: H | AY77: * | AZ77: 85660 | BA77: 0.0077 | BB77: 0.048 | BC77: 110 | BD77: * | BE77: 8.49 | BF77: 8.61 | BH77: R | BK77: 02014+5010 | BL77: H | BM77: 1 | BN77: 2 | BO77: C | BQ77: D | BR77: AB | BS77: 335 | BT77: 0.203 | BU77: 0.014 | BV77: 2.13 | BW77: 0.40 | BZ77: D | CB77: B+49 524 | CE77: 0.19 | CF77: A0 | CG77: S
B78: 1003.076923 | C78: 1003.0 | D78: 8,44 | E78: 8.44 | F78: 3,25 | G78: 3.25 | H78: H | I78: 21043 | K78: 04 30 41.17 | L78: -41 28 36.8 | M78: 8.44 | O78: H | P78: 6767152258 | Q78: -4147689635 | S78: 3.25 | T78: 31.25 | U78: 5.28 | V78: 0.69 | W78: 0.77 | X78: 0.84 | Y78: 0.75 | Z78: 0.87 | AA78: -0.17 | AB78: 0.04 | AC78: -0.10 | AD78: -0.26 | AE78: 0.08 | AF78: 0.16 | AG78: 0.10 | AH78: -0.25 | AI78: 0.07 | AJ78: -0.14 | AK78: 1 | AL78: -0.08 | AM78: 21043 | AN78: 10160 | AO78: 0.026 | AP78: 8611 | AQ78: 0.013 | AS78: 1300 | AT78: 0.023 | AU78: T | AV78: 2026-01-01 | AW78: 0.02 | AX78: L | AZ78: 86006 | BA78: 0.0016 | BB78: 0.014 | BC78: 114 | BE78: 8.58 | BF78: 8.62 | BK78: 04307-4129 | BL78: I | BM78: 1 | BN78: 1 | CA78: 28824 | CC78: C-41 1445 | CD78: P-41 508 | CE78: 2025-01-01 | CF78: K3III | CG78: 2
B79: 1003.076923 | C79: 1003.0 | D79: 8,45 | E79: 8.45 | F79: 3,25 | G79: 3.25 | H79: H | I79: 26509 | K79: 05 38 14.09 | L79: -39 19 23.1 | M79: 8.45 | O79: H | P79: 8455870346 | Q79: -3932309119 | S79: 3.25 | T79: 6.06 | U79: 32.90 | V79: 0.61 | W79: 0.75 | X79: 0.80 | Y79: 0.64 | Z79: 0.87 | AA79: 0.01 | AB79: -0.02 | AC79: 0.09 | AD79: -0.01 | AE79: -0.12 | AF79: 0.07 | AG79: -0.17 | AH79: -0.17 | AI79: 0.06 | AJ79: -0.14 | AK79: 0 | AL79: -1.31 | AM79: 26509 | AN79: 8451 | AO79: 0.009 | AP79: 8453 | AQ79: 0.012 | AS79: 0.003 | AT79: 0.014 | AU79: T | AV79: 0.02 | AW79: 0.01 | AX79: L | AZ79: 84618 | BA79: 0.0013 | BB79: 0.016 | BC79: 105 | BE79: 8.44 | BF79: 8.49 | BK79: 05382-3919 | BL79: I | BM79: 1 | BN79: 1 | BX79: S | CC79: C-39 2082 | CD79: P-39 723 | CE79: 0.02 | CF79: A0 | CG79: S
B80: 1003.076923 | C80: 1003.0 | D80: 8,46 | E80: 8.46 | F80: 3,25 | G80: 3.25 | H80: H | I80: 12216 | K80: 02 37 18.24 | L80: +55 57 36.7 | M80: 8.46 | O80: G | P80: 3932600458 | Q80: 5596019404 | S80: 3.25 | T80: 21.93 | U80: -13.76 | V80: 0.76 | W80: 0.58 | X80: 1.13 | Y80: 0.84 | Z80: 0.88 | AA80: -0.05 | AB80: 0.39 | AC80: -0.14 | AD80: 0.11 | AE80: -0.20 | AF80: 0.08 | AG80: -0.10 | AH80: -0.20 | AI80: 0.26 | AJ80: 0.04 | AK80: 0 | AL80: -0.06 | AM80: 12216 | AN80: 8854 | AO80: 0.011 | AP80: 8498 | AQ80: 0.011 | AS80: 0.373 | AT80: 0.013 | AU80: G | AV80: 0.44 | AW80: 0.01 | AX80: H | AZ80: 85498 | BA80: 0.0014 | BB80: 0.013 | BC80: 131 | BE80: 8.53 | BF80: 8.57 | BN80: 1 | CA80: 16107 | CB80: B+55 671 | CE80: 0.44 | CF80: B8III | CG80: S
B81: 1003.076923 | C81: 1003.0 | D81: 8,49 | E81: 8.49 | F81: 3,25 | G81: 3.25 | H81: H | I81: 24675 | K81: 05 17 37.66 | L81: -18 39 41.4 | M81: 8.49 | O81: G | P81: 7940692849 | Q81: -1866150505 | S81: 3.25 | T81: 2.32 | U81: -5.18 | V81: 0.79 | W81: 0.82 | X81: 1.15 | Y81: 0.87 | Z81: 0.98 | AA81: -0.12 | AB81: 0.21 | AC81: -0.31 | AD81: -0.21 | AE81: -0.09 | AF81: 0.08 | AG81: -0.02 | AH81: -0.03 | AI81: -0.01 | AJ81: -0.33 | AK81: 0 | AL81: 0.88 | AM81: 24675 | AN81: 8914 | AO81: 0.013 | AP81: 8521 | AQ81: 0.013 | AS81: 0.397 | AT81: 0.015 | AU81: G | AV81: 0.46 | AW81: 0.02 | AX81: H | AZ81: 85742 | BA81: 0.0015 | BB81: 0.017 | BC81: 104 | BE81: 8.55 | BF81: 8.61 | BN81: 1 | CA81: 34564 | CB81: B-18 1045 | CE81: 0.46 | CF81: F0V | CG81: 4
B82: 1003.076923 | C82: 1003.0 | D82: 8,59 | E82: 8.59 | F82: 3,25 | G82: 3.25 | H82: H | I82: 11515 | K82: 02 28 29.95 | L82: +35 17 53.1 | M82: 8.59 | O82: H | P82: 3712481018 | Q82: 3529809614 | S82: 3.25 | T82: 17.00 | U82: -14.52 | V82: 0.78 | W82: 0.60 | X82: 1.16 | Y82: 0.89 | Z82: 0.87 | AA82: 0.11 | AB82: 0.17 | AC82: -0.38 | AD82: 0.11 | AE82: -0.14 | AF82: -0.08 | AG82: -0.09 | AH82: -0.60 | AI82: 0.49 | AJ82: 0.12 | AK82: 0 | AL82: 0.72 | AM82: 11515 | AN82: 8952 | AO82: 0.012 | AP82: 8623 | AQ82: 0.013 | AS82: 0.312 | AT82: 0.017 | AU82: T | AV82: 0.36 | AW82: 0.02 | AX82: L | AZ82: 86708 | BA82: 0.0014 | BB82: 0.011 | BC82: 125 | BE82: 8.65 | BF82: 8.69 | BN82: 1 | CA82: 15282 | CB82: B+34 442 | CE82: 0.29 | CF82: A0 | CG82: S
B83: 1003.076923 | C83: 1003.0 | D83: 8,59 | E83: 8.59 | F83: 3,25 | G83: 3.25 | H83: H | I83: 19058 | K83: 04 05 00.02 | L83: -30 10 46.0 | M83: 8.59 | N83: 1 | O83: G | P83: 6125008658 | Q83: -3017943468 | S83: 3.25 | T83: 4.81 | U83: 9.05 | V83: 0.62 | W83: 0.82 | X83: 1.11 | Y83: 0.65 | Z83: 1.01 | AA83: -0.14 | AB83: -0.02 | AC83: -0.11 | AD83: -0.01 | AE83: -0.10 | AF83: 0.15 | AG83: -0.12 | AH83: 0.15 | AI83: -0.08 | AJ83: 0.03 | AK83: 0 | AL83: 0.61 | AM83: 19058 | AN83: 10365 | AO83: 0.026 | AP83: 8729 | AQ83: 0.012 | AS83: 1355 | AT83: 0.020 | AU83: G | AV83: 1931-01-01 | AW83: 0.02 | AX83: A | AZ83: 87664 | BA83: 0.0018 | BB83: 0.021 | BC83: 155 | BE83: 8.73 | BF83: 8.81 | BH83: U | BN83: 1 | CA83: 25899 | CC83: C-30 1638 | CD83: P-30 535 | CE83: 1931-01-01 | CF83: K3III | CG83: 3
B84: 1003.076923 | C84: 1003.0 | D84: 8,63 | E84: 8.63 | F84: 3,25 | G84: 3.25 | H84: H | I84: 39808 | K84: 08 08 03.42 | L84: -43 38 48.6 | M84: 8.63 | O84: H | P84: 12201424931 | Q84: -4364682813 | S84: 3.25 | T84: 3.14 | U84: -11.28 | V84: 0.65 | W84: 0.66 | X84: 0.79 | Y84: 0.73 | Z84: 0.68 | AA84: 0.02 | AB84: 0.05 | AC84: 0.13 | AD84: 0.02 | AE84: -0.01 | AF84: 0.04 | AG84: -0.03 | AH84: -0.13 | AI84: 0.09 | AJ84: -0.11 | AK84: 0 | AL84: -1.58 | AM84: 39808 | AN84: 10066 | AO84: 0.023 | AP84: 8740 | AQ84: 0.014 | AS84: 1125 | AT84: 0.021 | AU84: T | AV84: 2014-09-01 | AW84: 0.02 | AX84: L | AZ84: 88006 | BA84: 0.0018 | BB84: 0.018 | BC84: 135 | BE84: 8.77 | BF84: 8.83 | BN84: 1 | CA84: 67842 | CC84: C-43 3967 | CD84: P-43 2224 | CE84: 2014-12-01 | CF84: K1III | CG84: 2
B85: 1003.076923 | C85: 1003.0 | D85: 8,64 | E85: 8.64 | F85: 3,25 | G85: 3.25 | H85: H | I85: 24139 | K85: 05 11 03.06 | L85: +73 02 34.3 | M85: 8.64 | O85: H | P85: 7776273733 | Q85: 7304287307 | S85: 3.25 | T85: -2.03 | U85: -0.01 | V85: 0.54 | W85: 0.75 | X85: 0.95 | Y85: 0.57 | Z85: 0.92 | AA85: -0.03 | AB85: 0.07 | AC85: 0.08 | AD85: 0.14 | AE85: 0.03 | AF85: -0.03 | AG85: 0.05 | AH85: -0.01 | AI85: 0.08 | AJ85: -0.04 | AK85: 0 | AL85: -0.48 | AM85: 24139 | AN85: 9062 | AO85: 0.010 | AP85: 8662 | AQ85: 0.010 | AS85: 0.378 | AT85: 0.013 | AU85: T | AV85: 0.44 | AW85: 0.01 | AX85: L | AZ85: 87244 | BA85: 0.0020 | BB85: 0.022 | BC85: 188 | BE85: 8.68 | BF85: 8.77 | BN85: 1 | CB85: B+72 256 | CE85: 0.40 | CF85: F0 | CG85: S
B86: 1003.076923 | C86: 1003.0 | D86: 8,67 | E86: 8.67 | F86: 3,25 | G86: 3.25 | H86: H | I86: 22131 | K86: 04 45 45.51 | L86: +74 14 59.9 | M86: 8.67 | O86: H | P86: 7143962836 | Q86: 7424997214 | R86: A | S86: 3.25 | T86: -8.33 | U86: -1.96 | V86: 1.37 | W86: 1.78 | X86: 1.71 | Y86: 1.44 | Z86: 1.91 | AA86: -0.08 | AB86: 0.08 | AC86: -0.04 | AD86: 0.03 | AE86: -0.08 | AF86: -0.12 | AG86: -0.08 | AH86: 0.25 | AI86: 0.17 | AJ86: -0.03 | AK86: 1 | AL86: -0.20 | AM86: 22131 | AN86: 9832 | AO86: 0.019 | AP86: 8745 | AQ86: 0.013 | AR86: A | AS86: 0.940 | AT86: 0.018 | AU86: T | AV86: 0.93 | AW86: 0.01 | AX86: L | AZ86: 88296 | BA86: 0.0145 | BB86: 0.019 | BC86: 157 | BD86: A | BE86: 8.80 | BF86: 8.87 | BH86: D | BK86: 04458+7415 | BL86: I | BM86: 2 | BN86: 1 | BO86: C | BP86: P | BQ86: C | CB86: B+73 244 | CE86: 0.91 | CF86: G5 | CG86: S
B87: 1003.076923 | C87: 1003.0 | D87: 8,67 | E87: 8.67 | F87: 3,25 | G87: 3.25 | H87: H | I87: 50683 | K87: 10 21 01.38 | L87: +59 02 43.0 | M87: 8.67 | O87: H | P87: 15525576191 | Q87: 5904527878 | S87: 3.25 | T87: -7.72 | U87: -9.18 | V87: 0.70 | W87: 0.66 | X87: 1.10 | Y87: 0.83 | Z87: 0.66 | AA87: 0.04 | AB87: 0.20 | AC87: -0.13 | AD87: -0.11 | AE87: 0.00 | AF87: -0.12 | AG87: -0.03 | AH87: 0.10 | AI87: -0.07 | AJ87: 0.07 | AK87: 1 | AL87: 0.56 | AM87: 50683 | AN87: 9982 | AO87: 0.018 | AP87: 8787 | AQ87: 0.011 | AS87: 1023 | AT87: 0.016 | AU87: T | AV87: 1.00 | AW87: 0.01 | AX87: L | AZ87: 88333 | BA87: 0.0021 | BB87: 0.019 | BC87: 167 | BE87: 8.80 | BF87: 8.87 | BH87: C | BN87: 1 | CA87: 89446 | CB87: B+59 1300 | CE87: 2014-01-01 | CF87: K0 | CG87: S
B88: 1003.076923 | C88: 1003.0 | D88: 8,67 | E88: 8.67 | F88: 3,25 | G88: 3.25 | H88: H | I88: 62050 | K88: 12 43 05.37 | L88: -77 21 03.8 | M88: 8.67 | O88: H | P88: 19077237731 | Q88: -7735104741 | S88: 3.25 | T88: -16.58 | U88: -4.05 | V88: 0.74 | W88: 0.66 | X88: 0.84 | Y88: 0.89 | Z88: 0.74 | AA88: 0.09 | AB88: 0.02 | AC88: 0.17 | AD88: 0.09 | AE88: 0.00 | AF88: 0.01 | AG88: 0.01 | AH88: -0.05 | AI88: 0.02 | AJ88: 0.11 | AK88: 3 | AL88: -1.61 | AM88: 62050 | AN88: 9033 | AO88: 0.012 | AP88: 8683 | AQ88: 0.013 | AS88: 0.332 | AT88: 0.017 | AU88: T | AV88: 0.39 | AW88: 0.02 | AX88: L | AZ88: 87470 | BA88: 0.0021 | BB88: 0.019 | BC88: 127 | BE88: 8.72 | BF88: 8.77 | BH88: C | BN88: 1 | CA88: 110336 | CD88: P-76 739 | CE88: 0.38 | CF88: B9IV | CG88: 1
B89: 1003.076923 | C89: 1003.0 | D89: 8,73 | E89: 8.73 | F89: 3,25 | G89: 3.25 | H89: H | I89: 33135 | K89: 06 53 58.24 | L89: -63 04 44.9 | M89: 8.73 | O89: H | P89: 10349266860 | Q89: -6307914644 | S89: 3.25 | T89: -2.92 | U89: 19.52 | V89: 0.77 | W89: 0.66 | X89: 0.76 | Y89: 0.86 | Z89: 0.76 | AA89: -0.01 | AB89: 0.19 | AC89: 0.01 | AD89: 0.02 | AE89: -0.14 | AF89: 0.12 | AG89: -0.12 | AH89: -0.06 | AI89: 0.15 | AJ89: -0.15 | AK89: 0 | AL89: -0.69 | AM89: 33135 | AN89: 10282 | AO89: 0.027 | AP89: 8831 | AQ89: 0.014 | AS89: 1223 | AT89: 0.024 | AU89: T | AV89: 2018-01-01 | AW89: 0.02 | AX89: L | AZ89: 88899 | BA89: 0.0011 | BB89: 0.014 | BC89: 103 | BE89: 8.86 | BF89: 8.92 | BH89: D | BN89: 1 | CA89: 51660 | CD89: P-62 731 | CE89: 2013-01-01 | CF89: K1III | CG89: 1
B90: 1003.076923 | C90: 1003.0 | D90: 8,73 | E90: 8.73 | F90: 3,25 | G90: 3.25 | H90: H | I90: 46532 | K90: 09 29 26.54 | L90: +07 40 22.0 | M90: 8.73 | O90: H | P90: 14236059558 | Q90: 767277561 | S90: 3.25 | T90: -24.75 | U90: -1.36 | V90: 1.19 | W90: 1.06 | X90: 1.41 | Y90: 1.63 | Z90: 1.19 | AA90: -0.48 | AB90: 0.37 | AC90: -0.30 | AD90: -0.07 | AE90: 0.12 | AF90: -0.25 | AG90: 0.16 | AH90: -0.23 | AI90: 0.29 | AJ90: -0.36 | AK90: 0 | AL90: 0.19 | AM90: 46532 | AN90: 10397 | AO90: 0.044 | AP90: 8874 | AQ90: 0.021 | AS90: 1280 | AT90: 0.038 | AU90: T | AV90: 2024-01-01 | AW90: 0.04 | AX90: L | AZ90: 88923 | BA90: 0.0021 | BB90: 0.015 | BC90: 57 | BE90: 8.87 | BF90: 8.92 | BH90: C | BN90: 1 | CB90: B+08 2231 | CE90: 2013-01-01 | CF90: K2 | CG90: S
B91: 1003.076923 | C91: 1003.0 | D91: 8,75 | E91: 8.75 | F91: 3,25 | G91: 3.25 | H91: H | I91: 15936 | K91: 03 25 13.05 | L91: +09 41 28.4 | M91: 8.75 | O91: H | P91: 5130438434 | Q91: 969121989 | S91: 3.25 | T91: -5.36 | U91: -6.29 | V91: 1.17 | W91: 0.87 | X91: 1.34 | Y91: 1.49 | Z91: 1.35 | AA91: 0.44 | AB91: 0.18 | AC91: 0.03 | AD91: 0.10 | AE91: -0.03 | AF91: -0.04 | AG91: -0.03 | AH91: -0.17 | AI91: 0.05 | AJ91: 0.40 | AK91: 0 | AL91: 1.19 | AM91: 15936 | AN91: 10306 | AO91: 0.040 | AP91: 8914 | AQ91: 0.021 | AS91: 1177 | AT91: 0.035 | AU91: T | AV91: 2014-01-01 | AW91: 0.03 | AX91: L | AZ91: 89197 | BA91: 0.0020 | BB91: 0.014 | BC91: 74 | BE91: 8.90 | BF91: 8.94 | BH91: C | BN91: 1 | CA91: 21158 | CB91: B+09 438 | CE91: 2014-04-01 | CF91: G5 | CG91: S
B92: 1003.076923 | C92: 1003.0 | D92: 8,77 | E92: 8.77 | F92: 3,25 | G92: 3.25 | H92: H | I92: 2154 | K92: 00 27 12.94 | L92: +09 09 33.2 | M92: 8.77 | O92: H | P92: 680389964 | Q92: 915921074 | S92: 3.25 | T92: 1.42 | U92: -30.38 | V92: 1.15 | W92: 0.84 | X92: 1.45 | Y92: 1.21 | Z92: 0.88 | AA92: 0.59 | AB92: -0.23 | AC92: -0.26 | AD92: -0.12 | AE92: -0.13 | AF92: 0.22 | AG92: -0.11 | AH92: -0.12 | AI92: 0.18 | AJ92: 0.65 | AK92: 2 | AL92: 0.63 | AM92: 2154 | AN92: 10340 | AO92: 0.033 | AP92: 8897 | AQ92: 0.017 | AS92: 1217 | AT92: 0.029 | AU92: T | AV92: 2018-01-01 | AW92: 0.03 | AX92: L | AZ92: 89309 | BA92: 0.0021 | BB92: 0.019 | BC92: 87 | BE92: 8.91 | BF92: 8.96 | BN92: 1 | BX92: S | CA92: 2323 | CB92: B+08 53 | CE92: 2014-08-01 | CF92: G5 | CG92: S
B93: 1003.076923 | C93: 1003.0 | D93: 8,82 | E93: 8.82 | F93: 3,25 | G93: 3.25 | H93: H | I93: 1588 | K93: 00 19 51.68 | L93: -05 27 01.9 | M93: 8.82 | O93: H | P93: 496531577 | Q93: -545053119 | S93: 3.25 | T93: -3.17 | U93: -8.69 | V93: 1.35 | W93: 0.66 | X93: 1.12 | Y93: 1.37 | Z93: 0.70 | AA93: 0.14 | AB93: 0.17 | AC93: -0.01 | AD93: -0.63 | AE93: -0.02 | AF93: 0.01 | AG93: 0.05 | AH93: -0.26 | AI93: 0.13 | AJ93: 0.05 | AK93: 0 | AL93: 0.21 | AM93: 1588 | AN93: 10307 | AO93: 0.032 | AP93: 8953 | AQ93: 0.018 | AS93: 1147 | AT93: 0.029 | AU93: T | AV93: 2014-11-01 | AW93: 0.03 | AX93: L | AZ93: 89901 | BA93: 0.0021 | BB93: 0.016 | BC93: 88 | BE93: 8.96 | BF93: 9.02 | BH93: C | BN93: 1 | CA93: 1555 | CB93: B-06 46 | CE93: 2016-01-01 | CF93: K0 | CG93: S
B94: 1003.076923 | C94: 1003.0 | D94: 8,82 | E94: 8.82 | F94: 3,25 | G94: 3.25 | H94: H | I94: 62833 | K94: 12 52 33.68 | L94: +43 46 15.5 | M94: 8.82 | O94: G | P94: 19314032506 | Q94: 4377097551 | S94: 3.25 | T94: -7.29 | U94: 13.17 | V94: 0.84 | W94: 0.89 | X94: 1.31 | Y94: 0.94 | Z94: 0.91 | AA94: 0.02 | AB94: -0.06 | AC94: -0.14 | AD94: 0.12 | AE94: -0.12 | AF94: 0.13 | AG94: -0.10 | AH94: 0.23 | AI94: 0.03 | AJ94: 0.06 | AK94: 0 | AL94: 0.92 | AM94: 62833 | AN94: 10620 | AO94: 0.038 | AP94: 8953 | AQ94: 0.016 | AS94: 1370 | AT94: 0.015 | AU94: G | AV94: 1934-01-01 | AW94: 0.02 | AX94: H | AZ94: 89846 | BA94: 0.0019 | BB94: 0.018 | BC94: 109 | BE94: 8.95 | BF94: 9.03 | BN94: 1 | CA94: 111958 | CB94: B+44 2231 | CE94: 1934-01-01 | CF94: K3III | CG94: X
B95: 1003.076923 | C95: 1003.0 | D95: 8,84 | E95: 8.84 | F95: 3,25 | G95: 3.25 | H95: H | I95: 61806 | K95: 12 40 00.22 | L95: -52 39 05.9 | M95: 8.84 | O95: H | P95: 19000091151 | Q95: -5265162759 | S95: 3.25 | T95: -22.03 | U95: -0.83 | V95: 0.78 | W95: 0.80 | X95: 1.29 | Y95: 0.82 | Z95: 0.84 | AA95: 0.13 | AB95: -0.24 | AC95: -0.06 | AD95: -0.07 | AE95: -0.02 | AF95: -0.04 | AG95: -0.06 | AH95: -0.21 | AI95: 0.12 | AJ95: 0.09 | AK95: 0 | AL95: -0.99 | AM95: 61806 | AN95: 10983 | AO95: 0.048 | AP95: 9038 | AQ95: 0.016 | AS95: 1649 | AT95: 0.042 | AU95: T | AV95: 1996-01-01 | AW95: 0.10 | AX95: O | AZ95: 89293 | BA95: 0.0022 | BB95: 0.027 | BC95: 137 | BE95: 8.89 | BF95: 8.97 | BN95: 1 | CA95: 110075 | CC95: C-51 6893 | CD95: P-51 5391 | CE95: 1996-01-01 | CF95: M1III | CG95: 2
B96: 1003.076923 | C96: 1003.0 | D96: 8,87 | E96: 8.87 | F96: 3,25 | G96: 3.25 | H96: H | I96: 45048 | K96: 09 10 32.18 | L96: -42 09 12.3 | M96: 8.87 | O96: H | P96: 13763410278 | Q96: -4215342860 | S96: 3.25 | T96: -8.55 | U96: 7.91 | V96: 0.70 | W96: 0.78 | X96: 0.98 | Y96: 0.81 | Z96: 0.89 | AA96: 0.10 | AB96: 0.09 | AC96: -0.06 | AD96: -0.02 | AE96: -0.05 | AF96: -0.05 | AG96: -0.07 | AH96: -0.09 | AI96: -0.08 | AJ96: 0.03 | AK96: 0 | AL96: 1.42 | AM96: 45048 | AN96: 10339 | AO96: 0.027 | AP96: 9005 | AQ96: 0.015 | AS96: 1132 | AT96: 0.024 | AU96: T | AV96: 2014-10-01 | AW96: 0.03 | AX96: L | AZ96: 90415 | BA96: 0.0019 | BB96: 0.020 | BC96: 148 | BE96: 9.01 | BF96: 9.07 | BN96: 1 | CA96: 79069 | CC96: C-41 4865 | CD96: P-41 3402 | CE96: 2014-11-01 | CF96: K1III | CG96: 2
B97: 1003.076923 | C97: 1003.0 | D97: 8,91 | E97: 8.91 | F97: 3,25 | G97: 3.25 | H97: H | I97: 19533 | K97: 04 11 04.55 | L97: -20 03 05.2 | M97: 8.91 | N97: 2 | O97: H | P97: 6276895486 | Q97: -2005143468 | S97: 3.25 | T97: -2.55 | U97: 3.91 | V97: 0.92 | W97: 0.91 | X97: 1.25 | Y97: 0.94 | Z97: 1.26 | AA97: -0.14 | AB97: 0.06 | AC97: -0.10 | AD97: -0.49 | AE97: 0.52 | AF97: -0.15 | AG97: 0.45 | AH97: 0.27 | AI97: -0.10 | AJ97: 0.09 | AK97: 0 | AL97: 0.97 | AM97: 19533 | AN97: 10861 | AO97: 0.048 | AP97: 9171 | AQ97: 0.020 | AS97: 1439 | AT97: 0.043 | AU97: T | AV97: 1979-02-01 | AW97: 0.06 | AX97: O | AZ97: 88780 | BA97: 0.0060 | BB97: 0.060 | BC97: 150 | BE97: 8.80 | BF97: 9.01 | BG97: 11.65 | BH97: P | BI97: 1 | BJ97: A | BN97: 1 | BZ97: P | CA97: 26535 | CB97: B-20 798 | CE97: 1930-02-01 | CF97: M3III | CG97: 4
B98: 1003.076923 | C98: 1003.0 | D98: 8,95 | E98: 8.95 | F98: 3,25 | G98: 3.25 | H98: H | I98: 22072 | K98: 04 44 51.40 | L98: -64 58 34.2 | M98: 8.95 | O98: H | P98: 7121414871 | Q98: -6497617605 | S98: 3.25 | T98: 13.77 | U98: -17.23 | V98: 0.74 | W98: 0.76 | X98: 0.77 | Y98: 0.62 | Z98: 0.95 | AA98: -0.06 | AB98: 0.14 | AC98: 0.02 | AD98: -0.40 | AE98: 0.29 | AF98: -0.01 | AG98: 0.31 | AH98: 0.07 | AI98: -0.02 | AJ98: 0.12 | AK98: 0 | AL98: 0.26 | AM98: 22072 | AN98: 10273 | AO98: 0.032 | AP98: 9064 | AQ98: 0.019 | AS98: 1042 | AT98: 0.003 | AU98: G | AV98: 2014-01-01 | AW98: 0.00 | AX98: H | AZ98: 91132 | BA98: 0.0015 | BB98: 0.018 | BC98: 98 | BE98: 9.08 | BF98: 9.14 | BN98: 1 | CA98: 30630 | CD98: P-65 377 | CE98: 2014-01-01 | CF98: K0IIICN... | CG98: 1
B99: 1003.076923 | C99: 1003.0 | D99: 9,02 | E99: 9.02 | F99: 3,25 | G99: 3.25 | H99: H | I99: 42432 | K99: 08 39 08.54 | L99: +31 47 44.6 | M99: 9.02 | N99: 3 | O99: T | P99: 12978559499 | Q99: 3179572215 | S99: 3.25 | T99: -4.56 | U99: -14.19 | V99: 1.39 | W99: 0.82 | X99: 1.56 | Y99: 1.58 | Z99: 1.07 | AA99: -0.23 | AB99: 0.32 | AC99: -0.32 | AD99: 0.00 | AE99: -0.11 | AF99: -0.22 | AG99: -0.21 | AH99: 0.26 | AI99: -0.11 | AJ99: -0.29 | AK99: 0 | AL99: 0.11 | AM99: 42432 | AN99: 10460 | AO99: 0.042 | AP99: 9143 | AQ99: 0.023 | AS99: 1118 | AT99: 0.037 | AU99: T | AV99: 2014-08-01 | AW99: 0.04 | AX99: L | AZ99: 90933 | BA99: 0.0518 | BB99: 0.247 | BC99: 65 | BE99: 8.88 | BF99: 9.67 | BG99: 21.64 | BH99: P | BI99: 1 | BJ99: A | BN99: 1 | BQ99: S | BZ99: P | CA99: 73343 | CB99: B+32 1772 | CE99: 2024-01-01 | CF99: K2III comp | CG99: G
B100: 1003.076923 | C100: 1003.0 | D100: 9,04 | E100: 9.04 | F100: 3,25 | G100: 3.25 | H100: H | I100: 12199 | K100: 02 37 05.68 | L100: -42 57 48.1 | M100: 9.04 | N100: 2 | O100: T | P100: 3927367764 | Q100: -4296336228 | S100: 3.25 | T100: 95.42 | U100: 6.92 | V100: 0.67 | W100: 0.78 | X100: 0.97 | Y100: 0.87 | Z100: 0.85 | AA100: -0.18 | AB100: 0.07 | AC100: -0.20 | AD100: 0.08 | AE100: -0.11 | AF100: 0.19 | AG100: -0.09 | AH100: 0.21 | AI100: -0.20 | AJ100: -0.13 | AK100: 0 | AL100: 0.37 | AM100: 12199 | AN100: 9321 | AO100: 0.017 | AP100: 9066 | AQ100: 0.019 | AS100: 0.243 | AT100: 0.024 | AU100: T | AV100: 0.27 | AW100: 0.03 | AX100: L | AZ100: 90828 | BA100: 0.0398 | BB100: 0.253 | BC100: 122 | BE100: 8.79 | BF100: 9.35 | BG100: 0.31 | BH100: P | BI100: 1 | BJ100: A | BN100: 1 | CA100: 16456 | CC100: C-43 798 | CD100: P-43 273 | CE100: 0.27 | CF100: A2/3IIw | CG100: G
B101: 1003.076923 | C101: 1003.0 | D101: 9,04 | E101: 9.04 | F101: 3,25 | G101: 3.25 | H101: H | I101: 38157 | K101: 07 49 11.74 | L101: +51 43 31.1 | M101: 9.04 | O101: H | P101: 11729891931 | Q101: 5172530437 | S101: 3.25 | T101: 7.27 | U101: 8.29 | V101: 0.95 | W101: 0.54 | X101: 1.25 | Y101: 1.34 | Z101: 1.13 | AA101: 0.22 | AB101: 0.30 | AC101: 0.24 | AD101: -0.33 | AE101: -0.28 | AF101: -0.14 | AG101: -0.36 | AH101: -0.33 | AI101: -0.08 | AJ101: 0.04 | AK101: 0 | AL101: -2.34 | AM101: 38157 | AN101: 10566 | AO101: 0.029 | AP101: 9153 | AQ101: 0.014 | AS101: 1194 | AT101: 0.025 | AU101: T | AV101: 2015-01-01 | AW101: 0.02 | AX101: L | AZ101: 92029 | BA101: 0.0012 | BB101: 0.017 | BC101: 189 | BE101: 9.17 | BF101: 9.23 | BH101: C | BN101: 1 | CA101: 233454 | CB101: B+52 1251 | CE101: 2020-01-01 | CF101: K2 | CG101: S
B102: 1003.076923 | C102: 1003.0 | D102: 9,06 | E102: 9.06 | F102: 3,25 | G102: 3.25 | H102: H | I102: 5129 | K102: 01 05 39.96 | L102: -62 08 12.7 | M102: 9.06 | O102: H | P102: 1641648957 | Q102: -6213686892 | S102: 3.25 | T102: 12.05 | U102: 18.36 | V102: 0.73 | W102: 0.75 | X102: 0.91 | Y102: 0.77 | Z102: 0.85 | AA102: -0.10 | AB102: 0.16 | AC102: 0.00 | AD102: -0.15 | AE102: 0.11 | AF102: 0.12 | AG102: 0.10 | AH102: -0.02 | AI102: 0.04 | AJ102: 0.03 | AK102: 0 | AL102: 0.44 | AM102: 5129 | AN102: 10144 | AO102: 0.023 | AP102: 9198 | AQ102: 0.017 | AS102: 0.834 | AT102: 0.021 | AU102: T | AV102: 0.85 | AW102: 0.01 | AX102: L | AZ102: 92137 | BA102: 0.0021 | BB102: 0.022 | BC102: 150 | BE102: 9.17 | BF102: 9.25 | BH102: C | BN102: 1 | CA102: 6608 | CD102: P-62 86 | CE102: 0.84 | CF102: G5III | CG102: 1
B103: 1003.076923 | C103: 1003.0 | D103: 9,06 | E103: 9.06 | F103: 3,25 | G103: 3.25 | H103: H | I103: 44016 | K103: 08 57 48.70 | L103: +03 26 08.7 | M103: 9.06 | O103: H | P103: 13445292114 | Q103: 343573893 | S103: 3.25 | T103: -9.27 | U103: -16.94 | V103: 1.11 | W103: 0.74 | X103: 1.26 | Y103: 1.38 | Z103: 0.69 | AA103: -0.32 | AB103: 0.37 | AC103: -0.33 | AD103: -0.13 | AE103: 0.09 | AF103: -0.15 | AG103: 0.11 | AH103: -0.31 | AI103: 0.21 | AJ103: -0.38 | AK103: 0 | AL103: -1.69 | AM103: 44016 | AN103: 10477 | AO103: 0.042 | AP103: 9159 | AQ103: 0.023 | AS103: 1119 | AT103: 0.037 | AU103: T | AV103: 2014-08-01 | AW103: 0.04 | AX103: L | AZ103: 92303 | BA103: 0.0013 | BB103: 0.015 | BC103: 89 | BE103: 9.20 | BF103: 9.25 | BN103: 1 | CB103: B+03 2103 | CE103: 2014-05-01 | CF103: K0 | CG103: S
B104: 1003.076923 | C104: 1003.0 | D104: 9,06 | E104: 9.06 | F104: 3,25 | G104: 3.25 | H104: H | I104: 54081 | K104: 11 03 59.93 | L104: +01 49 58.3 | M104: 9.06 | O104: H | P104: 16599968911 | Q104: 183286996 | S104: 3.25 | T104: 31.67 | U104: -13.12 | V104: 1.10 | W104: 0.84 | X104: 1.38 | Y104: 1.36 | Z104: 1.11 | AA104: -0.45 | AB104: 0.22 | AC104: -0.27 | AD104: -0.12 | AE104: 0.06 | AF104: -0.11 | AG104: 0.17 | AH104: -0.37 | AI104: 0.39 | AJ104: -0.16 | AK104: 0 | AL104: 0.11 | AM104: 54081 | AN104: 10224 | AO104: 0.036 | AP104: 9170 | AQ104: 0.023 | AS104: 0.915 | AT104: 0.032 | AU104: T | AV104: 0.91 | AW104: 0.02 | AX104: L | AZ104: 92245 | BA104: 0.0016 | BB104: 0.014 | BC104: 86 | BE104: 9.19 | BF104: 9.26 | BH104: C | BN104: 1 | CB104: B+02 2380 | CE104: 0.80 | CF104: K0 | CG104: S
B105: 1003.076923 | C105: 1003.0 | D105: 9,19 | E105: 9.19 | F105: 3,25 | G105: 3.25 | H105: H | I105: 36217 | K105: 07 27 30.59 | L105: -31 56 20.9 | M105: 9.19 | O105: G | P105: 11187744356 | Q105: -3193915163 | S105: 3.25 | T105: -7.85 | U105: 4.99 | V105: 0.67 | W105: 0.81 | X105: 1.08 | Y105: 0.82 | Z105: 0.97 | AA105: 0.05 | AB105: -0.05 | AC105: -0.14 | AD105: 0.14 | AE105: -0.05 | AF105: 0.22 | AG105: -0.01 | AH105: -0.06 | AI105: 0.03 | AJ105: 0.10 | AK105: 0 | AL105: 0.21 | AM105: 36217 | AN105: 9158 | AO105: 0.014 | AP105: 9200 | AQ105: 0.019 | AS105: 0.000 | AT105: 0.015 | AU105: G | AV105: 0.02 | AW105: 0.01 | AX105: H | AZ105: 91854 | BA105: 0.0021 | BB105: 0.021 | BC105: 152 | BE105: 9.14 | BF105: 9.24 | BN105: 1 | CA105: 59193 | CC105: C-31 4546 | CD105: P-31 1566 | CE105: 0.02 | CF105: A0V | CG105: 3
B106: 1003.076923 | C106: 1003.0 | D106: 9,23 | E106: 9.23 | F106: 3,25 | G106: 3.25 | H106: H | I106: 5755 | K106: 01 13 52.70 | L106: +59 03 18.4 | M106: 9.23 | N106: 1 | O106: H | P106: 1846959536 | Q106: 5905509843 | S106: 3.25 | T106: -5.15 | U106: 0.00 | V106: 0.96 | W106: 0.92 | X106: 1.52 | Y106: 1.14 | Z106: 1.06 | AA106: -0.25 | AB106: 0.23 | AC106: -0.22 | AD106: 0.00 | AE106: 0.02 | AF106: -0.05 | AG106: 0.06 | AH106: -0.41 | AI106: 0.29 | AJ106: -0.25 | AK106: 0 | AL106: -0.26 | AM106: 5755 | AN106: 9416 | AO106: 0.015 | AP106: 9251 | AQ106: 0.018 | AS106: 0.151 | AT106: 0.022 | AU106: T | AV106: 0.17 | AW106: 0.02 | AX106: L | AZ106: 92831 | BA106: 0.0039 | BB106: 0.029 | BC106: 143 | BE106: 9.24 | BF106: 9.34 | BH106: U | BN106: 1 | CA106: 236667 | CB106: B+58 196 | CE106: 0.12 | CF106: B8V | CG106: X
B107: 1003.076923 | C107: 1003.0 | D107: 9,26 | E107: 9.26 | F107: 3,25 | G107: 3.25 | H107: H | I107: 52870 | K107: 10 48 43.29 | L107: -56 34 37.3 | M107: 9.26 | O107: H | P107: 16218039092 | Q107: -5657703866 | S107: 3.25 | T107: -30.86 | U107: 16.81 | V107: 0.91 | W107: 0.85 | X107: 1.16 | Y107: 1.17 | Z107: 0.94 | AA107: 0.20 | AB107: -0.01 | AC107: 0.14 | AD107: 0.09 | AE107: 0.03 | AF107: -0.28 | AG107: 0.06 | AH107: -0.16 | AI107: 0.03 | AJ107: 0.16 | AK107: 0 | AL107: -1.90 | AM107: 52870 | AN107: 10067 | AO107: 0.036 | AP107: 9338 | AQ107: 0.030 | AS107: 0.669 | AT107: 0.038 | AU107: T | AV107: 0.73 | AW107: 0.03 | AX107: L | AZ107: 93961 | BA107: 0.0028 | BB107: 0.020 | BC107: 119 | BE107: 9.36 | BF107: 9.43 | BN107: 1 | CA107: 93822 | CD107: P-55 3871 | CE107: 0.83 | CF107: G5III/IV | CG107: 1
B108: 1003.076923 | C108: 1003.0 | D108: 9,31 | E108: 9.31 | F108: 3,25 | G108: 3.25 | H108: H | I108: 22502 | K108: 04 50 28.89 | L108: -26 01 40.4 | M108: 9.31 | O108: H | P108: 7262038825 | Q108: -2602788445 | S108: 3.25 | T108: 41.10 | U108: 1.12 | V108: 0.76 | W108: 1.03 | X108: 1.47 | Y108: 0.82 | Z108: 1.13 | AA108: -0.09 | AB108: 0.17 | AC108: -0.23 | AD108: -0.27 | AE108: -0.04 | AF108: 0.01 | AG108: -0.02 | AH108: 0.03 | AI108: 0.01 | AJ108: -0.11 | AK108: 0 | AL108: -0.17 | AM108: 22502 | AN108: 10831 | AO108: 0.034 | AP108: 9430 | AQ108: 0.017 | AS108: 1184 | AT108: 0.030 | AU108: T | AV108: 2014-01-01 | AW108: 0.03 | AX108: L | AZ108: 94741 | BA108: 0.0027 | BB108: 0.032 | BC108: 188 | BE108: 9.42 | BF108: 9.53 | BN108: 1 | CA108: 30904 | CC108: C-26 1864 | CD108: P-26 638 | CE108: 2014-11-01 | CF108: K1III | CG108: 3
B109: 1003.076923 | C109: 1003.0 | D109: 9,52 | E109: 9.52 | F109: 3,25 | G109: 3.25 | H109: H | I109: 36970 | K109: 07 35 59.27 | L109: +09 30 10.8 | M109: 9.52 | O109: H | P109: 11399694924 | Q109: 950299353 | S109: 3.25 | T109: -0.72 | U109: -2.63 | V109: 1.41 | W109: 0.92 | X109: 1.50 | Y109: 1.39 | Z109: 0.81 | AA109: -0.18 | AB109: 0.33 | AC109: -0.26 | AD109: -0.24 | AE109: 0.03 | AF109: -0.01 | AG109: 0.05 | AH109: -0.49 | AI109: 0.14 | AJ109: -0.24 | AK109: 0 | AL109: -0.66 | AM109: 36970 | AN109: 10663 | AO109: 0.049 | AP109: 9586 | AQ109: 0.031 | AS109: 0.932 | AT109: 0.044 | AU109: T | AV109: 0.93 | AW109: 0.03 | AX109: L | AZ109: 96792 | BA109: 0.0034 | BB109: 0.028 | BC109: 83 | BE109: 9.65 | BF109: 9.74 | BN109: 1 | CB109: B+09 1712 | CE109: 2014-05-01 | CF109: K0 | CG109: S
B110: 1003.076923 | C110: 1003.0 | D110: 9,56 | E110: 9.56 | F110: 3,25 | G110: 3.25 | H110: H | I110: 63987 | K110: 13 06 45.60 | L110: +38 59 20.5 | M110: 9.56 | O110: G | P110: 19668998357 | Q110: 3898901573 | S110: 3.25 | T110: -8.40 | U110: 3.75 | V110: 1.29 | W110: 0.98 | X110: 1.55 | Y110: 1.60 | Z110: 0.99 | AA110: 0.07 | AB110: -0.17 | AC110: -0.41 | AD110: -0.44 | AE110: -0.14 | AF110: 0.15 | AG110: -0.06 | AH110: 0.17 | AI110: -0.31 | AJ110: 0.05 | AK110: 0 | AL110: 0.00 | AM110: 63987 | AN110: 9970 | AO110: 0.026 | AP110: 9623 | AQ110: 0.028 | AS110: 0.396 | AT110: 0.015 | AU110: G | AV110: 0.46 | AW110: 0.02 | AX110: H | AZ110: 96356 | BA110: 0.0019 | BB110: 0.024 | BC110: 87 | BE110: 9.60 | BF110: 9.69 | BH110: D | BN110: 1 | CA110: 113969 | CB110: B+39 2602 | CE110: 0.46 | CF110: F3V | CG110: X
B111: 1003.076923 | C111: 1003.0 | D111: 9,57 | E111: 9.57 | F111: 3,25 | G111: 3.25 | H111: H | I111: 35379 | K111: 07 18 29.15 | L111: -49 21 26.6 | M111: 9.57 | O111: H | P111: 10962146008 | Q111: -4935738001 | S111: 3.25 | T111: -2.66 | U111: 16.59 | V111: 0.88 | W111: 1.05 | X111: 1.08 | Y111: 1.06 | Z111: 1.37 | AA111: 0.03 | AB111: 0.11 | AC111: 0.17 | AD111: 0.00 | AE111: 0.04 | AF111: 0.09 | AG111: 0.00 | AH111: -0.13 | AI111: 0.08 | AJ111: -0.24 | AK111: 0 | AL111: 0.03 | AM111: 35379 | AN111: 10885 | AO111: 0.043 | AP111: 9661 | AQ111: 0.025 | AS111: 1046 | AT111: 0.039 | AU111: T | AV111: 2014-02-01 | AW111: 0.03 | AX111: L | AZ111: 97403 | BA111: 0.0032 | BB111: 0.026 | BC111: 111 | BE111: 9.70 | BF111: 9.78 | BN111: 1 | CC111: C-49 2749 | CD111: P-49 1193 | CE111: 2014-08-01 | CF111: K0 | CG111: S
B112: 1003.076923 | C112: 1003.0 | D112: 9,77 | E112: 9.77 | F112: 3,25 | G112: 3.25 | H112: H | I112: 20166 | K112: 04 19 18.97 | L112: -03 17 49.0 | M112: 9.77 | O112: G | P112: 6482902937 | Q112: -329694765 | S112: 3.25 | T112: -3.65 | U112: -12.56 | V112: 1.34 | W112: 0.90 | X112: 1.58 | Y112: 1.71 | Z112: 1.69 | AA112: 0.47 | AB112: 0.16 | AC112: -0.14 | AD112: 0.13 | AE112: 0.04 | AF112: -0.12 | AG112: -0.10 | AH112: 0.18 | AI112: -0.31 | AJ112: 0.46 | AK112: 0 | AL112: 0.46 | AM112: 20166 | AN112: 10063 | AO112: 0.027 | AP112: 9765 | AQ112: 0.032 | AS112: 0.257 | AT112: 0.015 | AU112: G | AV112: 0.29 | AW112: 0.02 | AX112: H | AZ112: 98570 | BA112: 0.0025 | BB112: 0.021 | BC112: 93 | BE112: 9.82 | BF112: 9.90 | BH112: C | BN112: 1 | CB112: B-03 744 | CE112: 0.29 | CF112: A0 | CG112: S
B113: 1003.076923 | C113: 1003.0 | D113: 9,85 | E113: 9.85 | F113: 3,25 | G113: 3.25 | H113: H | I113: 25689 | K113: 05 29 08.39 | L113: +11 52 12.7 | M113: 9.85 | N113: 2 | O113: H | P113: 8228496033 | Q113: 1187018678 | S113: 3.25 | T113: 1.13 | U113: 3.18 | V113: 1.36 | W113: 0.82 | X113: 1.44 | Y113: 1.51 | Z113: 0.85 | AA113: 0.27 | AB113: 0.34 | AC113: -0.09 | AD113: 0.11 | AE113: 0.22 | AF113: -0.06 | AG113: 0.12 | AH113: 0.54 | AI113: -0.16 | AJ113: 0.39 | AK113: 0 | AL113: 1.74 | AM113: 25689 | AN113: 11163 | AO113: 0.077 | AP113: 10026 | AQ113: 0.045 | AS113: 0.970 | AT113: 0.071 | AU113: T | AV113: 0.95 | AW113: 0.06 | AX113: L | AZ113: 100004 | BA113: 0.0065 | BB113: 0.053 | BC113: 90 | BE113: 9.90 | BF113: 2014-06-10 | BH113: U | BI113: 2 | BJ113: C | BN113: 1 | BQ113: S | BY113: G | CA113: 244138 | CB113: B+11 819 | CE113: 0.74 | CF113: G5.8Ve... | CG113: K
B114: 1006.17284 | C114: 1006.1 | D114: 5,01 | E114: 5.01 | F114: 3,24 | G114: 3.24 | H114: H | I114: 841 | K114: 00 10 19.24 | L114: +46 04 20.2 | M114: 5.01 | O114: H | P114: 258017518 | Q114: 4607227117 | S114: 3.24 | T114: 4.51 | U114: 0.21 | V114: 0.41 | W114: 0.40 | X114: 0.68 | Y114: 0.42 | Z114: 0.44 | AA114: 0.01 | AB114: 0.20 | AC114: 0.16 | AD114: -0.22 | AE114: 0.16 | AF114: -0.15 | AG114: 0.23 | AH114: 0.33 | AI114: 0.12 | AJ114: -0.06 | AK114: 1 | AL114: 1.23 | AM114: 841 | AN114: 5507 | AO114: 0.002 | AP114: 5074 | AQ114: 0.002 | AS114: 0.405 | AT114: 0.014 | AU114: G | AV114: 0.55 | AW114: 0.03 | AX114: C | AZ114: 51174 | BA114: 0.0003 | BB114: 0.004 | BC114: 181 | BE114: 5.11 | BF114: 5.13 | BN114: 1 | BX114: S | CA114: 571 | CB114: B+45 17 | CE114: 0.55 | CF114: F2II | CG114: X
B115: 1006.17284 | C115: 1006.1 | D115: 6,28 | E115: 6.28 | F115: 3,24 | G115: 3.24 | H115: H | I115: 57045 | K115: 11 41 43.52 | L115: +55 10 19.2 | M115: 6.28 | N115: 1 | O115: H | P115: 17543132179 | Q115: 5517199339 | S115: 3.24 | T115: -19.67 | U115: 7.28 | V115: 0.37 | W115: 0.43 | X115: 0.70 | Y115: 0.39 | Z115: 0.42 | AA115: 0.42 | AB115: -0.15 | AC115: -0.26 | AD115: -0.10 | AE115: -0.14 | AF115: 0.02 | AG115: -0.15 | AH115: -0.14 | AI115: 0.09 | AJ115: 0.32 | AK115: 0 | AL115: 0.48 | AM115: 57045 | AN115: 8236 | AO115: 0.006 | AP115: 6446 | AQ115: 0.003 | AS115: 1491 | AT115: 0.005 | AU115: T | AV115: 1951-01-01 | AW115: 0.01 | AX115: L | AZ115: 64053 | BA115: 0.0008 | BB115: 0.010 | BC115: 236 | BE115: 6.39 | BF115: 6.42 | BH115: M | BN115: 1 | BX115: S | CA115: 101604 | CB115: B+55 1481 | CE115: 1949-01-01 | CF115: K5 | CG115: S
B116: 1006.17284 | C116: 1006.1 | D116: 6,51 | E116: 6.51 | F116: 3,24 | G116: 3.24 | H116: H | I116: 48630 | K116: 09 55 00.14 | L116: -16 11 38.1 | M116: 6.51 | O116: H | P116: 14875059574 | Q116: -1619391855 | S116: 3.24 | T116: -47.38 | U116: 21.45 | V116: 0.73 | W116: 0.52 | X116: 0.81 | Y116: 0.91 | Z116: 0.55 | AA116: -0.17 | AB116: 0.08 | AC116: 0.10 | AD116: -0.26 | AE116: -0.19 | AF116: -0.23 | AG116: -0.11 | AH116: -0.07 | AI116: 0.04 | AJ116: -0.16 | AK116: 0 | AL116: 1.50 | AM116: 48630 | AN116: 7527 | AO116: 0.006 | AP116: 6617 | AQ116: 0.004 | AS116: 0.807 | AT116: 0.005 | AU116: T | AV116: 0.83 | AW116: 0.00 | AX116: L | AZ116: 66653 | BA116: 0.0010 | BB116: 0.009 | BC116: 100 | BE116: 6.65 | BF116: 6.68 | BK116: 09550-1612 | BL116: I | BM116: 1 | BN116: 1 | BO116: G | BX116: S | CA116: 85949 | CB116: B-15 2929 | CE116: 0.83 | CF116: K0III+... | CG116: 4
B117: 1006.17284 | C117: 1006.1 | D117: 6,81 | E117: 6.81 | F117: 3,24 | G117: 3.24 | H117: H | I117: 61969 | K117: 12 41 57.68 | L117: -07 30 00.7 | M117: 6.81 | N117: 1 | O117: H | P117: 19049033010 | Q117: -750018780 | S117: 3.24 | T117: 15.00 | U117: -45.64 | V117: 0.70 | W117: 0.51 | X117: 0.82 | Y117: 0.68 | Z117: 0.51 | AA117: -0.42 | AB117: -0.20 | AC117: 0.03 | AD117: 0.09 | AE117: -0.04 | AF117: 0.06 | AG117: -0.05 | AH117: -0.03 | AI117: -0.03 | AJ117: -0.55 | AK117: 0 | AL117: 0.93 | AM117: 61969 | AN117: 8882 | AO117: 0.013 | AP117: 6992 | AQ117: 0.006 | AS117: 1580 | AT117: 0.015 | AU117: G | AV117: 1982-01-01 | AW117: 0.05 | AX117: F | AZ117: 69064 | BA117: 0.0017 | BB117: 0.014 | BC117: 84 | BE117: 6.89 | BF117: 6.93 | BH117: M | BN117: 1 | BQ117: S | BX117: S | CA117: 110418 | CB117: B-06 3626 | CE117: 1982-01-01 | CF117: K5 | CG117: S
B118: 1006.17284 | C118: 1006.1 | D118: 6,83 | E118: 6.83 | F118: 3,24 | G118: 3.24 | H118: H | I118: 54570 | K118: 11 09 58.77 | L118: -29 47 38.9 | M118: 6.83 | O118: H | P118: 16749489241 | Q118: -2979414445 | S118: 3.24 | T118: -50.17 | U118: -11.68 | V118: 0.57 | W118: 0.61 | X118: 0.84 | Y118: 0.60 | Z118: 0.60 | AA118: -0.31 | AB118: -0.13 | AC118: 0.00 | AD118: -0.03 | AE118: 0.02 | AF118: 0.03 | AG118: 0.00 | AH118: -0.24 | AI118: 0.23 | AJ118: -0.29 | AK118: 0 | AL118: -0.09 | AM118: 54570 | AN118: 8564 | AO118: 0.011 | AP118: 6971 | AQ118: 0.006 | AS118: 1335 | AT118: 0.010 | AU118: T | AV118: 1930-01-01 | AW118: 0.01 | AX118: L | AZ118: 69821 | BA118: 0.0010 | BB118: 0.009 | BC118: 97 | BE118: 6.97 | BF118: 7.00 | BN118: 1 | BX118: S | CA118: 97022 | CC118: C-29 8896 | CD118: P-29 3443 | CE118: 2028-01-01 | CF118: K2III | CG118: 3
B119: 1006.17284 | C119: 1006.1 | D119: 7,05 | E119: 7.05 | F119: 3,24 | G119: 3.24 | H119: H | I119: 52130 | K119: 10 39 00.47 | L119: -55 06 49.6 | M119: 7.05 | N119: 1 | O119: H | P119: 15975195631 | Q119: -5511377980 | S119: 3.24 | T119: -32.27 | U119: 13.47 | V119: 0.44 | W119: 0.45 | X119: 0.57 | Y119: 0.52 | Z119: 0.50 | AA119: 0.14 | AB119: 0.05 | AC119: 0.11 | AD119: 0.03 | AE119: -0.07 | AF119: -0.10 | AG119: -0.07 | AH119: -0.11 | AI119: 0.05 | AJ119: 0.05 | AK119: 2 | AL119: -0.19 | AM119: 52130 | AN119: 7159 | AO119: 0.005 | AP119: 7075 | AQ119: 0.006 | AS119: 0.083 | AT119: 0.007 | AU119: T | AV119: 0.10 | AW119: 0.01 | AX119: L | AZ119: 70815 | BA119: 0.0014 | BB119: 0.013 | BC119: 147 | BE119: 7.06 | BF119: 7.11 | BH119: U | BI119: 2 | BN119: 1 | BX119: S | CA119: 92405 | CD119: P-54 3909 | CE119: 0.06 | CF119: B8/B9IV/V | CG119: 1
B120: 1006.17284 | C120: 1006.1 | D120: 7,17 | E120: 7.17 | F120: 3,24 | G120: 3.24 | H120: H | I120: 17969 | K120: 03 50 30.08 | L120: +34 03 08.4 | M120: 7.17 | O120: H | P120: 5762531699 | Q120: 3405233191 | S120: 3.24 | T120: 15.57 | U120: -21.71 | V120: 0.82 | W120: 0.53 | X120: 0.96 | Y120: 0.98 | Z120: 0.72 | AA120: 0.22 | AB120: 0.23 | AC120: -0.13 | AD120: 0.06 | AE120: 0.01 | AF120: 0.18 | AG120: 0.02 | AH120: 0.27 | AI120: -0.03 | AJ120: 0.22 | AK120: 2 | AL120: -1.41 | AM120: 17969 | AN120: 9141 | AO120: 0.018 | AP120: 7335 | AQ120: 0.009 | AS120: 1503 | AT120: 0.016 | AU120: T | AV120: 1953-01-01 | AW120: 0.02 | AX120: L | AZ120: 72963 | BA120: 0.0011 | BB120: 0.012 | BC120: 89 | BE120: 7.28 | BF120: 7.32 | BN120: 1 | BX120: S | CA120: 23962 | CB120: B+33 724 | CE120: 1950-01-01 | CF120: K5III | CG120: X
B121: 1006.17284 | C121: 1006.1 | D121: 7,38 | E121: 7.38 | F121: 3,24 | G121: 3.24 | H121: H | I121: 45905 | J121: H | K121: 09 21 34.33 | L121: -60 49 49.9 | M121: 7.38 | O121: H | P121: 14039303707 | Q121: -6083051735 | R121: A | S121: 3.24 | T121: -12.99 | U121: -0.31 | V121: 0.75 | W121: 0.70 | X121: 0.74 | Y121: 0.73 | Z121: 0.69 | AA121: 0.08 | AB121: 0.10 | AC121: 0.17 | AD121: -0.22 | AE121: -0.18 | AF121: -0.18 | AG121: -0.13 | AH121: -0.14 | AI121: 0.07 | AJ121: -0.27 | AK121: 4 | AL121: 0.67 | AM121: 45905 | AN121: 7427 | AO121: 0.006 | AP121: 7427 | AQ121: 0.009 | AR121: A | AS121: 0.100 | AT121: 0.495 | AU121: G | AV121: 0.00 | AW121: 0.01 | AX121: L | AY121: * | AZ121: 73828 | BA121: 0.0012 | BB121: 0.010 | BC121: 116 | BD121: * | BE121: 7.36 | BF121: 7.40 | BH121: D | BK121: 09216-6050 | BL121: I | BM121: 1 | BN121: 2 | BO121: C | BQ121: A | BR121: AB | BS121: 239 | BT121: 2032 | BU121: 0.009 | BV121: 2.81 | BW121: 0.04 | BX121: S | CA121: 81175 | CD121: P-60 1402 | CE121: 0.00 | CF121: B9.5V | CG121: 1
B122: 1006.17284 | C122: 1006.1 | D122: 7,39 | E122: 7.39 | F122: 3,24 | G122: 3.24 | H122: H | I122: 1115 | K122: 00 13 55.59 | L122: -17 32 43.4 | M122: 7.39 | O122: H | P122: 348163510 | Q122: -1754538026 | S122: 3.24 | T122: 17.16 | U122: 4.75 | V122: 0.85 | W122: 0.52 | X122: 1.03 | Y122: 1.37 | Z122: 0.58 | AA122: 0.30 | AB122: -0.08 | AC122: -0.27 | AD122: 0.19 | AE122: 0.03 | AF122: 0.28 | AG122: 0.07 | AH122: -0.19 | AI122: 0.23 | AJ122: 0.33 | AK122: 2 | AL122: 1.28 | AM122: 1115 | AN122: 7166 | AO122: 0.005 | AP122: 7352 | AQ122: 0.007 | AS122: -0.165 | AT122: 0.008 | AU122: G | AV122: -.17 | AW122: 0.01 | AX122: H | AZ122: 73253 | BA122: 0.0009 | BB122: 0.009 | BC122: 89 | BE122: 7.31 | BF122: 7.34 | BN122: 1 | BX122: S | CA122: 955 | CB122: B-18 25 | CE122: -.17 | CF122: B4V | CG122: 4
B123: 1006.17284 | C123: 1006.1 | D123: 7,41 | E123: 7.41 | F123: 3,24 | G123: 3.24 | H123: H | I123: 55906 | K123: 11 27 33.50 | L123: +01 18 05.4 | M123: 7.41 | O123: H | P123: 17188958279 | Q123: 130149461 | S123: 3.24 | T123: -39.78 | U123: 0.90 | V123: 0.85 | W123: 0.65 | X123: 1.02 | Y123: 1.21 | Z123: 0.82 | AA123: -0.24 | AB123: -0.03 | AC123: -0.21 | AD123: 0.09 | AE123: 0.05 | AF123: -0.18 | AG123: 0.03 | AH123: -0.08 | AI123: 0.29 | AJ123: 0.00 | AK123: 0 | AL123: -0.50 | AM123: 55906 | AN123: 8688 | AO123: 0.015 | AP123: 7519 | AQ123: 0.010 | AS123: 1003 | AT123: 0.014 | AU123: T | AV123: 0.98 | AW123: 0.01 | AX123: L | AZ123: 75760 | BA123: 0.0020 | BB123: 0.012 | BC123: 64 | BE123: 7.55 | BF123: 7.60 | BN123: 1 | BX123: S | CA123: 99595 | CB123: B+02 2432 | CE123: 0.98 | CF123: K0 | CG123: S
B124: 1006.17284 | C124: 1006.1 | D124: 7,44 | E124: 7.44 | F124: 3,24 | G124: 3.24 | H124: H | I124: 38322 | K124: 07 51 02.60 | L124: +07 26 16.9 | M124: 7.44 | O124: H | P124: 11776081772 | Q124: 743801738 | S124: 3.24 | T124: -6.14 | U124: 4.04 | V124: 0.88 | W124: 0.67 | X124: 1.09 | Y124: 1.05 | Z124: 0.79 | AA124: 0.03 | AB124: 0.07 | AC124: -0.26 | AD124: -0.08 | AE124: -0.02 | AF124: -0.39 | AG124: -0.15 | AH124: 0.16 | AI124: -0.23 | AJ124: 0.13 | AK124: 0 | AL124: -1.16 | AM124: 38322 | AN124: 7494 | AO124: 0.008 | AP124: 7448 | AQ124: 0.010 | AS124: 0.047 | AT124: 0.012 | AU124: T | AV124: 0.06 | AW124: 0.01 | AX124: L | AZ124: 74610 | BA124: 0.0012 | BB124: 0.008 | BC124: 45 | BE124: 7.45 | BF124: 7.48 | BN124: 1 | BX124: S | CA124: 63797 | CB124: B+07 1844 | CE124: 0.05 | CF124: A0 | CG124: S
B125: 1006.17284 | C125: 1006.1 | D125: 7,44 | E125: 7.44 | F125: 3,24 | G125: 3.24 | H125: H | I125: 43723 | J125: H | K125: 08 54 14.82 | L125: -08 45 39.1 | M125: 7.44 | O125: G | P125: 13356175248 | Q125: -876085630 | R125: A | S125: 3.24 | T125: -7.72 | U125: -0.07 | V125: 2.24 | W125: 1.28 | X125: 2.14 | Y125: 2.46 | Z125: 1.13 | AA125: -0.38 | AB125: 0.24 | AC125: -0.10 | AD125: -0.19 | AE125: -0.07 | AF125: -0.03 | AG125: -0.08 | AH125: 0.05 | AI125: -0.13 | AJ125: -0.09 | AK125: 2 | AL125: 1.26 | AM125: 43723 | AN125: 8205 | AO125: 0.025 | AP125: 7635 | AQ125: 0.018 | AR125: * | AS125: 0.546 | AT125: 0.036 | AU125: G | AV125: 0.62 | AW125: 0.03 | AX125: H | AY125: * | AZ125: 75431 | BA125: 0.0017 | BB125: 0.013 | BC125: 110 | BD125: * | BE125: 7.52 | BF125: 7.56 | BH125: R | BK125: 08542-0846 | BL125: I | BM125: 1 | BN125: 2 | BO125: C | BQ125: A | BR125: AB | BS125: 176 | BT125: 1183 | BU125: 0.008 | BV125: 0.53 | BW125: 0.02 | BX125: S | CA125: 76174 | CB125: B-08 2518 | CE125: 0.88 | CF125: F0 | CG125: S
B126: 1006.17284 | C126: 1006.1 | D126: 7,46 | E126: 7.46 | F126: 3,24 | G126: 3.24 | H126: H | I126: 31101 | K126: 06 31 36.10 | L126: -05 22 07.4 | M126: 7.46 | O126: G | P126: 9790039615 | Q126: -536873209 | S126: 3.24 | T126: -3.88 | U126: -1.44 | V126: 0.73 | W126: 0.49 | X126: 0.90 | Y126: 0.69 | Z126: 0.60 | AA126: -0.28 | AB126: 0.46 | AC126: -0.30 | AD126: -0.32 | AE126: -0.11 | AF126: -0.11 | AG126: -0.07 | AH126: -0.48 | AI126: 0.15 | AJ126: 0.03 | AK126: 0 | AL126: -0.25 | AM126: 31101 | AN126: 7350 | AO126: 0.004 | AP126: 7432 | AQ126: 0.006 | AS126: -0.079 | AT126: 0.009 | AU126: G | AV126: -.06 | AW126: 0.01 | AX126: H | AZ126: 74407 | BA126: 0.0007 | BB126: 0.008 | BC126: 164 | BE126: 7.43 | BF126: 7.46 | BH126: C | BN126: 1 | BX126: S | CA126: 46165 | CB126: B-05 1666 | CE126: -.06 | CF126: B9 | CG126: S
B127: 1006.17284 | C127: 1006.1 | D127: 7,47 | E127: 7.47 | F127: 3,24 | G127: 3.24 | H127: H | I127: 48882 | K127: 09 58 11.88 | L127: -72 03 53.0 | M127: 7.47 | O127: H | P127: 14954949991 | Q127: -7206471297 | S127: 3.24 | T127: -4.20 | U127: 8.38 | V127: 0.52 | W127: 0.49 | X127: 0.56 | Y127: 0.67 | Z127: 0.54 | AA127: 0.05 | AB127: -0.03 | AC127: 0.08 | AD127: -0.03 | AE127: -0.01 | AF127: -0.01 | AG127: -0.01 | AH127: -0.08 | AI127: 0.00 | AJ127: 0.10 | AK127: 0 | AL127: -0.51 | AM127: 48882 | AN127: 7427 | AO127: 0.006 | AP127: 7457 | AQ127: 0.008 | AS127: -0.025 | AT127: 0.009 | AU127: T | AV127: 0.00 | AW127: 0.01 | AX127: L | AZ127: 74704 | BA127: 0.0011 | BB127: 0.008 | BC127: 113 | BE127: 7.45 | BF127: 7.49 | BH127: C | BK127: 09582-7204 | BL127: I | BM127: 1 | BN127: 1 | BX127: S | CA127: 86910 | CD127: P-71 895 | CE127: 0.00 | CF127: B8V | CG127: 1
B128: 1006.17284 | C128: 1006.1 | D128: 7,47 | E128: 7.47 | F128: 3,24 | G128: 3.24 | H128: H | I128: 62945 | K128: 12 53 56.23 | L128: +87 38 53.8 | M128: 7.47 | O128: G | P128: 19348427190 | Q128: 8764828980 | S128: 3.24 | T128: -10.13 | U128: 10.96 | V128: 0.59 | W128: 0.52 | X128: 0.64 | Y128: 0.64 | Z128: 0.57 | AA128: -0.02 | AB128: 0.19 | AC128: -0.14 | AD128: -0.16 | AE128: -0.09 | AF128: -0.18 | AG128: -0.11 | AH128: 0.03 | AI128: -0.06 | AJ128: -0.12 | AK128: 1 | AL128: -0.82 | AM128: 62945 | AN128: 9344 | AO128: 0.014 | AP128: 7631 | AQ128: 0.007 | AS128: 1425 | AT128: 0.015 | AU128: G | AV128: 1938-01-01 | AW128: 0.06 | AX128: F | AZ128: 76254 | BA128: 0.0009 | BB128: 0.011 | BC128: 119 | BE128: 7.61 | BF128: 7.64 | BH128: C | BN128: 1 | BX128: S | CA128: 114282 | CB128: B+88 76 | CE128: 1938-01-01 | CF128: K2 | CG128: S
B129: 1006.17284 | C129: 1006.1 | D129: 7,63 | E129: 7.63 | F129: 3,24 | G129: 3.24 | H129: H | I129: 49959 | K129: 10 11 59.98 | L129: +36 15 04.6 | M129: 7.63 | O129: H | P129: 15299991125 | Q129: 3625127420 | S129: 3.24 | T129: -26.32 | U129: 10.82 | V129: 0.74 | W129: 0.63 | X129: 0.93 | Y129: 0.89 | Z129: 0.63 | AA129: -0.29 | AB129: 0.08 | AC129: -0.22 | AD129: -0.04 | AE129: 0.22 | AF129: -0.37 | AG129: 0.14 | AH129: 0.05 | AI129: 0.17 | AJ129: -0.31 | AK129: 0 | AL129: -0.31 | AM129: 49959 | AN129: 9049 | AO129: 0.016 | AP129: 7749 | AQ129: 0.010 | AS129: 1105 | AT129: 0.015 | AU129: T | AV129: 2014-07-01 | AW129: 0.02 | AX129: L | AZ129: 77988 | BA129: 0.0015 | BB129: 0.011 | BC129: 77 | BE129: 7.78 | BF129: 7.82 | BN129: 1 | BX129: S | CA129: 88352 | CB129: B+36 2044 | CE129: 2014-03-01 | CF129: K0 | CG129: S
B130: =1/(F130/1000)*3.26 -> 1006.17284 | C130: 1006.1 | D130: =REPLACE(E130,FIND(".",E130),1,",") -> 7,77 | E130: =TRIM(M130) -> 7.77 | F130: =REPLACE(G130,FIND(".",G130),1,",") -> 3,24 | G130: =TRIM(S130) -> 3.24 | H130: H | I130: 5739 | K130: 01 13 44.39 | L130: -31 06 58.7 | M130: 7.77 | O130: G | P130: 1843495155 | Q130: -3111630112 | S130: 3.24 | T130: 10.59 | U130: -5.17 | V130: 0.83 | W130: 0.65 | X130: 1.04 | Y130: 1.37 | Z130: 0.68 | AA130: 0.15 | AB130: 0.00 | AC130: -0.24 | AD130: 0.15 | AE130: 0.25 | AF130: -0.14 | AG130: 0.18 | AH130: 0.39 | AI130: -0.15 | AJ130: 0.04 | AK130: 0 | AL130: 0.70 | AM130: 5739 | AN130: 9142 | AO130: 0.012 | AP130: 7898 | AQ130: 0.008 | AS130: 1073 | AT130: 0.005 | AU130: G | AV130: 2014-04-01 | AW130: 0.00 | AX130: H | AZ130: 79284 | BA130: 0.0012 | BB130: 0.012 | BC130: 104 | BE130: 7.90 | BF130: 7.96 | BH130: C | BK130: 01137-3107 | BL130: I | BM130: 1 | BN130: 1 | BX130: S | CA130: 7402 | CC130: C-31 497 | CE130: 2014-04-01 | CF130: G8III/IV | CG130: 3
B131: 1006.17284 | C131: 1006.1 | D131: 7,78 | E131: 7.78 | F131: 3,24 | G131: 3.24 | H131: H | I131: 4182 | K131: 00 53 28.02 | L131: +60 39 56.3 | M131: 7.78 | O131: G | P131: 1336675196 | Q131: 6066562735 | S131: 3.24 | T131: 27.79 | U131: -9.23 | V131: 0.52 | W131: 0.56 | X131: 0.85 | Y131: 0.66 | Z131: 0.63 | AA131: -0.28 | AB131: 0.19 | AC131: 0.10 | AD131: 0.24 | AE131: 0.04 | AF131: 0.02 | AG131: 0.04 | AH131: -0.07 | AI131: 0.08 | AJ131: -0.31 | AK131: 0 | AL131: -0.87 | AM131: 4182 | AN131: 7908 | AO131: 0.008 | AP131: 7805 | AQ131: 0.008 | AS131: 0.105 | AT131: 0.005 | AU131: G | AV131: 0.12 | AW131: 0.01 | AX131: H | AZ131: 78149 | BA131: 0.0010 | BB131: 0.014 | BC131: 165 | BE131: 7.79 | BF131: 7.84 | BH131: D | BN131: 1 | BX131: S | CA131: 5071 | CB131: B+59 134 | CE131: 0.12 | CF131: A0V | CG131: X
B132: 1006.17284 | C132: 1006.1 | D132: 7,78 | E132: 7.78 | F132: 3,24 | G132: 3.24 | H132: H | I132: 38218 | K132: 07 49 46.40 | L132: +15 06 23.4 | M132: 7.78 | O132: H | P132: 11744332772 | Q132: 1510649368 | S132: 3.24 | T132: -11.81 | U132: -9.49 | V132: 1.02 | W132: 0.55 | X132: 1.09 | Y132: 1.06 | Z132: 0.55 | AA132: -0.26 | AB132: 0.30 | AC132: -0.21 | AD132: -0.39 | AE132: -0.06 | AF132: -0.32 | AG132: 0.01 | AH132: -0.29 | AI132: 0.31 | AJ132: -0.49 | AK132: 0 | AL132: -0.04 | AM132: 38218 | AN132: 9255 | AO132: 0.015 | AP132: 7917 | AQ132: 0.009 | AS132: 1135 | AT132: 0.014 | AU132: T | AV132: 2014-10-01 | AW132: 0.01 | AX132: L | AZ132: 79508 | BA132: 0.0010 | BB132: 0.009 | BC132: 101 | BE132: 7.94 | BF132: 7.97 | BH132: C | BN132: 1 | BX132: S | CA132: 63496 | CB132: B+15 1672 | CE132: 2014-01-01 | CF132: G5 | CG132: S
B133: 1006.17284 | C133: 1006.1 | D133: 7,80 | E133: 7.80 | F133: 3,24 | G133: 3.24 | H133: H | I133: 3153 | K133: 00 40 05.20 | L133: +51 52 44.9 | M133: 7.80 | O133: H | P133: 1002166049 | Q133: 5187914215 | S133: 3.24 | T133: 35.38 | U133: -0.04 | V133: 0.55 | W133: 0.58 | X133: 0.93 | Y133: 0.75 | Z133: 0.62 | AA133: -0.12 | AB133: 0.17 | AC133: -0.06 | AD133: 0.14 | AE133: 0.04 | AF133: 0.07 | AG133: 0.05 | AH133: -0.19 | AI133: 0.03 | AJ133: -0.08 | AK133: 1 | AL133: 1.46 | AM133: 3153 | AN133: 9017 | AO133: 0.013 | AP133: 7901 | AQ133: 0.009 | AS133: 0.962 | AT133: 0.012 | AU133: T | AV133: 0.95 | AW133: 0.01 | AX133: L | AZ133: 79627 | BA133: 0.0015 | BB133: 0.013 | BC133: 156 | BE133: 7.94 | BF133: 7.98 | BH133: C | BN133: 1 | CA133: 3682 | CB133: B+51 121 | CE133: 0.93 | CF133: K0 | CG133: S
B134: 1006.17284 | C134: 1006.1 | D134: 7,81 | E134: 7.81 | F134: 3,24 | G134: 3.24 | H134: H | I134: 33058 | K134: 06 53 08.00 | L134: -07 45 56.0 | M134: 7.81 | N134: 1 | O134: H | P134: 10328332832 | Q134: -776556535 | S134: 3.24 | T134: -5.96 | U134: 6.93 | V134: 0.74 | W134: 0.59 | X134: 0.92 | Y134: 0.94 | Z134: 0.70 | AA134: -0.09 | AB134: 0.24 | AC134: -0.24 | AD134: 0.06 | AE134: -0.18 | AF134: -0.11 | AG134: -0.14 | AH134: -0.16 | AI134: 0.26 | AJ134: -0.17 | AK134: 0 | AL134: 0.08 | AM134: 33058 | AN134: 7717 | AO134: 0.008 | AP134: 7792 | AQ134: 0.010 | AS134: -0.064 | AT134: 0.011 | AU134: T | AV134: -.04 | AW134: 0.01 | AX134: L | AZ134: 77944 | BA134: 0.0025 | BB134: 0.019 | BC134: 95 | BE134: 7.77 | BF134: 7.83 | BH134: U | BN134: 1 | BX134: S | CA134: 50461 | CB134: B-07 1614 | CE134: -.02 | CF134: A0p | CG134: X
B135: 1006.17284 | C135: 1006.1 | D135: 7,86 | E135: 7.86 | F135: 3,24 | G135: 3.24 | H135: H | I135: 5236 | K135: 01 06 58.41 | L135: +50 35 09.9 | M135: 7.86 | O135: H | P135: 1674339175 | Q135: 5058608701 | S135: 3.24 | T135: 6.08 | U135: -5.85 | V135: 0.89 | W135: 0.69 | X135: 1.08 | Y135: 0.95 | Z135: 0.66 | AA135: -0.05 | AB135: 0.18 | AC135: -0.03 | AD135: -0.32 | AE135: -0.02 | AF135: 0.17 | AG135: 0.07 | AH135: -0.21 | AI135: 0.14 | AJ135: -0.32 | AK135: 0 | AL135: 1.06 | AM135: 5236 | AN135: 9657 | AO135: 0.019 | AP135: 8000 | AQ135: 0.010 | AS135: 1386 | AT135: 0.017 | AU135: T | AV135: 1936-01-01 | AW135: 0.02 | AX135: L | AZ135: 80103 | BA135: 0.0020 | BB135: 0.016 | BC135: 80 | BE135: 7.98 | BF135: 8.03 | BH135: C | BN135: 1 | BQ135: S | CA135: 6523 | CB135: B+49 296 | CE135: 0.98 | CF135: K0 | CG135: S
B136: 1006.17284 | C136: 1006.1 | D136: 7,88 | E136: 7.88 | F136: 3,24 | G136: 3.24 | H136: H | I136: 5660 | K136: 01 12 43.22 | L136: +36 16 07.6 | M136: 7.88 | O136: H | P136: 1818009885 | Q136: 3626876803 | S136: 3.24 | T136: 24.57 | U136: -17.45 | V136: 0.83 | W136: 0.66 | X136: 0.94 | Y136: 0.88 | Z136: 0.79 | AA136: 0.19 | AB136: 0.33 | AC136: -0.06 | AD136: 0.36 | AE136: 0.09 | AF136: 0.02 | AG136: 0.11 | AH136: 0.38 | AI136: 0.12 | AJ136: 0.33 | AK136: 0 | AL136: -2.49 | AM136: 5660 | AN136: 9290 | AO136: 0.018 | AP136: 7984 | AQ136: 0.012 | AS136: 1110 | AT136: 0.017 | AU136: T | AV136: 2014-07-01 | AW136: 0.02 | AX136: L | AZ136: 80506 | BA136: 0.0015 | BB136: 0.010 | BC136: 78 | BE136: 8.04 | BF136: 8.07 | BH136: C | BN136: 1 | CA136: 7191 | CB136: B+35 221 | CE136: 2014-02-01 | CF136: K0 | CG136: S
B137: 1006.17284 | C137: 1006.1 | D137: 7,90 | E137: 7.90 | F137: 3,24 | G137: 3.24 | H137: H | I137: 44079 | K137: 08 58 45.49 | L137: +08 13 25.5 | M137: 7.90 | O137: H | P137: 13468952212 | Q137: 822375537 | S137: 3.24 | T137: -12.51 | U137: -4.54 | V137: 0.90 | W137: 0.59 | X137: 1.08 | Y137: 1.28 | Z137: 0.76 | AA137: -0.29 | AB137: 0.21 | AC137: -0.22 | AD137: -0.15 | AE137: 0.33 | AF137: -0.28 | AG137: 0.24 | AH137: 0.08 | AI137: -0.14 | AJ137: -0.28 | AK137: 2 | AL137: 1.26 | AM137: 44079 | AN137: 7864 | AO137: 0.009 | AP137: 7900 | AQ137: 0.011 | AS137: -0.028 | AT137: 0.013 | AU137: T | AV137: -.01 | AW137: 0.01 | AX137: L | AZ137: 78959 | BA137: 0.0009 | BB137: 0.009 | BC137: 66 | BE137: 7.88 | BF137: 7.91 | BH137: C | BN137: 1 | BX137: S | CA137: 76814 | CB137: B+08 2148 | CE137: 0.00 | CF137: B9 | CG137: S
B138: 1006.17284 | C138: 1006.1 | D138: 7,91 | E138: 7.91 | F138: 3,24 | G138: 3.24 | H138: H | I138: 17473 | K138: 03 44 40.22 | L138: +01 56 18.0 | M138: 7.91 | O138: H | P138: 5616759836 | Q138: 193832547 | S138: 3.24 | T138: 25.40 | U138: -16.35 | V138: 0.85 | W138: 0.58 | X138: 0.95 | Y138: 0.99 | Z138: 0.81 | AA138: 0.06 | AB138: 0.29 | AC138: -0.17 | AD138: 0.31 | AE138: 0.03 | AF138: -0.01 | AG138: 0.01 | AH138: 0.20 | AI138: -0.05 | AJ138: 0.08 | AK138: 2 | AL138: 0.93 | AM138: 17473 | AN138: 10144 | AO138: 0.028 | AP138: 8084 | AQ138: 0.011 | AS138: 1705 | AT138: 0.024 | AU138: T | AV138: 1973-01-01 | AW138: 0.03 | AX138: L | AZ138: 80145 | BA138: 0.0020 | BB138: 0.016 | BC138: 92 | BE138: 7.98 | BF138: 8.04 | BN138: 1 | CA138: 23362 | CB138: B+01 656 | CE138: 1971-01-01 | CF138: K2 | CG138: S
B139: 1006.17284 | C139: 1006.1 | D139: 7,92 | E139: 7.92 | F139: 3,24 | G139: 3.24 | H139: H | I139: 40137 | K139: 08 11 49.79 | L139: -48 24 29.4 | M139: 7.92 | O139: H | P139: 12295745844 | Q139: -4840816297 | S139: 3.24 | T139: -14.47 | U139: 21.07 | V139: 0.67 | W139: 0.73 | X139: 0.85 | Y139: 0.81 | Z139: 0.64 | AA139: 0.06 | AB139: 0.18 | AC139: 0.35 | AD139: -0.02 | AE139: -0.06 | AF139: 0.00 | AG139: -0.04 | AH139: -0.31 | AI139: 0.10 | AJ139: -0.03 | AK139: 5 | AL139: 0.83 | AM139: 40137 | AN139: 9391 | AO139: 0.020 | AP139: 8063 | AQ139: 0.012 | AS139: 1127 | AT139: 0.018 | AU139: T | AV139: 2014-09-01 | AW139: 0.02 | AX139: L | AZ139: 80913 | BA139: 0.0015 | BB139: 0.012 | BC139: 95 | BE139: 8.07 | BF139: 8.11 | BH139: C | BK139: 08118-4825 | BL139: I | BM139: 1 | BN139: 1 | CA139: 68809 | CC139: C-48 3585 | CD139: P-48 1552 | CE139: 2014-01-01 | CF139: K0III | CG139: 2
B140: 1006.17284 | C140: 1006.1 | D140: 7,98 | E140: 7.98 | F140: 3,24 | G140: 3.24 | H140: H | I140: 18556 | K140: 03 58 15.46 | L140: -48 10 13.6 | M140: 7.98 | O140: H | P140: 5956441414 | Q140: -4817044518 | S140: 3.24 | T140: 1.24 | U140: 10.87 | V140: 0.66 | W140: 0.64 | X140: 0.76 | Y140: 0.84 | Z140: 0.80 | AA140: 0.07 | AB140: -0.17 | AC140: -0.07 | AD140: -0.16 | AE140: -0.15 | AF140: 0.23 | AG140: -0.18 | AH140: 0.08 | AI140: 0.10 | AJ140: 0.22 | AK140: 0 | AL140: -1.20 | AM140: 18556 | AN140: 9655 | AO140: 0.019 | AP140: 8123 | AQ140: 0.010 | AS140: 1287 | AT140: 0.017 | AU140: T | AV140: 2025-01-01 | AW140: 0.02 | AX140: L | AZ140: 81389 | BA140: 0.0016 | BB140: 0.014 | BC140: 107 | BE140: 8.11 | BF140: 8.17 | BH140: C | BN140: 1 | BX140: S | CA140: 25222 | CC140: C-48 1144 | CD140: P-48 422 | CE140: 2021-01-01 | CF140: K0 | CG140: 2
B141: 1006.17284 | C141: 1006.1 | D141: 7,98 | E141: 7.98 | F141: 3,24 | G141: 3.24 | H141: H | I141: 52568 | K141: 10 44 54.45 | L141: +48 32 45.4 | M141: 7.98 | O141: H | P141: 16122685812 | Q141: 4854594143 | S141: 3.24 | T141: -15.17 | U141: 5.75 | V141: 0.65 | W141: 0.63 | X141: 1.06 | Y141: 0.74 | Z141: 0.68 | AA141: -0.12 | AB141: 0.22 | AC141: -0.13 | AD141: -0.20 | AE141: -0.07 | AF141: -0.21 | AG141: -0.05 | AH141: -0.16 | AI141: 0.20 | AJ141: -0.19 | AK141: 0 | AL141: 1.13 | AM141: 52568 | AN141: 9322 | AO141: 0.013 | AP141: 8092 | AQ141: 0.008 | AS141: 1050 | AT141: 0.012 | AU141: T | AV141: 2014-02-01 | AW141: 0.01 | AX141: L | AZ141: 81491 | BA141: 0.0018 | BB141: 0.016 | BC141: 118 | BE141: 8.12 | BF141: 8.18 | BN141: 1 | BX141: S | CA141: 92953 | CB141: B+49 1986 | CE141: 1.00 | CF141: K0 | CG141: S
B142: 1006.17284 | C142: 1006.1 | D142: 8,00 | E142: 8.00 | F142: 3,24 | G142: 3.24 | H142: H | I142: 42328 | K142: 08 37 48.09 | L142: -12 32 12.3 | M142: 8.00 | O142: G | P142: 12945037045 | Q142: -1253673802 | S142: 3.24 | T142: -9.41 | U142: 4.95 | V142: 0.73 | W142: 0.63 | X142: 1.01 | Y142: 0.92 | Z142: 0.66 | AA142: -0.13 | AB142: 0.23 | AC142: -0.13 | AD142: 0.00 | AE142: -0.21 | AF142: -0.08 | AG142: -0.15 | AH142: -0.11 | AI142: 0.15 | AJ142: -0.27 | AK142: 0 | AL142: 0.53 | AM142: 42328 | AN142: 8442 | AO142: 0.011 | AP142: 8021 | AQ142: 0.011 | AS142: 0.384 | AT142: 0.015 | AU142: G | AV142: 0.45 | AW142: 0.02 | AX142: H | AZ142: 80837 | BA142: 0.0013 | BB142: 0.010 | BC142: 97 | BE142: 8.07 | BF142: 8.10 | BH142: C | BN142: 1 | BX142: S | CA142: 73378 | CB142: B-12 2609 | CE142: 0.45 | CF142: A9III | CG142: 4
B143: 1006.17284 | C143: 1006.1 | D143: 8,11 | E143: 8.11 | F143: 3,24 | G143: 3.24 | H143: H | I143: 11922 | K143: 02 33 53.20 | L143: -29 25 34.2 | M143: 8.11 | O143: H | P143: 3847166291 | Q143: -2942615667 | S143: 3.24 | T143: 24.16 | U143: -29.44 | V143: 0.61 | W143: 0.61 | X143: 1.02 | Y143: 0.81 | Z143: 0.88 | AA143: -0.09 | AB143: -0.04 | AC143: -0.16 | AD143: -0.28 | AE143: 0.11 | AF143: 0.03 | AG143: -0.09 | AH143: 0.18 | AI143: 0.00 | AJ143: 0.38 | AK143: 0 | AL143: -0.12 | AM143: 11922 | AN143: 9749 | AO143: 0.014 | AP143: 8257 | AQ143: 0.008 | AS143: 1256 | AT143: 0.013 | AU143: T | AV143: 2021-01-01 | AW143: 0.01 | AX143: L | AZ143: 82681 | BA143: 0.0015 | BB143: 0.015 | BC143: 159 | BE143: 8.24 | BF143: 8.30 | BH143: C | BN143: 1 | BX143: S | CA143: 16055 | CC143: C-29 928 | CD143: P-29 289 | CE143: 2026-01-01 | CF143: K2III | CG143: 3
B144: 1006.17284 | C144: 1006.1 | D144: 8,15 | E144: 8.15 | F144: 3,24 | G144: 3.24 | H144: H | I144: 44900 | K144: 09 08 52.24 | L144: -32 27 15.2 | M144: 8.15 | O144: H | P144: 13721768069 | Q144: -3245422241 | S144: 3.24 | T144: 2.66 | U144: -0.41 | V144: 0.51 | W144: 0.59 | X144: 0.88 | Y144: 0.62 | Z144: 0.67 | AA144: 0.12 | AB144: -0.16 | AC144: -0.12 | AD144: 0.23 | AE144: 0.02 | AF144: 0.13 | AG144: -0.01 | AH144: 0.07 | AI144: 0.13 | AJ144: -0.01 | AK144: 2 | AL144: -1.15 | AM144: 44900 | AN144: 9454 | AO144: 0.013 | AP144: 8266 | AQ144: 0.009 | AS144: 1018 | AT144: 0.012 | AU144: T | AV144: 0.99 | AW144: 0.01 | AX144: L | AZ144: 83191 | BA144: 0.0013 | BB144: 0.014 | BC144: 172 | BE144: 8.29 | BF144: 8.34 | BN144: 1 | CA144: 78739 | CC144: C-31 6956 | CD144: P-31 2668 | CE144: 2014-01-01 | CF144: K0III | CG144: 3
B145: 1006.17284 | C145: 1006.1 | D145: 8,17 | E145: 8.17 | F145: 3,24 | G145: 3.24 | H145: H | I145: 56114 | J145: H | K145: 11 30 10.94 | L145: -84 05 44.3 | M145: 8.17 | O145: H | P145: 17254557701 | Q145: -8409562809 | R145: A | S145: 3.24 | T145: -7.25 | U145: -2.44 | V145: 1.12 | W145: 0.95 | X145: 1.01 | Y145: 1.29 | Z145: 0.93 | AA145: -0.08 | AB145: 0.07 | AC145: 0.20 | AD145: -0.26 | AE145: 0.26 | AF145: -0.19 | AG145: 0.24 | AH145: -0.13 | AI145: -0.01 | AJ145: 0.01 | AK145: 2 | AL145: -0.80 | AM145: 56114 | AN145: 8398 | AO145: 0.009 | AP145: 8289 | AQ145: 0.011 | AR145: A | AX145: T | AY145: * | AZ145: 82360 | BA145: 0.0016 | BB145: 0.017 | BC145: 116 | BD145: * | BE145: 8.21 | BF145: 8.27 | BH145: D | BK145: 11302-8406 | BL145: I | BM145: 1 | BN145: 2 | BO145: C | BQ145: A | BR145: AB | BS145: 33 | BT145: 1953 | BU145: 0.010 | BV145: 2.42 | BW145: 0.05 | BX145: S | CA145: 100370 | CD145: P-83 417 | CE145: 0.22 | CF145: B9III/IV | CG145: 1
B146: 1006.17284 | C146: 1006.1 | D146: 8,20 | E146: 8.20 | F146: 3,24 | G146: 3.24 | H146: H | I146: 33900 | J146: H | K146: 07 02 10.02 | L146: -48 59 37.8 | M146: 8.20 | O146: H | P146: 10554176552 | Q146: -4899384193 | R146: A | S146: 3.24 | T146: -3.47 | U146: -1.57 | V146: 1.38 | W146: 1.49 | X146: 1.38 | Y146: 1.40 | Z146: 1.52 | AA146: 0.07 | AB146: 0.13 | AC146: 0.09 | AD146: -0.06 | AE146: -0.13 | AF146: 0.00 | AG146: -0.12 | AH146: -0.05 | AI146: 0.01 | AJ146: -0.05 | AK146: 3 | AL146: -0.41 | AM146: 33900 | AN146: 8438 | AO146: 0.013 | AP146: 8164 | AQ146: 0.014 | AR146: * | AS146: 0.258 | AT146: 0.020 | AU146: T | AV146: 0.29 | AW146: 0.03 | AX146: L | AY146: * | AZ146: 82756 | BA146: 0.0015 | BB146: 0.013 | BC146: 103 | BD146: * | BE146: 8.25 | BF146: 8.31 | BH146: D | BK146: 07022-4900 | BL146: I | BM146: 1 | BN146: 2 | BO146: C | BQ146: A | BR146: AB | BS146: 110 | BT146: 5135 | BU146: 0.004 | BV146: 0.37 | BW146: 0.02 | BX146: S | CA146: 53325 | CC146: C-48 2669 | CD146: P-48 1031 | CE146: 0.24 | CF146: A2m... | CG146: 2
B147: 1006.17284 | C147: 1006.1 | D147: 8,28 | E147: 8.28 | F147: 3,24 | G147: 3.24 | H147: H | I147: 17074 | K147: 03 39 32.62 | L147: -29 06 07.9 | M147: 8.28 | N147: 1 | O147: H | P147: 5488593314 | Q147: -2910220377 | S147: 3.24 | T147: -22.30 | U147: -29.25 | V147: 0.57 | W147: 0.76 | X147: 1.13 | Y147: 0.53 | Z147: 0.82 | AA147: -0.50 | AB147: 0.12 | AC147: -0.21 | AD147: -0.37 | AE147: 0.16 | AF147: 0.02 | AG147: 0.09 | AH147: -0.05 | AI147: -0.06 | AJ147: -0.32 | AK147: 1 | AL147: 2.40 | AM147: 17074 | AN147: 9850 | AO147: 0.013 | AP147: 8406 | AQ147: 0.008 | AS147: 1218 | AT147: 0.012 | AU147: T | AV147: 2018-01-01 | AW147: 0.01 | AX147: L | AZ147: 84465 | BA147: 0.0015 | BB147: 0.021 | BC147: 254 | BE147: 8.41 | BF147: 8.49 | BH147: U | BN147: 1 | BX147: S | CA147: 22894 | CC147: C-29 1363 | CD147: P-29 426 | CE147: 2014-12-01 | CF147: K2III | CG147: 3
B148: 1006.17284 | C148: 1006.1 | D148: 8,29 | E148: 8.29 | F148: 3,24 | G148: 3.24 | H148: H | I148: 20687 | J148: H | K148: 04 25 52.41 | L148: +60 15 21.1 | M148: 8.29 | O148: H | P148: 6646835524 | Q148: 6025587057 | R148: A | S148: 3.24 | T148: 4.37 | U148: 0.02 | V148: 1.60 | W148: 1.62 | X148: 2.34 | Y148: 1.75 | Z148: 1.76 | AA148: 0.10 | AB148: 0.04 | AC148: -0.20 | AD148: 0.08 | AE148: -0.03 | AF148: -0.13 | AG148: -0.06 | AH148: 0.27 | AI148: -0.01 | AJ148: 0.12 | AK148: 4 | AL148: 1.18 | AM148: 20687 | AN148: 8693 | AO148: 0.013 | AP148: 8271 | AQ148: 0.013 | AR148: * | AS148: 0.399 | AT148: 0.017 | AU148: T | AV148: 0.46 | AW148: 0.02 | AX148: L | AY148: * | AZ148: 83849 | BA148: 0.0017 | BB148: 0.018 | BC148: 142 | BD148: * | BE148: 8.36 | BF148: 8.43 | BH148: D | BK148: 04259+6015 | BL148: I | BM148: 1 | BN148: 2 | BO148: C | BQ148: A | BR148: AB | BS148: 54 | BT148: 5679 | BU148: 0.004 | BV148: 0.45 | BW148: 0.01 | BX148: S | CA148: 27705 | CB148: B+59 799 | CE148: 0.44 | CF148: F0... | CG148: S
B149: 1006.17284 | C149: 1006.1 | D149: 8,32 | E149: 8.32 | F149: 3,24 | G149: 3.24 | H149: H | I149: 2307 | K149: 00 29 25.13 | L149: +56 56 46.5 | M149: 8.32 | O149: H | P149: 735469713 | Q149: 5694625340 | S149: 3.24 | T149: 12.05 | U149: 8.88 | V149: 0.71 | W149: 0.68 | X149: 1.14 | Y149: 1.03 | Z149: 0.74 | AA149: -0.24 | AB149: 0.19 | AC149: 0.22 | AD149: 0.03 | AE149: 0.08 | AF149: -0.06 | AG149: 0.10 | AH149: -0.07 | AI149: 0.16 | AJ149: -0.30 | AK149: 0 | AL149: 0.78 | AM149: 2307 | AN149: 9534 | AO149: 0.015 | AP149: 8444 | AQ149: 0.010 | AS149: 0.942 | AT149: 0.014 | AU149: T | AV149: 0.93 | AW149: 0.01 | AX149: L | AZ149: 84843 | BA149: 0.0012 | BB149: 0.017 | BC149: 165 | BE149: 8.45 | BF149: 8.51 | BH149: D | BN149: 1 | CA149: 236424 | CB149: B+56 66 | CE149: 0.94 | CF149: K0 | CG149: S
B150: 1006.17284 | C150: 1006.1 | D150: 8,32 | E150: 8.32 | F150: 3,24 | G150: 3.24 | H150: H | I150: 38814 | J150: H | K150: 07 56 36.49 | L150: +19 53 47.0 | M150: 8.32 | O150: H | P150: 11915202800 | Q150: 1989638681 | R150: A | S150: 3.24 | T150: -11.40 | U150: -25.94 | V150: 1.59 | W150: 1.09 | X150: 1.56 | Y150: 1.73 | Z150: 0.96 | AA150: -0.41 | AB150: 0.11 | AC150: 0.09 | AD150: 0.13 | AE150: -0.18 | AF150: -0.27 | AG150: -0.18 | AH150: -0.04 | AI150: 0.27 | AJ150: -0.67 | AK150: 0 | AL150: -0.10 | AM150: 38814 | AN150: 9789 | AO150: 0.026 | AP150: 8493 | AQ150: 0.016 | AR150: * | AS150: 1102 | AT150: 0.024 | AU150: T | AV150: 2014-06-01 | AW150: 0.03 | AX150: L | AY150: * | AZ150: 84931 | BA150: 0.0013 | BB150: 0.013 | BC150: 112 | BD150: * | BE150: 8.47 | BF150: 8.51 | BH150: D | BK150: 07566+1954 | BL150: I | BM150: 1 | BN150: 2 | BO150: C | BQ150: A | BR150: AB | BS150: 327 | BT150: 0.571 | BU150: 0.009 | BV150: 2.05 | BW150: 0.04 | CA150: 64834 | CB150: B+20 1950 | CE150: 0.99 | CF150: K2 | CG150: S
B151: 1006.17284 | C151: 1006.1 | D151: 8,32 | E151: 8.32 | F151: 3,24 | G151: 3.24 | H151: H | I151: 57987 | K151: 11 53 38.20 | L151: -49 19 13.9 | M151: 8.32 | O151: G | P151: 17840918279 | Q151: -4932052365 | S151: 3.24 | T151: -18.85 | U151: -3.13 | V151: 0.60 | W151: 0.60 | X151: 0.98 | Y151: 0.67 | Z151: 0.69 | AA151: 0.10 | AB151: -0.19 | AC151: 0.24 | AD151: -0.20 | AE151: 0.00 | AF151: 0.05 | AG151: 0.00 | AH151: 0.12 | AI151: 0.02 | AJ151: 0.11 | AK151: 0 | AL151: -1.61 | AM151: 57987 | AN151: 8379 | AO151: 0.007 | AP151: 8327 | AQ151: 0.009 | AS151: 0.039 | AT151: 0.018 | AU151: G | AV151: 0.05 | AW151: 0.01 | AX151: H | AZ151: 83415 | BA151: 0.0016 | BB151: 0.018 | BC151: 170 | BE151: 8.31 | BF151: 8.38 | BN151: 1 | CA151: 103302 | CC151: C-48 6926 | CD151: P-48 4297 | CE151: 0.05 | CF151: Ap... | CG151: 2
B152: 1006.17284 | C152: 1006.1 | D152: 8,33 | E152: 8.33 | F152: 3,24 | G152: 3.24 | H152: H | I152: 31902 | K152: 06 40 05.32 | L152: -08 29 41.8 | M152: 8.33 | O152: H | P152: 10002218545 | Q152: -849495376 | S152: 3.24 | T152: 2.31 | U152: 5.79 | V152: 1.03 | W152: 0.69 | X152: 1.04 | Y152: 1.21 | Z152: 1.01 | AA152: -0.20 | AB152: 0.25 | AC152: -0.10 | AD152: -0.55 | AE152: 0.01 | AF152: -0.09 | AG152: -0.05 | AH152: -0.46 | AI152: -0.07 | AJ152: 0.19 | AK152: 0 | AL152: 1.53 | AM152: 31902 | AN152: 10151 | AO152: 0.029 | AP152: 8484 | AQ152: 0.014 | AS152: 1393 | AT152: 0.025 | AU152: T | AV152: 1937-01-01 | AW152: 0.03 | AX152: L | AZ152: 84769 | BA152: 0.0019 | BB152: 0.013 | BC152: 75 | BE152: 8.46 | BF152: 8.50 | BH152: C | BN152: 1 | CA152: 47801 | CB152: B-08 1510 | CE152: 1942-01-01 | CF152: K2 | CG152: S
B153: 1006.17284 | C153: 1006.1 | D153: 8,34 | E153: 8.34 | F153: 3,24 | G153: 3.24 | H153: H | I153: 43222 | K153: 08 48 17.60 | L153: -49 32 38.3 | M153: 8.34 | O153: H | P153: 13207332699 | Q153: -4954396741 | S153: 3.24 | T153: -36.56 | U153: 51.06 | V153: 0.71 | W153: 0.67 | X153: 0.80 | Y153: 0.89 | Z153: 0.75 | AA153: 0.00 | AB153: 0.10 | AC153: -0.01 | AD153: -0.21 | AE153: 0.01 | AF153: -0.21 | AG153: 0.02 | AH153: -0.28 | AI153: 0.08 | AJ153: 0.02 | AK153: 0 | AL153: -0.98 | AM153: 43222 | AN153: 9735 | AO153: 0.025 | AP153: 8477 | AQ153: 0.015 | AS153: 1072 | AT153: 0.023 | AU153: T | AV153: 2014-04-01 | AW153: 0.02 | AX153: L | AZ153: 85119 | BA153: 0.0016 | BB153: 0.016 | BC153: 114 | BE153: 8.49 | BF153: 8.54 | BN153: 1 | CA153: 75479 | CC153: C-49 3830 | CD153: P-49 1851 | CE153: 2014-01-01 | CF153: K1III | CG153: 2
B154: 1006.17284 | C154: 1006.1 | D154: 8,34 | E154: 8.34 | F154: 3,24 | G154: 3.24 | H154: H | I154: 49782 | K154: 10 09 42.46 | L154: +03 09 43.6 | M154: 8.34 | O154: H | P154: 15242690459 | Q154: 316211933 | S154: 3.24 | T154: -9.28 | U154: 12.60 | V154: 1.28 | W154: 0.90 | X154: 1.37 | Y154: 1.34 | Z154: 0.85 | AA154: -0.21 | AB154: 0.13 | AC154: 0.01 | AD154: -0.27 | AE154: 0.02 | AF154: -0.26 | AG154: 0.00 | AH154: -0.04 | AI154: 0.01 | AJ154: -0.08 | AK154: 0 | AL154: 1.39 | AM154: 49782 | AN154: 9849 | AO154: 0.027 | AP154: 8466 | AQ154: 0.016 | AS154: 1049 | AT154: 0.197 | AU154: G | AV154: 2013-01-01 | AW154: 0.05 | AX154: L | AZ154: 85066 | BA154: 0.0023 | BB154: 0.016 | BC154: 56 | BE154: 8.48 | BF154: 8.53 | BH154: D | BK154: 10097+0310 | BL154: I | BM154: 3 | BN154: 1 | CA154: 88105 | CB154: B+03 2323 | CE154: 2013-01-01 | CF154: K0 | CG154: S
B155: 1006.17284 | C155: 1006.1 | D155: 8,36 | E155: 8.36 | F155: 3,24 | G155: 3.24 | H155: H | I155: 20192 | K155: 04 19 39.45 | L155: -62 16 30.5 | M155: 8.36 | O155: H | P155: 6491437988 | Q155: -6227513711 | S155: 3.24 | T155: 14.04 | U155: 42.27 | V155: 0.63 | W155: 0.68 | X155: 0.71 | Y155: 0.61 | Z155: 0.76 | AA155: -0.04 | AB155: -0.01 | AC155: -0.17 | AD155: -0.37 | AE155: 0.20 | AF155: 0.02 | AG155: 0.15 | AH155: -0.08 | AI155: 0.06 | AJ155: 0.26 | AK155: 0 | AL155: -0.19 | AM155: 20192 | AN155: 9603 | AO155: 0.018 | AP155: 8458 | AQ155: 0.012 | AS155: 0.984 | AT155: 0.017 | AU155: T | AV155: 0.96 | AW155: 0.01 | AX155: L | AZ155: 85228 | BA155: 0.0015 | BB155: 0.014 | BC155: 101 | BE155: 8.50 | BF155: 8.55 | BH155: C | BN155: 1 | CA155: 27827 | CD155: P-62 338 | CE155: 0.98 | CF155: G8/K0III | CG155: 1
B156: 1006.17284 | C156: 1006.1 | D156: 8,37 | E156: 8.37 | F156: 3,24 | G156: 3.24 | H156: H | I156: 49834 | K156: 10 10 29.49 | L156: -63 20 26.6 | M156: 8.37 | O156: H | P156: 15262285707 | Q156: -6334071694 | S156: 3.24 | T156: 2.05 | U156: 22.57 | V156: 0.72 | W156: 0.61 | X156: 0.74 | Y156: 0.91 | Z156: 0.70 | AA156: 0.10 | AB156: -0.09 | AC156: 0.02 | AD156: 0.28 | AE156: -0.11 | AF156: -0.01 | AG156: -0.07 | AH156: -0.01 | AI156: -0.10 | AJ156: 0.13 | AK156: 1 | AL156: -0.09 | AM156: 49834 | AN156: 9647 | AO156: 0.021 | AP156: 8496 | AQ156: 0.014 | AS156: 0.989 | AT156: 0.020 | AU156: T | AV156: 0.97 | AW156: 0.02 | AX156: L | AZ156: 85314 | BA156: 0.0017 | BB156: 0.016 | BC156: 111 | BE156: 8.51 | BF156: 8.56 | BN156: 1 | CA156: 88544 | CD156: P-62 1459 | CE156: 0.94 | CF156: G8III | CG156: 1
B157: 1006.17284 | C157: 1006.1 | D157: 8,39 | E157: 8.39 | F157: 3,24 | G157: 3.24 | H157: H | I157: 6248 | K157: 01 20 09.48 | L157: +39 05 36.8 | M157: 8.39 | O157: G | P157: 2003951595 | Q157: 3909355082 | S157: 3.24 | T157: 14.38 | U157: -14.23 | V157: 0.85 | W157: 0.76 | X157: 1.19 | Y157: 1.12 | Z157: 1.02 | AA157: 0.31 | AB157: 0.12 | AC157: -0.11 | AD157: 0.00 | AE157: 0.21 | AF157: 0.03 | AG157: 0.21 | AH157: 0.19 | AI157: 0.33 | AJ157: 0.41 | AK157: 0 | AL157: 1.43 | AM157: 6248 | AN157: 9468 | AO157: 0.020 | AP157: 8464 | AQ157: 0.014 | AS157: 0.860 | AT157: 0.015 | AU157: G | AV157: 0.87 | AW157: 0.01 | AX157: H | AZ157: 85499 | BA157: 0.0016 | BB157: 0.013 | BC157: 88 | BE157: 8.52 | BF157: 8.58 | BH157: C | BN157: 1 | CA157: 8008 | CB157: B+38 241 | CE157: 0.87 | CF157: G5 | CG157: S
B158: 1006.17284 | C158: 1006.1 | D158: 8,39 | E158: 8.39 | F158: 3,24 | G158: 3.24 | H158: H | I158: 20010 | K158: 04 17 25.94 | L158: -13 28 45.5 | M158: 8.39 | O158: G | P158: 6435808501 | Q158: -1347931173 | S158: 3.24 | T158: -0.79 | U158: -11.35 | V158: 0.98 | W158: 0.89 | X158: 1.20 | Y158: 1.20 | Z158: 1.21 | AA158: 0.28 | AB158: 0.33 | AC158: 0.09 | AD158: 0.31 | AE158: 0.37 | AF158: 0.21 | AG158: 0.45 | AH158: 0.58 | AI158: 0.11 | AJ158: 0.10 | AK158: 2 | AL158: -0.99 | AM158: 20010 | AN158: 8667 | AO158: 0.011 | AP158: 8402 | AQ158: 0.012 | AS158: 0.236 | AT158: 0.015 | AU158: G | AV158: 0.26 | AW158: 0.02 | AX158: H | AZ158: 84539 | BA158: 0.0021 | BB158: 0.016 | BC158: 83 | BE158: 8.42 | BF158: 8.49 | BH158: C | BN158: 1 | BX158: S | CA158: 27217 | CB158: B-13 852 | CE158: 0.26 | CF158: A1m... | CG158: 4
B159: 1006.17284 | C159: 1006.1 | D159: 8,39 | E159: 8.39 | F159: 3,24 | G159: 3.24 | H159: H | I159: 22043 | K159: 04 44 23.38 | L159: -36 27 14.1 | M159: 8.39 | O159: H | P159: 7109742813 | Q159: -3645391213 | S159: 3.24 | T159: -12.99 | U159: -6.32 | V159: 0.56 | W159: 0.69 | X159: 0.79 | Y159: 0.59 | Z159: 0.77 | AA159: -0.01 | AB159: 0.09 | AC159: -0.13 | AD159: -0.07 | AE159: -0.03 | AF159: 0.12 | AG159: -0.04 | AH159: 0.07 | AI159: -0.02 | AJ159: 0.15 | AK159: 1 | AL159: -0.13 | AM159: 22043 | AN159: 9818 | AO159: 0.017 | AP159: 8497 | AQ159: 0.010 | AS159: 1122 | AT159: 0.015 | AU159: T | AV159: 2014-08-01 | AW159: 0.02 | AX159: L | AZ159: 85559 | BA159: 0.0016 | BB159: 0.016 | BC159: 144 | BE159: 8.54 | BF159: 8.59 | BN159: 1 | CA159: 30251 | CC159: C-36 1862 | CD159: P-36 574 | CE159: 2014-06-01 | CF159: K1III | CG159: 3
B160: 1006.17284 | C160: 1006.1 | D160: 8,39 | E160: 8.39 | F160: 3,24 | G160: 3.24 | H160: H | I160: 49084 | K160: 10 01 03.73 | L160: -40 51 59.1 | M160: 8.39 | O160: G | P160: 15026555355 | Q160: -4086641816 | S160: 3.24 | T160: -21.94 | U160: 14.00 | V160: 0.59 | W160: 0.61 | X160: 0.93 | Y160: 0.69 | Z160: 0.71 | AA160: 0.27 | AB160: -0.15 | AC160: -0.07 | AD160: 0.30 | AE160: -0.01 | AF160: -0.07 | AG160: 0.01 | AH160: -0.04 | AI160: 0.02 | AJ160: 0.36 | AK160: 0 | AL160: 0.19 | AM160: 49084 | AN160: 8726 | AO160: 0.008 | AP160: 8386 | AQ160: 0.008 | AS160: 0.323 | AT160: 0.011 | AU160: T | AV160: 0.37 | AW160: 0.01 | AX160: L | AZ160: 84682 | BA160: 0.0015 | BB160: 0.018 | BC160: 194 | BE160: 8.44 | BF160: 8.50 | BH160: C | BN160: 1 | CA160: 86976 | CC160: C-40 5697 | CD160: P-40 4114 | CE160: 0.28 | CF160: Ap... | CG160: 2
B161: 1006.17284 | C161: 1006.1 | D161: 8,40 | E161: 8.40 | F161: 3,24 | G161: 3.24 | H161: H | I161: 4942 | K161: 01 03 25.12 | L161: +74 11 21.6 | M161: 8.40 | O161: H | P161: 1585468071 | Q161: 7418933978 | S161: 3.24 | T161: -38.56 | U161: -6.30 | V161: 1.24 | W161: 1.15 | X161: 1.51 | Y161: 1.41 | Z161: 1.31 | AA161: -0.14 | AB161: 0.11 | AC161: 0.13 | AD161: -0.18 | AE161: 0.01 | AF161: 0.10 | AG161: 0.02 | AH161: -0.10 | AI161: 0.15 | AJ161: -0.29 | AK161: 1 | AM161: 4942 | AN161: 8870 | AO161: 0.011 | AP161: 8469 | AQ161: 0.011 | AS161: 0.379 | AT161: 0.014 | AU161: T | AV161: 0.44 | AW161: 0.01 | AX161: L | AZ161: 84865 | BA161: 0.0015 | BB161: 0.015 | BC161: 131 | BE161: 8.46 | BF161: 8.51 | BH161: D | BN161: 1 | BO161: X | BQ161: S | CA161: 6007 | CB161: B+73 50 | CE161: 0.47 | CF161: F5 | CG161: S
B162: 1006.17284 | C162: 1006.1 | D162: 8,40 | E162: 8.40 | F162: 3,24 | G162: 3.24 | H162: H | I162: 6328 | K162: 01 21 15.90 | L162: -73 02 01.5 | M162: 8.40 | O162: G | P162: 2031624077 | Q162: -7303374035 | S162: 3.24 | T162: 28.05 | U162: 6.75 | V162: 0.68 | W162: 0.62 | X162: 0.74 | Y162: 0.87 | Z162: 0.77 | AA162: -0.07 | AB162: 0.02 | AC162: -0.04 | AD162: -0.03 | AE162: 0.07 | AF162: -0.01 | AG162: 0.08 | AH162: -0.12 | AI162: -0.04 | AJ162: 0.09 | AK162: 0 | AL162: 1.12 | AM162: 6328 | AN162: 9684 | AO162: 0.018 | AP162: 8463 | AQ162: 0.012 | AS162: 1040 | AT162: 0.015 | AU162: G | AV162: 2014-01-01 | AW162: 0.01 | AX162: H | AZ162: 85564 | BA162: 0.0014 | BB162: 0.016 | BC162: 116 | BE162: 8.53 | BF162: 8.58 | BH162: C | BN162: 1 | CA162: 8479 | CD162: P-73 75 | CE162: 2014-01-01 | CF162: K0III | CG162: 1
B163: 1006.17284 | C163: 1006.1 | D163: 8,45 | E163: 8.45 | F163: 3,24 | G163: 3.24 | H163: H | I163: 13529 | K163: 02 54 14.53 | L163: -22 57 05.0 | M163: 8.45 | O163: H | P163: 4356055421 | Q163: -2295138400 | S163: 3.24 | T163: -7.55 | U163: -35.48 | V163: 0.74 | W163: 0.75 | X163: 1.11 | Y163: 1.03 | Z163: 1.16 | AA163: 0.08 | AB163: -0.08 | AC163: -0.10 | AD163: 0.15 | AE163: -0.24 | AF163: 0.18 | AG163: -0.14 | AH163: -0.14 | AI163: 0.12 | AJ163: 0.46 | AK163: 2 | AL163: 0.60 | AM163: 13529 | AN163: 9999 | AO163: 0.021 | AP163: 8556 | AQ163: 0.012 | AS163: 1217 | AT163: 0.019 | AU163: T | AV163: 2018-01-01 | AW163: 0.02 | AX163: L | AZ163: 86169 | BA163: 0.0022 | BB163: 0.018 | BC163: 111 | BE163: 8.59 | BF163: 8.65 | BN163: 1 | CA163: 18146 | CC163: C-23 1110 | CD163: P-23 308 | CE163: 2020-01-01 | CF163: K1IIICN... | CG163: 4
B164: 1006.17284 | C164: 1006.1 | D164: 8,50 | E164: 8.50 | F164: 3,24 | G164: 3.24 | H164: H | I164: 25909 | K164: 05 31 47.29 | L164: +05 04 53.0 | M164: 8.50 | N164: 1 | O164: H | P164: 8294703890 | Q164: 508140237 | S164: 3.24 | T164: 11.67 | U164: 8.76 | V164: 1.12 | W164: 0.55 | X164: 1.32 | Y164: 1.37 | Z164: 0.57 | AA164: -0.05 | AB164: 0.28 | AC164: -0.02 | AD164: -0.22 | AE164: -0.25 | AF164: 0.21 | AG164: -0.22 | AH164: -0.13 | AI164: -0.22 | AJ164: -0.24 | AK164: 0 | AL164: 0.10 | AM164: 25909 | AN164: 10933 | AO164: 0.038 | AP164: 8764 | AQ164: 0.011 | AS164: 1792 | AT164: 0.032 | AU164: T | AV164: 1982-01-01 | AW164: 0.03 | AX164: L | AZ164: 85992 | BA164: 0.0018 | BB164: 0.020 | BC164: 140 | BE164: 8.57 | BF164: 8.63 | BH164: U | BN164: 1 | BQ164: S | CA164: 244618 | CB164: B+04 959 | CE164: 1969-01-01 | CF164: M0 | CG164: S
B165: 1006.17284 | C165: 1006.1 | D165: 8,50 | E165: 8.50 | F165: 3,24 | G165: 3.24 | H165: H | I165: 52830 | K165: 10 48 07.08 | L165: -63 52 48.3 | M165: 8.50 | O165: G | P165: 16202951562 | Q165: -6388007794 | S165: 3.24 | T165: -48.98 | U165: 1.77 | V165: 0.70 | W165: 0.71 | X165: 0.82 | Y165: 0.80 | Z165: 0.76 | AA165: 0.12 | AB165: 0.03 | AC165: 0.11 | AD165: 0.01 | AE165: 0.03 | AF165: 0.01 | AG165: 0.03 | AH165: -0.13 | AI165: 0.00 | AJ165: 0.18 | AK165: 1 | AL165: -1.85 | AM165: 52830 | AN165: 9960 | AO165: 0.028 | AP165: 8626 | AQ165: 0.016 | AS165: 1206 | AT165: 0.013 | AU165: G | AV165: 2017-01-01 | AW165: 0.01 | AX165: H | AZ165: 86353 | BA165: 0.0019 | BB165: 0.016 | BC165: 132 | BE165: 8.61 | BF165: 8.67 | BH165: C | BN165: 1 | BY165: G | CA165: 93777 | CD165: P-63 1675 | CE165: 2017-01-01 | CF165: G8/K0III | CG165: 1
B166: 1006.17284 | C166: 1006.1 | D166: 8,55 | E166: 8.55 | F166: 3,24 | G166: 3.24 | H166: H | I166: 4198 | K166: 00 53 36.97 | L166: +24 55 58.5 | M166: 8.55 | O166: H | P166: 1340405850 | Q166: 2493290758 | S166: 3.24 | T166: -15.90 | U166: -31.13 | V166: 0.88 | W166: 0.66 | X166: 0.96 | Y166: 1.05 | Z166: 0.66 | AA166: 0.40 | AB166: 0.00 | AC166: 0.04 | AD166: 0.13 | AE166: -0.28 | AF166: -0.18 | AG166: -0.20 | AH166: -0.04 | AI166: -0.02 | AJ166: 0.52 | AK166: 0 | AL166: -0.38 | AM166: 4198 | AN166: 8961 | AO166: 0.012 | AP166: 8588 | AQ166: 0.012 | AS166: 0.387 | AT166: 0.015 | AU166: G | AV166: 0.45 | AW166: 0.02 | AX166: H | AZ166: 86382 | BA166: 0.0017 | BB166: 0.013 | BC166: 118 | BE166: 8.62 | BF166: 8.66 | BH166: C | BN166: 1 | BX166: S | CA166: 5153 | CB166: B+24 129 | CE166: 0.45 | CF166: F0 | CG166: S
B167: 1006.17284 | C167: 1006.1 | D167: 8,57 | E167: 8.57 | F167: 3,24 | G167: 3.24 | H167: H | I167: 18335 | K167: 03 55 12.26 | L167: +11 18 16.1 | M167: 8.57 | O167: H | P167: 5880110279 | Q167: 1130448297 | S167: 3.24 | T167: -1.62 | U167: 6.27 | V167: 1.04 | W167: 0.59 | X167: 1.12 | Y167: 1.24 | Z167: 0.90 | AA167: 0.09 | AB167: 0.35 | AC167: 0.08 | AD167: 0.11 | AE167: -0.16 | AF167: -0.25 | AG167: -0.21 | AH167: 0.14 | AI167: -0.08 | AJ167: 0.01 | AK167: 0 | AL167: -0.62 | AM167: 18335 | AN167: 9885 | AO167: 0.025 | AP167: 8692 | AQ167: 0.015 | AS167: 1022 | AT167: 0.023 | AU167: T | AV167: 1.00 | AW167: 0.02 | AX167: L | AZ167: 87337 | BA167: 0.0012 | BB167: 0.012 | BC167: 82 | BE167: 8.71 | BF167: 8.76 | BH167: C | BN167: 1 | CA167: 24621 | CB167: B+10 502 | CE167: 0.98 | CF167: G5 | CG167: S
B168: 1006.17284 | C168: 1006.1 | D168: 8,58 | E168: 8.58 | F168: 3,24 | G168: 3.24 | H168: H | I168: 19564 | J168: H | K168: 04 11 27.00 | L168: +41 51 35.8 | M168: 8.58 | O168: H | P168: 6286250741 | Q168: 4185995522 | R168: B | S168: 3.24 | T168: 12.71 | U168: -39.02 | V168: 3.11 | W168: 2.26 | X168: 2.45 | Y168: 2.91 | Z168: 2.81 | AA168: 0.16 | AB168: 0.09 | AC168: -0.17 | AD168: 0.16 | AE168: 0.33 | AF168: -0.01 | AG168: 0.17 | AH168: 0.45 | AI168: -0.21 | AJ168: 0.69 | AK168: 1 | AL168: -0.46 | AM168: 19564 | AN168: 9262 | AO168: 0.015 | AP168: 8807 | AQ168: 0.015 | AR168: * | AS168: 0.428 | AT168: 0.011 | AU168: G | AV168: 0.50 | AW168: 0.01 | AX168: H | AY168: * | AZ168: 86791 | BA168: 0.0019 | BB168: 0.014 | BC168: 94 | BD168: * | BE168: 8.65 | BF168: 8.70 | BH168: D | BK168: 04115+4152 | BL168: I | BM168: 1 | BN168: 2 | BO168: C | BQ168: A | BR168: BA | BS168: 225 | BT168: 0.937 | BU168: 0.005 | BV168: 0.05 | BW168: 0.02 | CA168: 26310 | CB168: B+41 827 | CE168: 0.50 | CF168: F8 | CG168: S
B169: 1006.17284 | C169: 1006.1 | D169: 8,62 | E169: 8.62 | F169: 3,24 | G169: 3.24 | H169: H | I169: 10896 | K169: 02 20 14.61 | L169: -41 23 17.2 | M169: 8.62 | O169: H | P169: 3506085617 | Q169: -4138812351 | S169: 3.24 | T169: 3.35 | U169: 5.51 | V169: 0.65 | W169: 0.87 | X169: 1.08 | Y169: 0.80 | Z169: 0.93 | AA169: -0.16 | AB169: 0.01 | AC169: -0.26 | AD169: 0.01 | AE169: 0.08 | AF169: 0.07 | AG169: 0.12 | AH169: -0.31 | AI169: 0.13 | AJ169: -0.07 | AK169: 2 | AL169: 1.14 | AM169: 10896 | AN169: 8900 | AO169: 0.011 | AP169: 8664 | AQ169: 0.012 | AS169: 0.225 | AT169: 0.015 | AU169: T | AV169: 0.25 | AW169: 0.02 | AX169: L | AZ169: 86878 | BA169: 0.0014 | BB169: 0.017 | BC169: 126 | BE169: 8.65 | BF169: 8.72 | BH169: C | BK169: 02202-4123 | BL169: I | BM169: 1 | BN169: 1 | BX169: S | CA169: 14575 | CC169: C-41 658 | CD169: P-41 210 | CE169: 0.31 | CF169: A0III/IV | CG169: 2
B170: 1006.17284 | C170: 1006.1 | D170: 8,68 | E170: 8.68 | F170: 3,24 | G170: 3.24 | H170: H | I170: 35074 | K170: 07 15 11.20 | L170: +23 14 16.7 | M170: 8.68 | O170: H | P170: 10879666885 | Q170: 2323798048 | S170: 3.24 | T170: -5.80 | U170: -0.98 | V170: 1.03 | W170: 0.63 | X170: 1.14 | Y170: 1.15 | Z170: 0.79 | AA170: -0.10 | AB170: 0.27 | AC170: -0.24 | AD170: -0.05 | AE170: -0.07 | AF170: 0.06 | AG170: -0.01 | AH170: -0.33 | AI170: 0.16 | AJ170: 0.04 | AK170: 0 | AL170: 0.60 | AM170: 35074 | AN170: 10110 | AO170: 0.028 | AP170: 8823 | AQ170: 0.016 | AS170: 1095 | AT170: 0.025 | AU170: T | AV170: 2014-06-01 | AW170: 0.03 | AX170: L | AZ170: 88457 | BA170: 0.0019 | BB170: 0.016 | BC170: 89 | BE170: 8.82 | BF170: 8.88 | BN170: 1 | CB170: B+23 1648 | CE170: 2014-11-01 | CF170: K0 | CG170: S
B171: 1006.17284 | C171: 1006.1 | D171: 8,69 | E171: 8.69 | F171: 3,24 | G171: 3.24 | H171: H | I171: 58168 | K171: 11 55 46.11 | L171: -44 30 36.5 | M171: 8.69 | O171: G | P171: 17894210516 | Q171: -4451012915 | S171: 3.24 | T171: -22.89 | U171: 1.57 | V171: 0.76 | W171: 0.71 | X171: 1.17 | Y171: 0.79 | Z171: 0.79 | AA171: 0.13 | AB171: -0.04 | AC171: 0.11 | AD171: 0.38 | AE171: 0.20 | AF171: 0.08 | AG171: 0.21 | AH171: 0.18 | AI171: -0.07 | AJ171: 0.19 | AK171: 0 | AL171: 0.55 | AM171: 58168 | AN171: 9108 | AO171: 0.013 | AP171: 8768 | AQ171: 0.013 | AS171: 0.343 | AT171: 0.008 | AU171: G | AV171: 0.39 | AW171: 0.02 | AX171: A | AZ171: 87779 | BA171: 0.0013 | BB171: 0.018 | BC171: 118 | BE171: 8.75 | BF171: 8.82 | BH171: D | BN171: 1 | CA171: 103619 | CC171: C-43 7370 | CD171: P-43 5597 | CE171: 0.39 | CF171: A7/A8IVm... | CG171: 2
B172: 1006.17284 | C172: 1006.1 | D172: 8,73 | E172: 8.73 | F172: 3,24 | G172: 3.24 | H172: H | I172: 21840 | K172: 04 41 43.36 | L172: +22 43 53.8 | M172: 8.73 | N172: 1 | O172: G | P172: 7043064622 | Q172: 2273159980 | R172: A | S172: 3.24 | T172: 4.77 | U172: -8.87 | V172: 2.71 | W172: 1.76 | X172: 2.74 | Y172: 3.10 | Z172: 2.12 | AA172: 0.37 | AB172: 0.30 | AC172: -0.11 | AD172: -0.06 | AE172: 0.02 | AF172: -0.02 | AG172: -0.10 | AH172: 0.30 | AI172: -0.25 | AJ172: 0.49 | AK172: 5 | AL172: 3.43 | AM172: 21840 | AN172: 10978 | AO172: 0.094 | AP172: 8852 | AQ172: 0.028 | AR172: A | AS172: 1655 | AT172: 0.243 | AU172: G | AV172: 1972-01-01 | AW172: 0.29 | AX172: K | AZ172: 87023 | BA172: 0.0186 | BB172: 0.029 | BC172: 82 | BD172: A | BE172: 8.66 | BF172: 8.75 | BH172: U | BK172: 04417+2244 | BL172: I | BM172: 1 | BN172: 2 | BO172: C | BQ172: A | BR172: AB | BS172: 39 | BT172: 16447 | BU172: 0.038 | BV172: 2.16 | BW172: 0.14 | CB172: B+22 735 | CE172: 1972-01-01 | CF172: K7 | CG172: S
B173: 1006.17284 | C173: 1006.1 | D173: 8,75 | E173: 8.75 | F173: 3,24 | G173: 3.24 | H173: H | I173: 23562 | K173: 05 03 58.20 | L173: -29 48 48.4 | M173: 8.75 | O173: H | P173: 7599247945 | Q173: -2981345750 | S173: 3.24 | T173: -0.43 | U173: -10.47 | V173: 0.60 | W173: 0.74 | X173: 0.94 | Y173: 0.69 | Z173: 1.01 | AA173: 0.03 | AB173: 0.10 | AC173: 0.01 | AD173: -0.08 | AE173: 0.08 | AF173: 0.11 | AG173: 0.04 | AH173: 0.18 | AI173: -0.16 | AJ173: 0.13 | AK173: 0 | AL173: 1.66 | AM173: 23562 | AN173: 10198 | AO173: 0.023 | AP173: 8901 | AQ173: 0.013 | AS173: 1103 | AT173: 0.021 | AU173: T | AV173: 2014-07-01 | AW173: 0.02 | AX173: L | AZ173: 89194 | BA173: 0.0014 | BB173: 0.016 | BC173: 145 | BE173: 8.88 | BF173: 8.95 | BH173: C | BN173: 1 | CA173: 32727 | CC173: C-29 2028 | CD173: P-29 757 | CE173: 2020-01-01 | CF173: K2III | CG173: 3
B174: 1006.17284 | C174: 1006.1 | D174: 8,78 | E174: 8.78 | F174: 3,24 | G174: 3.24 | H174: H | I174: 34807 | K174: 07 12 19.10 | L174: -01 46 39.7 | M174: 8.78 | N174: 2 | O174: G | P174: 10807957072 | Q174: -177770186 | S174: 3.24 | T174: -6.93 | U174: -2.67 | V174: 0.99 | W174: 0.73 | X174: 1.15 | Y174: 1.15 | Z174: 0.87 | AA174: 0.15 | AB174: 0.24 | AC174: -0.12 | AD174: -0.22 | AE174: -0.22 | AF174: 0.07 | AG174: -0.21 | AH174: -0.37 | AI174: 0.02 | AJ174: 0.13 | AK174: 0 | AL174: 0.52 | AM174: 34807 | AN174: 8662 | AO174: 0.012 | AP174: 8733 | AQ174: 0.016 | AS174: -0.060 | AT174: 0.018 | AU174: T | AV174: -.04 | AW174: 0.02 | AX174: L | AZ174: 87467 | BA174: 0.0037 | BB174: 0.029 | BC174: 79 | BE174: 8.70 | BF174: 8.79 | BH174: U | BI174: 2 | BN174: 1 | CA174: 55309 | CB174: B-01 1597 | CE174: -.09 | CF174: B9 | CG174: S
B175: 1006.17284 | C175: 1006.1 | D175: 8,88 | E175: 8.88 | F175: 3,24 | G175: 3.24 | H175: H | I175: 5620 | K175: 01 12 08.98 | L175: -04 29 31.6 | M175: 8.88 | O175: G | P175: 1803740356 | Q175: -449211769 | S175: 3.24 | T175: 32.54 | U175: 24.04 | V175: 0.89 | W175: 0.68 | X175: 1.03 | Y175: 1.02 | Z175: 0.78 | AA175: 0.42 | AB175: 0.04 | AC175: -0.21 | AD175: 0.22 | AE175: 0.16 | AF175: -0.06 | AG175: 0.18 | AH175: 0.12 | AI175: -0.06 | AJ175: 0.64 | AK175: 0 | AL175: 0.25 | AM175: 5620 | AN175: 8977 | AO175: 0.012 | AP175: 8876 | AQ175: 0.015 | AS175: 0.066 | AT175: 0.006 | AU175: G | AV175: 0.08 | AW175: 0.01 | AX175: H | AZ175: 89243 | BA175: 0.0023 | BB175: 0.017 | BC175: 106 | BE175: 8.91 | BF175: 8.97 | BH175: C | BN175: 1 | BX175: S | CA175: 7194 | CB175: B-05 207 | CE175: 0.08 | CF175: A0 | CG175: S
B176: 1006.17284 | C176: 1006.1 | D176: 8,97 | E176: 8.97 | F176: 3,24 | G176: 3.24 | H176: H | I176: 43547 | K176: 08 52 08.54 | L176: +15 17 22.6 | M176: 8.97 | O176: H | P176: 13303557251 | Q176: 1528961714 | S176: 3.24 | T176: -3.66 | U176: -13.53 | V176: 1.31 | W176: 0.79 | X176: 1.26 | Y176: 1.74 | Z176: 1.10 | AA176: 0.02 | AB176: 0.25 | AC176: -0.11 | AD176: -0.33 | AE176: -0.04 | AF176: -0.17 | AG176: -0.05 | AH176: -0.02 | AI176: 0.03 | AJ176: 0.02 | AK176: 3 | AL176: 1.87 | AM176: 43547 | AN176: 10170 | AO176: 0.040 | AP176: 9066 | AQ176: 0.026 | AS176: 0.952 | AT176: 0.037 | AU176: T | AV176: 0.94 | AW176: 0.03 | AX176: L | AZ176: 91274 | BA176: 0.0021 | BB176: 0.017 | BC176: 54 | BE176: 9.09 | BF176: 9.15 | BH176: C | BN176: 1 | CB176: B+15 1924 | CE176: 1.00 | CF176: K0 | CG176: S
B177: 1006.17284 | C177: 1006.1 | D177: 9,01 | E177: 9.01 | F177: 3,24 | G177: 3.24 | H177: H | I177: 61862 | K177: 12 40 41.99 | L177: -44 00 20.8 | M177: 9.01 | O177: H | P177: 19017497118 | Q177: -4400579075 | S177: 3.24 | T177: -21.17 | U177: 2.76 | V177: 0.82 | W177: 0.95 | X177: 1.33 | Y177: 0.79 | Z177: 0.87 | AA177: -0.09 | AB177: -0.31 | AC177: -0.03 | AD177: -0.22 | AE177: -0.04 | AF177: 0.06 | AG177: -0.03 | AH177: -0.52 | AI177: 0.18 | AJ177: 0.09 | AK177: 0 | AL177: 1.91 | AM177: 61862 | AN177: 10460 | AO177: 0.029 | AP177: 9159 | AQ177: 0.016 | AS177: 1106 | AT177: 0.026 | AU177: T | AV177: 2014-07-01 | AW177: 0.03 | AX177: L | AZ177: 91753 | BA177: 0.0020 | BB177: 0.020 | BC177: 141 | BE177: 9.14 | BF177: 9.22 | BH177: C | BN177: 1 | CA177: 110203 | CC177: C-43 7809 | CD177: P-43 5851 | CE177: 2014-10-01 | CF177: G8III | CG177: 2
B178: 1006.17284 | C178: 1006.1 | D178: 9,03 | E178: 9.03 | F178: 3,24 | G178: 3.24 | H178: H | I178: 3691 | K178: 00 47 19.92 | L178: +45 17 41.6 | M178: 9.03 | O178: H | P178: 1183298045 | Q178: 4529489807 | S178: 3.24 | T178: -5.95 | U178: -6.33 | V178: 0.68 | W178: 0.69 | X178: 1.07 | Y178: 0.71 | Z178: 0.64 | AA178: 0.08 | AB178: 0.19 | AC178: -0.08 | AD178: -0.30 | AE178: -0.02 | AF178: -0.04 | AG178: 0.01 | AH178: -0.42 | AI178: 0.20 | AJ178: 0.02 | AK178: 0 | AL178: -0.07 | AM178: 3691 | AN178: 9042 | AO178: 0.013 | AP178: 9037 | AQ178: 0.017 | AS178: 0.009 | AT178: 0.020 | AU178: T | AV178: 0.03 | AW178: 0.02 | AX178: L | AZ178: 90399 | BA178: 0.0016 | BB178: 0.015 | BC178: 115 | BE178: 9.02 | BF178: 9.07 | BH178: C | BK178: 00473+4518 | BL178: I | BM178: 1 | BN178: 1 | CA178: 4478 | CB178: B+44 166 | CE178: 0.01 | CF178: A0 | CG178: S
B179: 1006.17284 | C179: 1006.1 | D179: 9,05 | E179: 9.05 | F179: 3,24 | G179: 3.24 | H179: H | I179: 26055 | K179: 05 33 27.43 | L179: +02 39 05.7 | M179: 9.05 | O179: H | P179: 8336429853 | Q179: 265158021 | S179: 3.24 | T179: 0.92 | U179: -0.45 | V179: 1.52 | W179: 0.66 | X179: 1.66 | Y179: 1.47 | Z179: 0.66 | AA179: 0.01 | AB179: 0.63 | AC179: 0.02 | AD179: -0.05 | AE179: -0.40 | AF179: -0.09 | AG179: -0.47 | AH179: 0.24 | AI179: -0.36 | AJ179: 0.07 | AK179: 0 | AL179: 0.42 | AM179: 26055 | AN179: 9060 | AO179: 0.016 | AP179: 9031 | AQ179: 0.020 | AS179: 0.031 | AT179: 0.024 | AU179: T | AV179: 0.05 | AW179: 0.02 | AX179: L | AZ179: 90648 | BA179: 0.0022 | BB179: 0.017 | BC179: 103 | BE179: 9.04 | BF179: 9.09 | BH179: C | BN179: 1 | CA179: 36654 | CB179: B+02 999 | CE179: -.05 | CF179: A0 | CG179: S
B180: 1006.17284 | C180: 1006.1 | D180: 9,09 | E180: 9.09 | F180: 3,24 | G180: 3.24 | H180: H | I180: 13703 | K180: 02 56 26.46 | L180: +44 05 28.9 | M180: 9.09 | O180: H | P180: 4411024582 | Q180: 4409136783 | S180: 3.24 | T180: 15.61 | U180: -12.73 | V180: 0.84 | W180: 0.66 | X180: 1.11 | Y180: 1.16 | Z180: 1.25 | AA180: 0.49 | AB180: 0.00 | AC180: -0.08 | AD180: 0.12 | AE180: 0.02 | AF180: -0.01 | AG180: -0.02 | AH180: 0.06 | AI180: -0.06 | AJ180: 0.24 | AK180: 0 | AL180: -1.07 | AM180: 13703 | AN180: 10311 | AO180: 0.027 | AP180: 9187 | AQ180: 0.017 | AS180: 0.968 | AT180: 0.025 | AU180: T | AV180: 0.95 | AW180: 0.02 | AX180: L | AZ180: 92501 | BA180: 0.0017 | BB180: 0.016 | BC180: 140 | BE180: 9.22 | BF180: 9.28 | BH180: C | BN180: 1 | CB180: B+43 604 | CE180: 0.98 | CF180: K0 | CG180: S
B181: 1006.17284 | C181: 1006.1 | D181: 9,12 | E181: 9.12 | F181: 3,24 | G181: 3.24 | H181: H | I181: 50409 | K181: 10 17 34.36 | L181: -33 39 04.0 | M181: 9.12 | O181: H | P181: 15439316061 | Q181: -3365110518 | S181: 3.24 | T181: 5.10 | U181: -4.51 | V181: 0.84 | W181: 0.87 | X181: 1.18 | Y181: 1.02 | Z181: 0.98 | AA181: -0.30 | AB181: -0.02 | AC181: 0.09 | AD181: -0.05 | AE181: -0.02 | AF181: 0.22 | AG181: -0.03 | AH181: -0.03 | AI181: -0.10 | AJ181: -0.44 | AK181: 1 | AL181: 0.44 | AM181: 50409 | AN181: 10987 | AO181: 0.050 | AP181: 9289 | AQ181: 0.019 | AS181: 1418 | AT181: 0.042 | AU181: T | AV181: 1940-01-01 | AW181: 0.07 | AX181: L | AZ181: 92599 | BA181: 0.0021 | BB181: 0.026 | BC181: 130 | BE181: 9.21 | BF181: 9.31 | BH181: C | BN181: 1 | CA181: 89315 | CC181: C-33 6834 | CD181: P-33 2861 | CE181: 1931-01-01 | CF181: K2/K3III | CG181: 3
B182: 1006.17284 | C182: 1006.1 | D182: 9,14 | E182: 9.14 | F182: 3,24 | G182: 3.24 | H182: H | I182: 45212 | K182: 09 12 50.20 | L182: -73 59 51.0 | M182: 9.14 | O182: H | P182: 13820918031 | Q182: -7399750776 | S182: 3.24 | T182: -34.11 | U182: -6.99 | V182: 0.64 | W182: 0.73 | X182: 0.81 | Y182: 0.68 | Z182: 0.72 | AA182: -0.03 | AB182: -0.03 | AC182: 0.21 | AD182: -0.14 | AE182: 0.00 | AF182: 0.20 | AG182: -0.02 | AH182: 0.03 | AI182: -0.09 | AJ182: -0.10 | AK182: 0 | AL182: 1.73 | AM182: 45212 | AN182: 9634 | AO182: 0.020 | AP182: 9178 | AQ182: 0.020 | AS182: 0.443 | AT182: 0.022 | AU182: T | AV182: 0.51 | AW182: 0.02 | AX182: L | AZ182: 92359 | BA182: 0.0016 | BB182: 0.018 | BC182: 114 | BE182: 9.20 | BF182: 9.27 | BH182: C | BN182: 1 | CA182: 80129 | CD182: P-73 575 | CE182: 0.50 | CF182: F0V | CG182: 1
B183: 1006.17284 | C183: 1006.1 | D183: 9,14 | E183: 9.14 | F183: 3,24 | G183: 3.24 | H183: H | I183: 47052 | K183: 09 35 18.81 | L183: -02 09 01.3 | M183: 9.14 | O183: H | P183: 14382836883 | Q183: -215036031 | S183: 3.24 | T183: -34.56 | U183: 10.35 | V183: 1.04 | W183: 0.71 | X183: 1.23 | Y183: 1.38 | Z183: 0.78 | AA183: -0.34 | AB183: 0.15 | AC183: -0.11 | AD183: -0.22 | AE183: 0.05 | AF183: -0.38 | AG183: 0.11 | AH183: 0.28 | AI183: 0.21 | AJ183: -0.53 | AK183: 0 | AL183: 1.50 | AM183: 47052 | AN183: 10257 | AO183: 0.030 | AP183: 9261 | AQ183: 0.021 | AS183: 0.871 | AT183: 0.027 | AU183: T | AV183: 0.88 | AW183: 0.02 | AX183: L | AZ183: 92969 | BA183: 0.0020 | BB183: 0.015 | BC183: 88 | BE183: 9.27 | BF183: 9.33 | BH183: C | BN183: 1 | CA183: 82996 | CB183: B-01 2281 | CE183: 2014-12-01 | CF183: K2 | CG183: S
B184: 1006.17284 | C184: 1006.1 | D184: 9,17 | E184: 9.17 | F184: 3,24 | G184: 3.24 | H184: H | I184: 15617 | J184: H | K184: 03 21 05.75 | L184: +43 21 38.0 | M184: 9.17 | O184: H | P184: 5027397489 | Q184: 4336056492 | R184: B | S184: 3.24 | T184: 0.34 | U184: -4.67 | V184: 3.43 | W184: 2.90 | X184: 2.71 | Y184: 2.45 | Z184: 2.72 | AA184: -0.02 | AB184: 0.10 | AC184: 0.04 | AD184: -0.03 | AE184: -0.17 | AF184: 0.14 | AG184: -0.16 | AH184: -0.12 | AI184: 0.02 | AJ184: 0.29 | AK184: 2 | AL184: 0.04 | AM184: 15617 | AN184: 9856 | AO184: 0.060 | AP184: 9877 | AQ184: 0.083 | AR184: B | AS184: 0.000 | AT184: 0.495 | AU184: G | AV184: 0.24 | AW184: 0.08 | AX184: S | AY184: * | AZ184: 92410 | BA184: 0.0027 | BB184: 0.022 | BC184: 85 | BD184: * | BE184: 9.22 | BF184: 9.29 | BH184: R | BK184: 03211+4322 | BL184: I | BM184: 1 | BN184: 2 | BO184: C | BQ184: A | BR184: BA | BS184: 188 | BT184: 3407 | BU184: 0.005 | BV184: 0.34 | BW184: 0.02 | BX184: S | CA184: 20652 | CB184: B+42 748 | CE184: 0.67 | CF184: B9+... | CG184: S
B185: 1006.17284 | C185: 1006.1 | D185: 9,20 | E185: 9.20 | F185: 3,24 | G185: 3.24 | H185: H | I185: 27699 | K185: 05 51 54.35 | L185: +28 15 42.7 | M185: 9.20 | O185: H | P185: 8797646308 | Q185: 2826186773 | S185: 3.24 | T185: -1.76 | U185: -4.69 | V185: 1.45 | W185: 0.96 | X185: 1.62 | Y185: 1.76 | Z185: 1.19 | AA185: -0.09 | AB185: 0.46 | AC185: -0.38 | AD185: 0.19 | AE185: 0.23 | AF185: -0.01 | AG185: 0.24 | AH185: 0.17 | AI185: 0.02 | AJ185: 0.45 | AK185: 0 | AL185: -0.25 | AM185: 27699 | AN185: 9218 | AO185: 0.020 | AP185: 9203 | AQ185: 0.026 | AS185: -0.015 | AT185: 0.007 | AU185: G | AV185: 0.01 | AW185: 0.01 | AX185: H | AZ185: 92019 | BA185: 0.0045 | BB185: 0.023 | BC185: 57 | BE185: 9.15 | BF185: 9.24 | BN185: 1 | CA185: 248411 | CB185: B+28 920 | CE185: 0.01 | CF185: B | CG185: S
B186: 1006.17284 | C186: 1006.1 | D186: 9,21 | E186: 9.21 | F186: 3,24 | G186: 3.24 | H186: H | I186: 4052 | K186: 00 51 54.55 | L186: -30 57 30.8 | M186: 9.21 | O186: G | P186: 1297727097 | Q186: -3095854248 | S186: 3.24 | T186: 27.80 | U186: 4.77 | V186: 1.09 | W186: 0.89 | X186: 1.22 | Y186: 1.26 | Z186: 0.86 | AA186: 0.17 | AB186: 0.02 | AC186: -0.10 | AD186: -0.09 | AE186: 0.03 | AF186: 0.01 | AG186: 0.02 | AH186: -0.06 | AI186: -0.03 | AJ186: 0.16 | AK186: 0 | AL186: -0.42 | AM186: 4052 | AN186: 9657 | AO186: 0.017 | AP186: 9239 | AQ186: 0.017 | AS186: 0.373 | AT186: 0.004 | AU186: G | AV186: 0.44 | AW186: 0.00 | AX186: H | AZ186: 93193 | BA186: 0.0028 | BB186: 0.023 | BC186: 91 | BE186: 9.28 | BF186: 9.35 | BH186: C | BN186: 1 | CA186: 5024 | CC186: C-31 319 | CD186: P-31 90 | CE186: 0.44 | CF186: A9V | CG186: 3
B187: 1006.17284 | C187: 1006.1 | D187: 9,21 | E187: 9.21 | F187: 3,24 | G187: 3.24 | H187: H | I187: 44267 | K187: 09 00 52.09 | L187: -28 16 24.1 | M187: 9.21 | O187: H | P187: 13521705185 | Q187: -2827335306 | S187: 3.24 | T187: -3.46 | U187: -15.46 | V187: 0.88 | W187: 0.92 | X187: 1.41 | Y187: 0.96 | Z187: 0.89 | AA187: -0.05 | AB187: 0.09 | AC187: 0.14 | AD187: 0.32 | AE187: -0.18 | AF187: 0.25 | AG187: -0.17 | AH187: 0.30 | AI187: 0.21 | AJ187: -0.03 | AK187: 0 | AL187: 0.49 | AM187: 44267 | AN187: 9868 | AO187: 0.020 | AP187: 9269 | AQ187: 0.018 | AS187: 0.558 | AT187: 0.020 | AU187: T | AV187: 0.63 | AW187: 0.02 | AX187: L | AZ187: 93364 | BA187: 0.0021 | BB187: 0.026 | BC187: 138 | BE187: 9.30 | BF187: 9.39 | BH187: C | BN187: 1 | BX187: S | CA187: 77299 | CC187: C-27 6152 | CD187: P-27 3544 | CE187: 0.57 | CF187: F6V | CG187: 3
B188: 1006.17284 | C188: 1006.1 | D188: 9,24 | E188: 9.24 | F188: 3,24 | G188: 3.24 | H188: H | I188: 57685 | K188: 11 49 50.62 | L188: +54 46 32.0 | M188: 9.24 | O188: H | P188: 17746093544 | Q188: 5477556620 | S188: 3.24 | T188: 30.96 | U188: -7.17 | V188: 0.74 | W188: 0.85 | X188: 1.34 | Y188: 0.88 | Z188: 1.02 | AA188: 0.41 | AB188: -0.03 | AC188: -0.07 | AD188: 0.07 | AE188: -0.04 | AF188: 0.14 | AG188: -0.04 | AH188: 0.14 | AI188: 0.11 | AJ188: 0.47 | AK188: 2 | AL188: 0.60 | AM188: 57685 | AN188: 9704 | AO188: 0.014 | AP188: 9274 | AQ188: 0.014 | AS188: 0.406 | AT188: 0.018 | AU188: T | AV188: 0.47 | AW188: 0.02 | AX188: L | AZ188: 93346 | BA188: 0.0022 | BB188: 0.025 | BC188: 193 | BE188: 9.29 | BF188: 9.37 | BN188: 1 | CA188: 102730 | CB188: B+55 1490 | CE188: 0.50 | CF188: G | CG188: S
B189: 1006.17284 | C189: 1006.1 | D189: 9,27 | E189: 9.27 | F189: 3,24 | G189: 3.24 | H189: H | I189: 33785 | K189: 07 00 55.54 | L189: +17 56 27.9 | M189: 9.27 | O189: H | P189: 10523143213 | Q189: 1794107250 | S189: 3.24 | T189: -1.80 | U189: -6.46 | V189: 1.47 | W189: 0.94 | X189: 1.67 | Y189: 1.65 | Z189: 1.19 | AA189: -0.16 | AB189: 0.31 | AC189: -0.15 | AD189: -0.04 | AE189: -0.06 | AF189: -0.29 | AG189: -0.18 | AH189: -0.16 | AI189: -0.04 | AJ189: -0.27 | AK189: 0 | AL189: -0.40 | AM189: 33785 | AN189: 10649 | AO189: 0.051 | AP189: 9389 | AQ189: 0.029 | AS189: 1074 | AT189: 0.046 | AU189: T | AV189: 2014-04-01 | AW189: 0.04 | AX189: L | AZ189: 94400 | BA189: 0.0033 | BB189: 0.017 | BC189: 65 | BE189: 9.40 | BF189: 9.46 | BN189: 1 | CA189: 267806 | CB189: B+18 1445 | CE189: 2014-07-01 | CF189: K0 | CG189: S
B190: 1006.17284 | C190: 1006.1 | D190: 9,29 | E190: 9.29 | F190: 3,24 | G190: 3.24 | H190: H | I190: 47067 | K190: 09 35 30.70 | L190: -30 45 56.8 | M190: 9.29 | O190: H | P190: 14387792293 | Q190: -3076577582 | S190: 3.24 | T190: 5.87 | U190: -10.36 | V190: 0.73 | W190: 0.90 | X190: 1.31 | Y190: 1.03 | Z190: 1.09 | AA190: 0.01 | AB190: 0.07 | AC190: -0.04 | AD190: 0.31 | AE190: 0.08 | AF190: 0.03 | AG190: 0.06 | AH190: -0.04 | AI190: -0.06 | AJ190: -0.01 | AK190: 0 | AL190: -0.57 | AM190: 47067 | AN190: 10311 | AO190: 0.025 | AP190: 9367 | AQ190: 0.019 | AS190: 0.819 | AT190: 0.024 | AU190: T | AV190: 0.84 | AW190: 0.02 | AX190: L | AZ190: 94277 | BA190: 0.0019 | BB190: 0.024 | BC190: 159 | BE190: 9.38 | BF190: 9.47 | BN190: 1 | CA190: 83133 | CC190: C-30 7691 | CD190: P-30 2895 | CE190: 0.86 | CF190: G5/G6V | CG190: 3
B191: 1006.17284 | C191: 1006.1 | D191: 9,36 | E191: 9.36 | F191: 3,24 | G191: 3.24 | H191: H | I191: 16565 | J191: H | K191: 03 33 13.73 | L191: +62 25 46.0 | M191: 9.36 | O191: H | P191: 5330721796 | Q191: 6242943731 | R191: A | S191: 3.24 | T191: -5.13 | U191: -5.92 | V191: 1.22 | W191: 1.58 | X191: 1.92 | Y191: 1.36 | Z191: 1.85 | AA191: -0.22 | AB191: 0.01 | AC191: -0.03 | AD191: 0.19 | AE191: -0.21 | AF191: 0.11 | AG191: -0.24 | AH191: 0.11 | AI191: 0.07 | AJ191: 0.02 | AK191: 1 | AL191: -0.34 | AM191: 16565 | AN191: 9749 | AO191: 0.016 | AP191: 9402 | AQ191: 0.017 | AR191: * | AS191: 0.329 | AT191: 0.021 | AU191: T | AV191: 0.38 | AW191: 0.03 | AX191: L | AY191: * | AZ191: 94376 | BA191: 0.0024 | BB191: 0.026 | BC191: 185 | BD191: * | BE191: 9.39 | BF191: 9.48 | BH191: D | BK191: 03332+6226 | BL191: I | BM191: 1 | BN191: 2 | BO191: C | BQ191: A | BR191: AB | BS191: 152 | BT191: 0.588 | BU191: 0.011 | BV191: 2.04 | BW191: 0.05 | BY191: G | CB191: B+61 602 | CE191: 0.28 | CF191: A5 | CG191: S
B192: 1006.17284 | C192: 1006.1 | D192: 9,42 | E192: 9.42 | F192: 3,24 | G192: 3.24 | H192: H | I192: 1741 | K192: 00 22 02.08 | L192: +42 03 37.9 | M192: 9.42 | O192: H | P192: 550865237 | Q192: 4206054068 | S192: 3.24 | T192: -1.23 | U192: -31.49 | V192: 0.81 | W192: 0.73 | X192: 1.15 | Y192: 1.00 | Z192: 0.77 | AA192: 0.00 | AB192: 0.12 | AC192: 0.05 | AD192: 0.03 | AE192: -0.03 | AF192: -0.14 | AG192: -0.02 | AH192: -0.20 | AI192: 0.11 | AJ192: -0.08 | AK192: 0 | AL192: -0.25 | AM192: 1741 | AN192: 10061 | AO192: 0.022 | AP192: 9476 | AQ192: 0.020 | AS192: 0.546 | AT192: 0.026 | AU192: T | AV192: 0.62 | AW192: 0.02 | AX192: L | AZ192: 95387 | BA192: 0.0020 | BB192: 0.021 | BC192: 117 | BE192: 9.50 | BF192: 9.58 | BH192: C | BN192: 1 | CB192: B+41 44 | CE192: 0.49 | CF192: F0 | CG192: S
B193: 1006.17284 | C193: 1006.1 | D193: 9,47 | E193: 9.47 | F193: 3,24 | G193: 3.24 | H193: H | I193: 60899 | K193: 12 28 50.97 | L193: -52 18 32.0 | M193: 9.47 | O193: H | P193: 18721237957 | Q193: -5230889295 | S193: 3.24 | T193: -22.62 | U193: -5.98 | V193: 0.86 | W193: 0.77 | X193: 1.49 | Y193: 0.93 | Z193: 0.80 | AA193: 0.21 | AB193: -0.23 | AC193: 0.22 | AD193: -0.04 | AE193: -0.18 | AF193: -0.10 | AG193: -0.17 | AH193: 0.34 | AI193: 0.07 | AJ193: 0.26 | AK193: 0 | AL193: -1.39 | AM193: 60899 | AN193: 9879 | AO193: 0.016 | AP193: 9503 | AQ193: 0.017 | AS193: 0.367 | AT193: 0.020 | AU193: T | AV193: 0.43 | AW193: 0.02 | AX193: L | AZ193: 95519 | BA193: 0.0018 | BB193: 0.024 | BC193: 205 | BE193: 9.52 | BF193: 9.59 | BH193: C | BN193: 1 | CA193: 108604 | CC193: C-51 6712 | CD193: P-51 5199 | CE193: 0.39 | CF193: A9V | CG193: 2
B194: =1/(F194/1000)*3.26 -> 1006.17284 | C194: 1006.1 | D194: =REPLACE(E194,FIND(".",E194),1,",") -> 9,49 | E194: =TRIM(M194) -> 9.49 | F194: =REPLACE(G194,FIND(".",G194),1,",") -> 3,24 | G194: =TRIM(S194) -> 3.24 | H194: H | I194: 60879 | K194: 12 28 37.52 | L194: +48 17 28.8 | M194: 9.49 | O194: H | P194: 18715635368 | Q194: 4829133986 | S194: 3.24 | T194: -10.36 | U194: -17.46 | V194: 0.86 | W194: 0.91 | X194: 1.40 | Y194: 1.05 | Z194: 0.96 | AA194: 0.27 | AB194: 0.10 | AC194: 0.06 | AD194: -0.13 | AE194: -0.22 | AF194: 0.04 | AG194: -0.17 | AH194: -0.03 | AI194: 0.20 | AJ194: 0.19 | AK194: 1 | AL194: 0.32 | AM194: 60879 | AN194: 9883 | AO194: 0.016 | AP194: 9495 | AQ194: 0.017 | AS194: 0.367 | AT194: 0.022 | AU194: T | AV194: 0.43 | AW194: 0.02 | AX194: L | AZ194: 95720 | BA194: 0.0028 | BB194: 0.030 | BC194: 184 | BE194: 9.53 | BF194: 9.63 | BN194: 1 | BX194: S | CA194: 108650 | CB194: B+49 2141 | CE194: 0.63 | CF194: F8 | CG194: S
B195: 1006.17284 | C195: 1006.1 | D195: 9,54 | E195: 9.54 | F195: 3,24 | G195: 3.24 | H195: H | I195: 14829 | K195: 03 11 29.59 | L195: +05 35 20.3 | M195: 9.54 | O195: H | P195: 4787330803 | Q195: 558897184 | S195: 3.24 | T195: 30.08 | U195: -11.85 | V195: 1.44 | W195: 1.44 | X195: 1.61 | Y195: 2.34 | Z195: 2.22 | AA195: 0.54 | AB195: 0.18 | AC195: -0.02 | AD195: -0.18 | AE195: -0.45 | AF195: -0.21 | AG195: -0.36 | AH195: -0.73 | AI195: -0.17 | AJ195: 0.71 | AK195: 0 | AL195: 2.45 | AM195: 14829 | AN195: 10068 | AO195: 0.033 | AP195: 9605 | AQ195: 0.035 | AS195: 0.436 | AT195: 0.044 | AU195: T | AV195: 0.50 | AW195: 0.05 | AX195: L | AZ195: 96422 | BA195: 0.0024 | BB195: 0.017 | BC195: 59 | BE195: 9.62 | BF195: 9.68 | BH195: C | BK195: 03115+0535 | BL195: I | BM195: 1 | BN195: 1 | BQ195: S | CB195: B+05 457 | CE195: 0.47 | CF195: F2 | CG195: S
B196: 1006.17284 | C196: 1006.1 | D196: 9,55 | E196: 9.55 | F196: 3,24 | G196: 3.24 | H196: H | I196: 11320 | K196: 02 25 41.96 | L196: +42 44 22.5 | M196: 9.55 | O196: H | P196: 3642482209 | Q196: 4273957175 | S196: 3.24 | T196: 12.52 | U196: -14.23 | V196: 1.15 | W196: 0.85 | X196: 1.41 | Y196: 1.48 | Z196: 1.16 | AA196: 0.04 | AB196: 0.23 | AC196: -0.06 | AD196: -0.07 | AE196: 0.02 | AF196: 0.18 | AG196: 0.06 | AH196: -0.18 | AI196: 0.17 | AJ196: -0.13 | AK196: 0 | AL196: 0.40 | AM196: 11320 | AN196: 9937 | AO196: 0.023 | AP196: 9568 | AQ196: 0.025 | AS196: 0.350 | AT196: 0.032 | AU196: T | AV196: 0.41 | AW196: 0.04 | AX196: L | AZ196: 96355 | BA196: 0.0027 | BB196: 0.022 | BC196: 93 | BE196: 9.60 | BF196: 9.67 | BH196: C | BN196: 1 | CB196: B+42 516 | CE196: 0.53 | CF196: F0 | CG196: S
B197: 1006.17284 | C197: 1006.1 | D197: 9,65 | E197: 9.65 | F197: 3,24 | G197: 3.24 | H197: H | I197: 22311 | K197: 04 48 19.34 | L197: +18 33 56.5 | M197: 9.65 | O197: H | P197: 7208058545 | Q197: 1856570140 | S197: 3.24 | T197: -18.33 | U197: -13.32 | V197: 1.61 | W197: 1.46 | X197: 1.81 | Y197: 2.36 | Z197: 2.16 | AA197: 0.47 | AB197: 0.09 | AC197: -0.39 | AD197: 0.29 | AE197: 0.53 | AF197: -0.20 | AG197: 0.31 | AH197: 0.70 | AI197: -0.31 | AJ197: 0.78 | AK197: 0 | AL197: -0.95 | AM197: 22311 | AN197: 10190 | AO197: 0.037 | AP197: 9771 | AQ197: 0.040 | AS197: 0.396 | AT197: 0.050 | AU197: T | AV197: 0.46 | AW197: 0.06 | AX197: L | AZ197: 97355 | BA197: 0.0038 | BB197: 0.020 | BC197: 69 | BE197: 9.70 | BF197: 9.77 | BN197: 1 | CA197: 286061 | CB197: B+18 732 | CE197: 0.47 | CF197: F2 | CG197: S
B198: 1006.17284 | C198: 1006.1 | D198: 9,76 | E198: 9.76 | F198: 3,24 | G198: 3.24 | H198: H | I198: 1676 | J198: H | K198: 00 20 59.45 | L198: +47 37 00.7 | M198: 9.76 | O198: H | P198: 524769317 | Q198: 4761687342 | R198: * | S198: 3.24 | T198: 5.39 | U198: -4.49 | V198: 6.68 | W198: 2.58 | X198: 1.82 | Y198: 1.50 | Z198: 1.08 | AA198: 0.55 | AB198: 0.12 | AC198: 0.02 | AD198: -0.21 | AE198: 0.08 | AF198: -0.06 | AG198: 0.08 | AH198: 0.14 | AI198: 0.13 | AJ198: -0.23 | AK198: 2 | AL198: -0.92 | AM198: 1676 | AN198: 9980 | AO198: 0.020 | AP198: 9789 | AQ198: 0.024 | AR198: * | AS198: 0.183 | AT198: 0.029 | AU198: T | AV198: 0.20 | AW198: 0.03 | AX198: L | AY198: * | AZ198: 98167 | BA198: 0.0021 | BB198: 0.023 | BC198: 179 | BD198: * | BE198: 9.78 | BF198: 9.85 | BK198: 00210+4737 | BL198: H | BM198: 1 | BN198: 2 | BO198: C | BQ198: C | BR198: AB | BS198: 161 | BT198: 0.203 | BU198: 0.049 | BV198: 2.28 | BW198: 0.50 | BY198: G | CB198: B+46 61 | CE198: 0.21 | CF198: A2 | CG198: S
B199: 1006.17284 | C199: 1006.1 | D199: 9,82 | E199: 9.82 | F199: 3,24 | G199: 3.24 | H199: H | I199: 22767 | J199: H | K199: 04 53 51.79 | L199: +22 46 15.8 | M199: 9.82 | O199: H | P199: 7346580122 | Q199: 2277104199 | R199: A | S199: 3.24 | T199: 1.39 | U199: -7.65 | V199: 3.36 | W199: 3.02 | X199: 3.02 | Y199: 4.20 | Z199: 3.00 | AA199: 0.41 | AB199: 0.23 | AC199: -0.19 | AD199: -0.29 | AE199: -0.34 | AF199: 0.05 | AG199: -0.32 | AH199: -0.28 | AI199: 0.02 | AJ199: 0.58 | AK199: 0 | AL199: -0.15 | AM199: 22767 | AN199: 10343 | AO199: 0.054 | AP199: 9862 | AQ199: 0.052 | AR199: * | AS199: 0.453 | AT199: 0.068 | AU199: T | AV199: 0.52 | AW199: 0.07 | AX199: L | AY199: * | AZ199: 99248 | BA199: 0.0036 | BB199: 0.020 | BC199: 44 | BD199: * | BE199: 9.89 | BF199: 9.97 | BH199: C | BK199: 04539+2246 | BL199: H | BM199: 1 | BN199: 2 | BO199: C | BQ199: C | BR199: AB | BS199: 177 | BT199: 0.636 | BU199: 0.055 | BV199: 3.31 | BW199: 0.41 | BY199: G | CA199: 31086 | CB199: B+22 770 | CE199: 0.57 | CF199: N... | CG199: X
B200: 1009.287926 | C200: 1009.2 | D200: 5,74 | E200: 5.74 | F200: 3,23 | G200: 3.23 | H200: H | I200: 52487 | K200: 10 43 51.21 | L200: -64 14 56.6 | M200: 5.74 | O200: H | P200: 16096339384 | Q200: -6424905176 | S200: 3.23 | T200: -16.35 | U200: 4.05 | V200: 0.42 | W200: 0.41 | X200: 0.50 | Y200: 0.49 | Z200: 0.42 | AA200: 0.13 | AB200: -0.11 | AC200: 0.16 | AD200: 0.09 | AE200: 0.02 | AF200: 0.23 | AG200: -0.03 | AH200: -0.07 | AI200: 0.06 | AJ200: 0.14 | AK200: 1 | AL200: -0.50 | AM200: 52487 | AN200: 5731 | AO200: 0.004 | AP200: 5752 | AQ200: 0.004 | AS200: 0.012 | AT200: 0.034 | AU200: G | AV200: 0.07 | AW200: 0.03 | AX200: C | AZ200: 57604 | BA200: 0.0007 | BB200: 0.007 | BC200: 124 | BE200: 5.75 | BF200: 5.77 | BN200: 1 | BX200: S | CA200: 93163 | CD200: P-63 1619 | CE200: 0.07 | CF200: B3:V | CG200: X
... 925 more rows
